Workbook

Sheet KLASYCZNY
K1: Załącznik Nr 1
K2: do uchwały Nr 343/2025
K3: Zarządu Dzielnicy Bemowo m.st. Warszawy
K4: z dnia 25 kwietnia 2025 r.
A5: PLAN WYDATKÓW w UKŁADZIE KLASYCZNYM | Q5: 9267
D7: =IF(OR(P8<>"",O8<>""),"Istnieją błędy","") ->  | E7: =E9266 -> 649082457 | F7: 299354694 | G7: 890000 | H7: 890000 | I7: 890000 | J7: 890000 | K7: 649082457 | L7: 299354694
A8: Dział | B8: Rozdział | C8: § | D8: Wyszczególnienie | E8: PLAN | F8: w tym Urząd m.st. Warszawy | G8: PLAN Zmiana[-] | H8: PLAN Zmiana[+] | I8: w tym Urząd Zmiana[-] | J8: w tym Urząd Zmiana[+] | K8: PLAN PO ZMIANIE | L8: w tym Urząd PO ZMIANIE | M8: Pozycja wypełniona | N8: Zmiany wypełnione | O8: =IF(COUNTIF(O9:O168,"błędny urząd")<>0,"ŹLE","") ->  | P8: =IF(COUNTIF(P9:P168,"ujemny plan")<>0,"ŹLE","") -> 
A9: 010 | D9: Rolnictwo i łowiectwo | E9: =SUM(E10,E19) -> 0 | F9: 0 | G9: 0 | H9: 0 | I9: 0 | J9: 0 | K9: 0 | L9: 0 | M9: =IF(SUM(E9:L9)>0,"Tak","") ->  | N9: =IF(SUM(G9:J9)>0,"Tak","") ->  | O9: =IF(OR(E9<F9,K9<L9,G9<I9,H9<J9),"błędny urząd","") ->  | P9: =IF(OR(E9<0,F9<0,K9<0,L9<0),"ujemny plan","") -> 
D10: WYDATKI BIEŻĄCE | E10: =SUM(E11,E14:E18) -> 0 | F10: 0 | G10: 0 | H10: 0 | I10: 0 | J10: 0 | K10: 0 | L10: 0
D11: Wydatki jednostek budżetowych w tym na: | E11: =SUM(E12:E13) -> 0 | F11: 0 | G11: 0 | H11: 0 | I11: 0 | J11: 0 | K11: 0 | L11: 0
D12: wynagrodzenia i składki od nich naliczane | E12: =SUM(E23,E37,E49,E61) -> 0 | F12: 0 | G12: 0 | H12: 0 | I12: 0 | J12: 0 | K12: 0 | L12: 0
D13: wydatki związane z realizacją ich zadań statutowych | E13: 0 | F13: 0 | G13: 0 | H13: 0 | I13: 0 | J13: 0 | K13: 0 | L13: 0
D14: Dotacje na zadania bieżące | E14: 0 | F14: 0 | G14: 0 | H14: 0 | I14: 0 | J14: 0 | K14: 0 | L14: 0
D15: Świadczenia na rzecz osób fizycznych | E15: 0 | F15: 0 | G15: 0 | H15: 0 | I15: 0 | J15: 0 | K15: 0 | L15: 0
D16: Wydatki na programy finansowane z UE | E16: 0 | F16: 0 | G16: 0 | H16: 0 | I16: 0 | J16: 0 | K16: 0 | L16: 0
D17: Obsługa długu | E17: 0 | F17: 0 | G17: 0 | H17: 0 | I17: 0 | J17: 0 | K17: 0 | L17: 0
D18: Poręczenia i gwarancje | E18: 0 | F18: 0 | G18: 0 | H18: 0 | I18: 0 | J18: 0 | K18: 0 | L18: 0
D19: WYDATKI MAJĄTKOWE | E19: 0 | F19: 0 | G19: 0 | H19: 0 | I19: 0 | J19: 0 | K19: 0 | L19: 0
B20: 01005 | D20: Prace geodezyjno - urządzeniowe na potrzeby rolnictwa | E20: =SUM(E21,E30) -> 0 | F20: 0 | G20: 0 | H20: 0 | I20: 0 | J20: 0 | K20: 0 | L20: 0
D21: WYDATKI BIEŻĄCE | E21: =SUM(E22,E25:E29) -> 0 | F21: 0 | G21: 0 | H21: 0 | I21: 0 | J21: 0 | K21: 0 | L21: 0
D22: Wydatki jednostek budżetowych w tym na: | E22: =SUM(E23:E24) -> 0 | F22: 0 | G22: 0 | H22: 0 | I22: 0 | J22: 0 | K22: 0 | L22: 0
D23: wynagrodzenia i składki od nich naliczane
D24: wydatki związane z realizacją ich zadań statutowych | E24: =SUM(E31) -> 0 | F24: 0 | G24: 0 | H24: 0 | I24: 0 | J24: 0 | K24: 0 | L24: 0
D25: Dotacje na zadania bieżące
D26: Świadczenia na rzecz osób fizycznych
D27: Wydatki na programy finansowane z UE
D28: Obsługa długu
D29: Poręczenia i gwarancje
D30: WYDATKI MAJĄTKOWE
C31: 4300 | D31: Zakup usług pozostałych | E31: =SUM(E32:E33) -> 0 | F31: 0 | G31: 0 | H31: 0 | I31: 0 | J31: 0 | K31: 0 | L31: 0
D32: Środki z budżetu państwa | E32: =0 -> 0 | F32: =0 -> 0 | G32: =0 -> 0 | H32: =0 -> 0 | I32: =0 -> 0 | J32: =0 -> 0 | K32: =E32-G32+H32 -> 0 | L32: =F32-I32+J32 -> 0 | M32: =IF(SUM(E32:L32)>0,"Tak","") ->  | N32: =IF(SUM(G32:J32)>0,"Tak","") ->  | O32: =IF(OR(E32<F32,K32<L32,G32<I32,H32<J32),"błędny urząd","") ->  | P32: =IF(OR(E32<0,F32<0,K32<0,L32<0),"ujemny plan","") -> 
D33: Środki z budżetu miasta | E33: =0 -> 0 | F33: =0 -> 0 | G33: =0 -> 0 | H33: =0 -> 0 | I33: =0 -> 0 | J33: =0 -> 0 | K33: =E33-G33+H33 -> 0 | L33: =F33-I33+J33 -> 0 | M33: =IF(SUM(E33:L33)>0,"Tak","") ->  | N33: =IF(SUM(G33:J33)>0,"Tak","") ->  | O33: =IF(OR(E33<F33,K33<L33,G33<I33,H33<J33),"błędny urząd","") ->  | P33: =IF(OR(E33<0,F33<0,K33<0,L33<0),"ujemny plan","") -> 
B34: 01030 | D34: Izby rolnicze | E34: =SUM(E35,E44) -> 0 | F34: 0 | G34: 0 | H34: 0 | I34: 0 | J34: 0 | K34: 0 | L34: 0
D35: WYDATKI BIEŻĄCE | E35: =SUM(E36,E39:E43) -> 0 | F35: 0 | G35: 0 | H35: 0 | I35: 0 | J35: 0 | K35: 0 | L35: 0
D36: Wydatki jednostek budżetowych w tym na: | E36: =SUM(E37:E38) -> 0 | F36: 0 | G36: 0 | H36: 0 | I36: 0 | J36: 0 | K36: 0 | L36: 0
D37: wynagrodzenia i składki od nich naliczane
D38: wydatki związane z realizacją ich zadań statutowych | E38: =SUM(E45) -> 0 | F38: 0 | G38: 0 | H38: 0 | I38: 0 | J38: 0 | K38: 0 | L38: 0
D39: Dotacje na zadania bieżące
D40: Świadczenia na rzecz osób fizycznych
D41: Wydatki na programy finansowane z UE
D42: Obsługa długu
D43: Poręczenia i gwarancje
D44: WYDATKI MAJĄTKOWE
C45: 2850 | D45: Wpłaty gmin na rzecz izb rolniczych w wysokości 2% uzyskanych wpływów z podatku rolnego | E45: =0+ZADANIOWY!J2017 -> 0 | F45: =0+ZADANIOWY!K2017 -> 0 | G45: =0+ZADANIOWY!L2017 -> 0 | H45: =0+ZADANIOWY!M2017 -> 0 | I45: =0+ZADANIOWY!N2017 -> 0 | J45: =0+ZADANIOWY!O2017 -> 0 | K45: 0 | L45: 0
B46: 01078 | D46: Izby rolnicze | E46: =SUM(E47,E56) -> 0 | F46: 0 | G46: 0 | H46: 0 | I46: 0 | J46: 0 | K46: 0 | L46: 0
D47: WYDATKI BIEŻĄCE | E47: =SUM(E48,E51:E55) -> 0 | F47: 0 | G47: 0 | H47: 0 | I47: 0 | J47: 0 | K47: 0 | L47: 0
D48: Wydatki jednostek budżetowych w tym na: | E48: =SUM(E49:E50) -> 0 | F48: 0 | G48: 0 | H48: 0 | I48: 0 | J48: 0 | K48: 0 | L48: 0
D49: wynagrodzenia i składki od nich naliczane
D50: wydatki związane z realizacją ich zadań statutowych
D51: Dotacje na zadania bieżące | E51: =SUM(E57) -> 0 | F51: 0 | G51: 0 | H51: 0 | I51: 0 | J51: 0 | K51: 0 | L51: 0
D52: Świadczenia na rzecz osób fizycznych
D53: Wydatki na programy finansowane z UE
D54: Obsługa długu
D55: Poręczenia i gwarancje
D56: WYDATKI MAJĄTKOWE
C57: 2710 | D57: Dotacja celowa na pomoc finansową udzielaną między jednostkami samorządu terytorialnego na dofinansowanie własnych zadań bieżących | E57: =0 -> 0 | F57: =0 -> 0 | G57: =0 -> 0 | H57: =0 -> 0 | I57: =0 -> 0 | J57: =0 -> 0 | K57: 0 | L57: 0
B58: 01095 | D58: Pozostała działalność | E58: =SUM(E59,E68) -> 0 | F58: 0 | G58: 0 | H58: 0 | I58: 0 | J58: 0 | K58: 0 | L58: 0
D59: WYDATKI BIEŻĄCE | E59: =SUM(E60,E63:E67) -> 0 | F59: 0 | G59: 0 | H59: 0 | I59: 0 | J59: 0 | K59: 0 | L59: 0
D60: Wydatki jednostek budżetowych w tym na: | E60: =SUM(E61:E62) -> 0 | F60: 0 | G60: 0 | H60: 0 | I60: 0 | J60: 0 | K60: 0 | L60: 0
D61: wynagrodzenia i składki od nich naliczane | E61: =SUM(E69,E72,E75,E84) -> 0 | F61: 0 | G61: 0 | H61: 0 | I61: 0 | J61: 0 | K61: 0 | L61: 0
D62: wydatki związane z realizacją ich zadań statutowych | E62: =SUM(E78,E81) -> 0 | F62: 0 | G62: 0 | H62: 0 | I62: 0 | J62: 0 | K62: 0 | L62: 0
D63: Dotacje na zadania bieżące
D64: Świadczenia na rzecz osób fizycznych
D65: Wydatki na programy finansowane z UE
D66: Obsługa długu
D67: Poręczenia i gwarancje
D68: WYDATKI MAJĄTKOWE
C69: 4010 | D69: Wynagrodzenia osobowe pracowników | E69: =SUM(E70:E71) -> 0 | F69: 0 | G69: 0 | H69: 0 | I69: 0 | J69: 0 | K69: 0 | L69: 0
D70: Środki z budżetu państwa | E70: =0 -> 0 | F70: =0 -> 0 | G70: =0 -> 0 | H70: =0 -> 0 | I70: =0 -> 0 | J70: =0 -> 0 | K70: 0 | L70: 0
D71: Środki z budżetu miasta | E71: =0 -> 0 | F71: =0 -> 0 | G71: =0 -> 0 | H71: =0 -> 0 | I71: =0 -> 0 | J71: =0 -> 0 | K71: 0 | L71: 0
C72: 4110 | D72: Składki na ubezpieczenia społeczne | E72: =SUM(E73:E74) -> 0 | F72: 0 | G72: 0 | H72: 0 | I72: 0 | J72: 0 | K72: 0 | L72: 0
D73: Środki z budżetu państwa | E73: =0 -> 0 | F73: =0 -> 0 | G73: =0 -> 0 | H73: =0 -> 0 | I73: =0 -> 0 | J73: =0 -> 0 | K73: 0 | L73: 0
D74: Środki z budżetu miasta | E74: =0 -> 0 | F74: =0 -> 0 | G74: =0 -> 0 | H74: =0 -> 0 | I74: =0 -> 0 | J74: =0 -> 0 | K74: 0 | L74: 0
C75: 4120 | D75: Składki na Fundusz Pracy oraz Fundusz Solidarnościowy | E75: =SUM(E76:E77) -> 0 | F75: 0 | G75: 0 | H75: 0 | I75: 0 | J75: 0 | K75: 0 | L75: 0
D76: Środki z budżetu państwa | E76: =0 -> 0 | F76: =0 -> 0 | G76: =0 -> 0 | H76: =0 -> 0 | I76: =0 -> 0 | J76: =0 -> 0 | K76: 0 | L76: 0
D77: Środki z budżetu miasta | E77: =0 -> 0 | F77: =0 -> 0 | G77: =0 -> 0 | H77: =0 -> 0 | I77: =0 -> 0 | J77: =0 -> 0 | K77: 0 | L77: 0
C78: 4300 | D78: Zakup usług pozostałych | E78: =SUM(E79:E80) -> 0 | F78: 0 | G78: 0 | H78: 0 | I78: 0 | J78: 0 | K78: 0 | L78: 0
D79: Środki z budżetu państwa | E79: =0+ZADANIOWY!J2010 -> 0 | F79: =0+ZADANIOWY!K2010 -> 0 | G79: =0+ZADANIOWY!L2010 -> 0 | H79: =0+ZADANIOWY!M2010 -> 0 | I79: =0+ZADANIOWY!N2010 -> 0 | J79: =0+ZADANIOWY!O2010 -> 0 | K79: 0 | L79: 0
D80: Środki z budżetu miasta | E80: =0+ZADANIOWY!J2011 -> 0 | F80: =0+ZADANIOWY!K2011 -> 0 | G80: =0+ZADANIOWY!L2011 -> 0 | H80: =0+ZADANIOWY!M2011 -> 0 | I80: =0+ZADANIOWY!N2011 -> 0 | J80: =0+ZADANIOWY!O2011 -> 0 | K80: 0 | L80: 0
C81: 4430 | D81: Różne opłaty i składki | E81: =SUM(E82:E83) -> 0 | F81: 0 | G81: 0 | H81: 0 | I81: 0 | J81: 0 | K81: 0 | L81: 0
D82: Środki z budżetu państwa | E82: =0+ZADANIOWY!J2013 -> 0 | F82: =0+ZADANIOWY!K2013 -> 0 | G82: =0+ZADANIOWY!L2013 -> 0 | H82: =0+ZADANIOWY!M2013 -> 0 | I82: =0+ZADANIOWY!N2013 -> 0 | J82: =0+ZADANIOWY!O2013 -> 0 | K82: 0 | L82: 0
D83: Środki z budżetu miasta | E83: =0+ZADANIOWY!J2014 -> 0 | F83: =0+ZADANIOWY!K2014 -> 0 | G83: =0+ZADANIOWY!L2014 -> 0 | H83: =0+ZADANIOWY!M2014 -> 0 | I83: =0+ZADANIOWY!N2014 -> 0 | J83: =0+ZADANIOWY!O2014 -> 0 | K83: 0 | L83: 0
C84: 4710 | D84: Wpłaty na PPK finansowane przez podmiot zatrudniający | E84: =SUM(E85:E86) -> 0 | F84: 0 | G84: 0 | H84: 0 | I84: 0 | J84: 0 | K84: 0 | L84: 0
D85: Środki z budżetu państwa | E85: =0 -> 0 | F85: =0 -> 0 | G85: =0 -> 0 | H85: =0 -> 0 | I85: =0 -> 0 | J85: =0 -> 0 | K85: 0 | L85: 0
D86: Środki z budżetu miasta | E86: =0 -> 0 | F86: =0 -> 0 | G86: =0 -> 0 | H86: =0 -> 0 | I86: =0 -> 0 | J86: =0 -> 0 | K86: 0 | L86: 0
A87: 020 | D87: Leśnictwo | E87: =SUM(E88,E97) -> 0 | F87: 0 | G87: 0 | H87: 0 | I87: 0 | J87: 0 | K87: 0 | L87: 0
D88: WYDATKI BIEŻĄCE | E88: =SUM(E89,E92:E96) -> 0 | F88: 0 | G88: 0 | H88: 0 | I88: 0 | J88: 0 | K88: 0 | L88: 0
D89: Wydatki jednostek budżetowych w tym na: | E89: =SUM(E90:E91) -> 0 | F89: 0 | G89: 0 | H89: 0 | I89: 0 | J89: 0 | K89: 0 | L89: 0
D90: wynagrodzenia i składki od nich naliczane | E90: =SUM(E101,E151) -> 0 | F90: 0 | G90: 0 | H90: 0 | I90: 0 | J90: 0 | K90: 0 | L90: 0
D91: wydatki związane z realizacją ich zadań statutowych | E91: 0 | F91: 0 | G91: 0 | H91: 0 | I91: 0 | J91: 0 | K91: 0 | L91: 0
D92: Dotacje na zadania bieżące | E92: 0 | F92: 0 | G92: 0 | H92: 0 | I92: 0 | J92: 0 | K92: 0 | L92: 0
D93: Świadczenia na rzecz osób fizycznych | E93: 0 | F93: 0 | G93: 0 | H93: 0 | I93: 0 | J93: 0 | K93: 0 | L93: 0
D94: Wydatki na programy finansowane z UE | E94: 0 | F94: 0 | G94: 0 | H94: 0 | I94: 0 | J94: 0 | K94: 0 | L94: 0
D95: Obsługa długu | E95: 0 | F95: 0 | G95: 0 | H95: 0 | I95: 0 | J95: 0 | K95: 0 | L95: 0
D96: Poręczenia i gwarancje | E96: 0 | F96: 0 | G96: 0 | H96: 0 | I96: 0 | J96: 0 | K96: 0 | L96: 0
D97: WYDATKI MAJĄTKOWE | E97: 0 | F97: 0 | G97: 0 | H97: 0 | I97: 0 | J97: 0 | K97: 0 | L97: 0 | M97: =IF(SUM(E97:L97)>0,"Tak","") ->  | N97: =IF(SUM(G97:J97)>0,"Tak","") ->  | O97: =IF(OR(E97<F97,K97<L97,G97<I97,H97<J97),"błędny urząd","") ->  | P97: =IF(OR(E97<0,F97<0,K97<0,L97<0),"ujemny plan","") -> 
B98: 02001 | D98: Gospodarka leśna | E98: =SUM(E99,E108) -> 0 | F98: 0 | G98: 0 | H98: 0 | I98: 0 | J98: 0 | K98: 0 | L98: 0
D99: WYDATKI BIEŻĄCE | E99: =SUM(E100,E103:E107) -> 0 | F99: 0 | G99: 0 | H99: 0 | I99: 0 | J99: 0 | K99: 0 | L99: 0
D100: Wydatki jednostek budżetowych w tym na: | E100: =SUM(E101:E102) -> 0 | F100: 0 | G100: 0 | H100: 0 | I100: 0 | J100: 0 | K100: 0 | L100: 0
D101: wynagrodzenia i składki od nich naliczane | E101: =SUM(E110:E113,E115,E147) -> 0 | F101: 0 | G101: 0 | H101: 0 | I101: 0 | J101: 0 | K101: 0 | L101: 0
D102: wydatki związane z realizacją ich zadań statutowych | E102: =SUM(E114,E116:E117,E120:E125,E128:E146) -> 0 | F102: 0 | G102: 0 | H102: 0 | I102: 0 | J102: 0 | K102: 0 | L102: 0
D103: Dotacje na zadania bieżące
D104: Świadczenia na rzecz osób fizycznych | E104: =SUM(E109) -> 0 | F104: 0 | G104: 0 | H104: 0 | I104: 0 | J104: 0 | K104: 0 | L104: 0
D105: Wydatki na programy finansowane z UE | E105: =SUM(E118:E119,E126:E127) -> 0 | F105: 0 | G105: 0 | H105: 0 | I105: 0 | J105: 0 | K105: 0 | L105: 0
D106: Obsługa długu
D107: Poręczenia i gwarancje
D108: WYDATKI MAJĄTKOWE
C109: 3020 | D109: Wydatki osobowe niezaliczone do wynagrodzeń | E109: =0+ZADANIOWY!J1920 -> 0 | F109: =0+ZADANIOWY!K1920 -> 0 | G109: =0+ZADANIOWY!L1920 -> 0 | H109: =0+ZADANIOWY!M1920 -> 0 | I109: =0+ZADANIOWY!N1920 -> 0 | J109: =0+ZADANIOWY!O1920 -> 0 | K109: =E109-G109+H109 -> 0 | L109: =F109-I109+J109 -> 0
C110: 4010 | D110: Wynagrodzenia osobowe pracowników | E110: =0+ZADANIOWY!J1921 -> 0 | F110: =0+ZADANIOWY!K1921 -> 0 | G110: =0+ZADANIOWY!L1921 -> 0 | H110: =0+ZADANIOWY!M1921 -> 0 | I110: =0+ZADANIOWY!N1921 -> 0 | J110: =0+ZADANIOWY!O1921 -> 0 | K110: 0 | L110: 0
C111: 4040 | D111: Dodatkowe wynagrodzenie roczne | E111: =0+ZADANIOWY!J1922 -> 0 | F111: =0+ZADANIOWY!K1922 -> 0 | G111: =0+ZADANIOWY!L1922 -> 0 | H111: =0+ZADANIOWY!M1922 -> 0 | I111: =0+ZADANIOWY!N1922 -> 0 | J111: =0+ZADANIOWY!O1922 -> 0 | K111: 0 | L111: 0
C112: 4110 | D112: Składki na ubezpieczenia społeczne | E112: =0+ZADANIOWY!J1923 -> 0 | F112: =0+ZADANIOWY!K1923 -> 0 | G112: =0+ZADANIOWY!L1923 -> 0 | H112: =0+ZADANIOWY!M1923 -> 0 | I112: =0+ZADANIOWY!N1923 -> 0 | J112: =0+ZADANIOWY!O1923 -> 0 | K112: 0 | L112: 0
C113: 4120 | D113: Składki na Fundusz Pracy oraz Fundusz Solidarnościowy | E113: =0+ZADANIOWY!J1924 -> 0 | F113: =0+ZADANIOWY!K1924 -> 0 | G113: =0+ZADANIOWY!L1924 -> 0 | H113: =0+ZADANIOWY!M1924 -> 0 | I113: =0+ZADANIOWY!N1924 -> 0 | J113: =0+ZADANIOWY!O1924 -> 0 | K113: 0 | L113: 0
C114: 4140 | D114: Wpłaty na Państwowy Fundusz Rehabilitacji Osób Niepełnosprawnych | E114: =0+ZADANIOWY!J1925 -> 0 | F114: =0+ZADANIOWY!K1925 -> 0 | G114: =0+ZADANIOWY!L1925 -> 0 | H114: =0+ZADANIOWY!M1925 -> 0 | I114: =0+ZADANIOWY!N1925 -> 0 | J114: =0+ZADANIOWY!O1925 -> 0 | K114: 0 | L114: 0
C115: 4170 | D115: Wynagrodzenia bezosobowe | E115: =0+ZADANIOWY!J1926+ZADANIOWY!J1927+ZADANIOWY!J1928 -> 0 | F115: =0+ZADANIOWY!K1926+ZADANIOWY!K1927+ZADANIOWY!K1928 -> 0 | G115: =0+ZADANIOWY!L1926+ZADANIOWY!L1927+ZADANIOWY!L1928 -> 0 | H115: =0+ZADANIOWY!M1926+ZADANIOWY!M1927+ZADANIOWY!M1928 -> 0 | I115: =0+ZADANIOWY!N1926+ZADANIOWY!N1927+ZADANIOWY!N1928 -> 0 | J115: =0+ZADANIOWY!O1926+ZADANIOWY!O1927+ZADANIOWY!O1928 -> 0 | K115: 0 | L115: 0
C116: 4190 | D116: Nagrody konkursowe | E116: =0 -> 0 | F116: =0 -> 0 | G116: =0 -> 0 | H116: =0 -> 0 | I116: =0 -> 0 | J116: =0 -> 0 | K116: 0 | L116: 0
C117: 4210 | D117: Zakup materiałów i wyposażenia | E117: =0+ZADANIOWY!J1929+ZADANIOWY!J1930+ZADANIOWY!J1931+ZADANIOWY!J1932+ZADANIOWY!J1933+ZADANIOWY!J1934+ZADANIOWY!J1935 -> 0 | F117: =0+ZADANIOWY!K1929+ZADANIOWY!K1930+ZADANIOWY!K1931+ZADANIOWY!K1932+ZADANIOWY!K1933+ZADANIOWY!K1934+ZADANIOWY!K1935 -> 0 | G117: =0+ZADANIOWY!L1929+ZADANIOWY!L1930+ZADANIOWY!L1931+ZADANIOWY!L1932+ZADANIOWY!L1933+ZADANIOWY!L1934+ZADANIOWY!L1935 -> 0 | H117: =0+ZADANIOWY!M1929+ZADANIOWY!M1930+ZADANIOWY!M1931+ZADANIOWY!M1932+ZADANIOWY!M1933+ZADANIOWY!M1934+ZADANIOWY!M1935 -> 0 | I117: =0+ZADANIOWY!N1929+ZADANIOWY!N1930+ZADANIOWY!N1931+ZADANIOWY!N1932+ZADANIOWY!N1933+ZADANIOWY!N1934+ZADANIOWY!N1935 -> 0 | J117: =0+ZADANIOWY!O1929+ZADANIOWY!O1930+ZADANIOWY!O1931+ZADANIOWY!O1932+ZADANIOWY!O1933+ZADANIOWY!O1934+ZADANIOWY!O1935 -> 0 | K117: 0 | L117: 0
C118: 4217 | D118: Zakup materiałów i wyposażenia | E118: =0 -> 0 | F118: =0 -> 0 | G118: =0 -> 0 | H118: =0 -> 0 | I118: =0 -> 0 | J118: =0 -> 0 | K118: 0 | L118: 0
C119: 4219 | D119: Zakup materiałów i wyposażenia | E119: =0 -> 0 | F119: =0 -> 0 | G119: =0 -> 0 | H119: =0 -> 0 | I119: =0 -> 0 | J119: =0 -> 0 | K119: 0 | L119: 0
C120: 4220 | D120: Zakup środków żywności | E120: =0+ZADANIOWY!J1936+ZADANIOWY!J1937 -> 0 | F120: =0+ZADANIOWY!K1936+ZADANIOWY!K1937 -> 0 | G120: =0+ZADANIOWY!L1936+ZADANIOWY!L1937 -> 0 | H120: =0+ZADANIOWY!M1936+ZADANIOWY!M1937 -> 0 | I120: =0+ZADANIOWY!N1936+ZADANIOWY!N1937 -> 0 | J120: =0+ZADANIOWY!O1936+ZADANIOWY!O1937 -> 0 | K120: 0 | L120: 0
C121: 4240 | D121: Zakup środków dydaktycznych i książek | E121: =0 -> 0 | F121: =0 -> 0 | G121: =0 -> 0 | H121: =0 -> 0 | I121: =0 -> 0 | J121: =0 -> 0 | K121: 0 | L121: 0
C122: 4260 | D122: Zakup energii | E122: =0+ZADANIOWY!J1938 -> 0 | F122: =0+ZADANIOWY!K1938 -> 0 | G122: =0+ZADANIOWY!L1938 -> 0 | H122: =0+ZADANIOWY!M1938 -> 0 | I122: =0+ZADANIOWY!N1938 -> 0 | J122: =0+ZADANIOWY!O1938 -> 0 | K122: 0 | L122: 0
C123: 4270 | D123: Zakup usług remontowych | E123: =0+ZADANIOWY!J1939 -> 0 | F123: =0+ZADANIOWY!K1939 -> 0 | G123: =0+ZADANIOWY!L1939 -> 0 | H123: =0+ZADANIOWY!M1939 -> 0 | I123: =0+ZADANIOWY!N1939 -> 0 | J123: =0+ZADANIOWY!O1939 -> 0 | K123: 0 | L123: 0
C124: 4280 | D124: Zakup usług zdrowotnych | E124: =0+ZADANIOWY!J1940 -> 0 | F124: =0+ZADANIOWY!K1940 -> 0 | G124: =0+ZADANIOWY!L1940 -> 0 | H124: =0+ZADANIOWY!M1940 -> 0 | I124: =0+ZADANIOWY!N1940 -> 0 | J124: =0+ZADANIOWY!O1940 -> 0 | K124: 0 | L124: 0
C125: 4300 | D125: Zakup usług pozostałych | E125: =0+ZADANIOWY!J1941+ZADANIOWY!J1942+ZADANIOWY!J1943+ZADANIOWY!J1944+ZADANIOWY!J1945+ZADANIOWY!J1946 -> 0 | F125: =0+ZADANIOWY!K1941+ZADANIOWY!K1942+ZADANIOWY!K1943+ZADANIOWY!K1944+ZADANIOWY!K1945+ZADANIOWY!K1946 -> 0 | G125: =0+ZADANIOWY!L1941+ZADANIOWY!L1942+ZADANIOWY!L1943+ZADANIOWY!L1944+ZADANIOWY!L1945+ZADANIOWY!L1946 -> 0 | H125: =0+ZADANIOWY!M1941+ZADANIOWY!M1942+ZADANIOWY!M1943+ZADANIOWY!M1944+ZADANIOWY!M1945+ZADANIOWY!M1946 -> 0 | I125: =0+ZADANIOWY!N1941+ZADANIOWY!N1942+ZADANIOWY!N1943+ZADANIOWY!N1944+ZADANIOWY!N1945+ZADANIOWY!N1946 -> 0 | J125: =0+ZADANIOWY!O1941+ZADANIOWY!O1942+ZADANIOWY!O1943+ZADANIOWY!O1944+ZADANIOWY!O1945+ZADANIOWY!O1946 -> 0 | K125: 0 | L125: 0
C126: 4307 | D126: Zakup usług pozostałych | E126: =0 -> 0 | F126: =0 -> 0 | G126: =0 -> 0 | H126: =0 -> 0 | I126: =0 -> 0 | J126: =0 -> 0 | K126: 0 | L126: 0
C127: 4309 | D127: Zakup usług pozostałych | E127: =0 -> 0 | F127: =0 -> 0 | G127: =0 -> 0 | H127: =0 -> 0 | I127: =0 -> 0 | J127: =0 -> 0 | K127: 0 | L127: 0
C128: 4360 | D128: Opłaty z tytułu zakupu usług telekomunikacyjnych | E128: =0+ZADANIOWY!J1947 -> 0 | F128: =0+ZADANIOWY!K1947 -> 0 | G128: =0+ZADANIOWY!L1947 -> 0 | H128: =0+ZADANIOWY!M1947 -> 0 | I128: =0+ZADANIOWY!N1947 -> 0 | J128: =0+ZADANIOWY!O1947 -> 0 | K128: 0 | L128: 0
C129: 4380 | D129: Zakup usług obejmujących tłumaczenia | E129: =0 -> 0 | F129: =0 -> 0 | G129: =0 -> 0 | H129: =0 -> 0 | I129: =0 -> 0 | J129: =0 -> 0 | K129: 0 | L129: 0
C130: 4390 | D130: Zakup usług obejmujących wykonanie ekspertyz, analiz i opinii | E130: =0+ZADANIOWY!J1948+ZADANIOWY!J1949 -> 0 | F130: =0+ZADANIOWY!K1948+ZADANIOWY!K1949 -> 0 | G130: =0+ZADANIOWY!L1948+ZADANIOWY!L1949 -> 0 | H130: =0+ZADANIOWY!M1948+ZADANIOWY!M1949 -> 0 | I130: =0+ZADANIOWY!N1948+ZADANIOWY!N1949 -> 0 | J130: =0+ZADANIOWY!O1948+ZADANIOWY!O1949 -> 0 | K130: 0 | L130: 0
C131: 4400 | D131: Opłaty za administrowanie i czynsze za budynki, lokale i pomieszczenia garażowe | E131: =0+ZADANIOWY!J1950 -> 0 | F131: =0+ZADANIOWY!K1950 -> 0 | G131: =0+ZADANIOWY!L1950 -> 0 | H131: =0+ZADANIOWY!M1950 -> 0 | I131: =0+ZADANIOWY!N1950 -> 0 | J131: =0+ZADANIOWY!O1950 -> 0 | K131: 0 | L131: 0
C132: 4410 | D132: Podróże służbowe krajowe | E132: =0+ZADANIOWY!J1951 -> 0 | F132: =0+ZADANIOWY!K1951 -> 0 | G132: =0+ZADANIOWY!L1951 -> 0 | H132: =0+ZADANIOWY!M1951 -> 0 | I132: =0+ZADANIOWY!N1951 -> 0 | J132: =0+ZADANIOWY!O1951 -> 0 | K132: 0 | L132: 0
C133: 4420 | D133: Podróże służbowe zagraniczne | E133: =0 -> 0 | F133: =0 -> 0 | G133: =0 -> 0 | H133: =0 -> 0 | I133: =0 -> 0 | J133: =0 -> 0 | K133: 0 | L133: 0
C134: 4430 | D134: Różne opłaty i składki | E134: =0+ZADANIOWY!J1952 -> 0 | F134: =0+ZADANIOWY!K1952 -> 0 | G134: =0+ZADANIOWY!L1952 -> 0 | H134: =0+ZADANIOWY!M1952 -> 0 | I134: =0+ZADANIOWY!N1952 -> 0 | J134: =0+ZADANIOWY!O1952 -> 0 | K134: 0 | L134: 0
C135: 4440 | D135: Odpisy na zakładowy fundusz świadczeń socjalnych | E135: =0+ZADANIOWY!J1953 -> 0 | F135: =0+ZADANIOWY!K1953 -> 0 | G135: =0+ZADANIOWY!L1953 -> 0 | H135: =0+ZADANIOWY!M1953 -> 0 | I135: =0+ZADANIOWY!N1953 -> 0 | J135: =0+ZADANIOWY!O1953 -> 0 | K135: 0 | L135: 0
C136: 4480 | D136: Podatek od nieruchomości | E136: =0+ZADANIOWY!J1954 -> 0 | F136: =0+ZADANIOWY!K1954 -> 0 | G136: =0+ZADANIOWY!L1954 -> 0 | H136: =0+ZADANIOWY!M1954 -> 0 | I136: =0+ZADANIOWY!N1954 -> 0 | J136: =0+ZADANIOWY!O1954 -> 0 | K136: 0 | L136: 0
C137: 4500 | D137: Pozostałe podatki na rzecz budżetów jednostek samorządu terytorialnego | E137: =0+ZADANIOWY!J1955 -> 0 | F137: =0+ZADANIOWY!K1955 -> 0 | G137: =0+ZADANIOWY!L1955 -> 0 | H137: =0+ZADANIOWY!M1955 -> 0 | I137: =0+ZADANIOWY!N1955 -> 0 | J137: =0+ZADANIOWY!O1955 -> 0 | K137: 0 | L137: 0
C138: 4510 | D138: Opłaty na rzecz budżetu państwa | E138: =0+ZADANIOWY!J1956 -> 0 | F138: =0+ZADANIOWY!K1956 -> 0 | G138: =0+ZADANIOWY!L1956 -> 0 | H138: =0+ZADANIOWY!M1956 -> 0 | I138: =0+ZADANIOWY!N1956 -> 0 | J138: =0+ZADANIOWY!O1956 -> 0 | K138: 0 | L138: 0
C139: 4520 | D139: Opłaty na rzecz budżetów jednostek samorządu terytorialnego | E139: =0+ZADANIOWY!J1957 -> 0 | F139: =0+ZADANIOWY!K1957 -> 0 | G139: =0+ZADANIOWY!L1957 -> 0 | H139: =0+ZADANIOWY!M1957 -> 0 | I139: =0+ZADANIOWY!N1957 -> 0 | J139: =0+ZADANIOWY!O1957 -> 0 | K139: 0 | L139: 0
C140: 4530 | D140: Podatek od towarów i usług (VAT) | E140: =0+ZADANIOWY!J1958 -> 0 | F140: =0+ZADANIOWY!K1958 -> 0 | G140: =0+ZADANIOWY!L1958 -> 0 | H140: =0+ZADANIOWY!M1958 -> 0 | I140: =0+ZADANIOWY!N1958 -> 0 | J140: =0+ZADANIOWY!O1958 -> 0 | K140: 0 | L140: 0
C141: 4580 | D141: Pozostałe odsetki | E141: =0+ZADANIOWY!J1959 -> 0 | F141: =0+ZADANIOWY!K1959 -> 0 | G141: =0+ZADANIOWY!L1959 -> 0 | H141: =0+ZADANIOWY!M1959 -> 0 | I141: =0+ZADANIOWY!N1959 -> 0 | J141: =0+ZADANIOWY!O1959 -> 0 | K141: 0 | L141: 0
C142: 4590 | D142: Kary i odszkodowania wypłacane na rzecz osób fizycznych | E142: =0+ZADANIOWY!J1960 -> 0 | F142: =0+ZADANIOWY!K1960 -> 0 | G142: =0+ZADANIOWY!L1960 -> 0 | H142: =0+ZADANIOWY!M1960 -> 0 | I142: =0+ZADANIOWY!N1960 -> 0 | J142: =0+ZADANIOWY!O1960 -> 0 | K142: 0 | L142: 0
C143: 4600 | D143: Kary, odszkodowania i grzywny wypłacane na rzecz osób prawnych i innych jednostek organizacyjnych | E143: =0 -> 0 | F143: =0 -> 0 | G143: =0 -> 0 | H143: =0 -> 0 | I143: =0 -> 0 | J143: =0 -> 0 | K143: 0 | L143: 0
C144: 4610 | D144: Koszty postępowania sądowego i prokuratorskiego | E144: =0+ZADANIOWY!J1961 -> 0 | F144: =0+ZADANIOWY!K1961 -> 0 | G144: =0+ZADANIOWY!L1961 -> 0 | H144: =0+ZADANIOWY!M1961 -> 0 | I144: =0+ZADANIOWY!N1961 -> 0 | J144: =0+ZADANIOWY!O1961 -> 0 | K144: 0 | L144: 0
C145: 4680 | D145: Odsetki od nieterminowych wpłat podatku od towarów i usług (VAT) | E145: =0 -> 0 | F145: =0 -> 0 | G145: =0 -> 0 | H145: =0 -> 0 | I145: =0 -> 0 | J145: =0 -> 0 | K145: 0 | L145: 0
C146: 4700 | D146: Szkolenia pracowników niebędących członkami korpusu służby cywilnej | E146: =0+ZADANIOWY!J1962 -> 0 | F146: =0+ZADANIOWY!K1962 -> 0 | G146: =0+ZADANIOWY!L1962 -> 0 | H146: =0+ZADANIOWY!M1962 -> 0 | I146: =0+ZADANIOWY!N1962 -> 0 | J146: =0+ZADANIOWY!O1962 -> 0 | K146: 0 | L146: 0
C147: 4710 | D147: Wpłaty na PPK finansowane przez podmiot zatrudniający | E147: =0+ZADANIOWY!J1963 -> 0 | F147: =0+ZADANIOWY!K1963 -> 0 | G147: =0+ZADANIOWY!L1963 -> 0 | H147: =0+ZADANIOWY!M1963 -> 0 | I147: =0+ZADANIOWY!N1963 -> 0 | J147: =0+ZADANIOWY!O1963 -> 0 | K147: 0 | L147: 0
B148: 02095 | D148: Pozostała działalność | E148: =SUM(E149,E158) -> 0 | F148: 0 | G148: 0 | H148: 0 | I148: 0 | J148: 0 | K148: 0 | L148: 0
D149: WYDATKI BIEŻĄCE | E149: =SUM(E150,E153:E157) -> 0 | F149: 0 | G149: 0 | H149: 0 | I149: 0 | J149: 0 | K149: 0 | L149: 0
D150: Wydatki jednostek budżetowych w tym na: | E150: =SUM(E151:E152) -> 0 | F150: 0 | G150: 0 | H150: 0 | I150: 0 | J150: 0 | K150: 0 | L150: 0
D151: wynagrodzenia i składki od nich naliczane | E151: =SUM(E159:E161) -> 0 | F151: 0 | G151: 0 | H151: 0 | I151: 0 | J151: 0 | K151: 0 | L151: 0
D152: wydatki związane z realizacją ich zadań statutowych | E152: =SUM(E162:E164) -> 0 | F152: 0 | G152: 0 | H152: 0 | I152: 0 | J152: 0 | K152: 0 | L152: 0
D153: Dotacje na zadania bieżące
D154: Świadczenia na rzecz osób fizycznych
D155: Wydatki na programy finansowane z UE
D156: Obsługa długu
D157: Poręczenia i gwarancje
D158: WYDATKI MAJĄTKOWE
C159: 4110 | D159: Składki na ubezpieczenia społeczne | E159: =0 -> 0 | F159: =0 -> 0 | G159: =0 -> 0 | H159: =0 -> 0 | I159: =0 -> 0 | J159: =0 -> 0 | K159: 0 | L159: 0
C160: 4120 | D160: Składki na Fundusz Pracy oraz Fundusz Solidarnościowy | E160: =0 -> 0 | F160: =0 -> 0 | G160: =0 -> 0 | H160: =0 -> 0 | I160: =0 -> 0 | J160: =0 -> 0 | K160: 0 | L160: 0
C161: 4170 | D161: Wynagrodzenia bezosobowe | E161: =0 -> 0 | F161: =0 -> 0 | G161: =0 -> 0 | H161: =0 -> 0 | I161: =0 -> 0 | J161: =0 -> 0 | K161: =E161-G161+H161 -> 0 | L161: =F161-I161+J161 -> 0 | M161: =IF(SUM(E161:L161)>0,"Tak","") ->  | N161: =IF(SUM(G161:J161)>0,"Tak","") ->  | O161: =IF(OR(E161<F161,K161<L161,G161<I161,H161<J161),"błędny urząd","") ->  | P161: =IF(OR(E161<0,F161<0,K161<0,L161<0),"ujemny plan","") -> 
C162: 4270 | D162: Zakup usług remontowych | E162: =0 -> 0 | F162: =0 -> 0 | G162: =0 -> 0 | H162: =0 -> 0 | I162: =0 -> 0 | J162: =0 -> 0 | K162: 0 | L162: 0
C163: 4300 | D163: Zakup usług pozostałych | E163: =0 -> 0 | F163: =0 -> 0 | G163: =0 -> 0 | H163: =0 -> 0 | I163: =0 -> 0 | J163: =0 -> 0 | K163: 0 | L163: 0
C164: 4500 | D164: Pozostałe podatki na rzecz budżetów jednostek samorządu terytorialnego | E164: =0 -> 0 | F164: =0 -> 0 | G164: =0 -> 0 | H164: =0 -> 0 | I164: =0 -> 0 | J164: =0 -> 0 | K164: 0 | L164: 0
A165: 400 | D165: Wytwarzanie i zaopatrywanie w energię elektryczną, gaz i wodę | E165: =SUM(E166,E175) -> 2325908 | F165: 2325908 | G165: 0 | H165: 0 | I165: 0 | J165: 0 | K165: 2325908 | L165: 2325908 | M165: Tak
D166: WYDATKI BIEŻĄCE | E166: =SUM(E167,E170:E174) -> 825908 | F166: 825908 | G166: 0 | H166: 0 | I166: 0 | J166: 0 | K166: 825908 | L166: 825908 | M166: Tak
D167: Wydatki jednostek budżetowych w tym na: | E167: =SUM(E168:E169) -> 825908 | F167: 825908 | G167: 0 | H167: 0 | I167: 0 | J167: 0 | K167: 825908 | L167: 825908 | M167: Tak
D168: wynagrodzenia i składki od nich naliczane | E168: =SUM(E179,E194,E223) -> 0 | F168: 0 | G168: 0 | H168: 0 | I168: 0 | J168: 0 | K168: 0 | L168: 0
D169: wydatki związane z realizacją ich zadań statutowych | E169: =SUM(E180,E195,E224) -> 825908 | F169: 825908 | G169: 0 | H169: 0 | I169: 0 | J169: 0 | K169: 825908 | L169: 825908 | M169: Tak
D170: Dotacje na zadania bieżące | E170: 0 | F170: 0 | G170: 0 | H170: 0 | I170: 0 | J170: 0 | K170: 0 | L170: 0
D171: Świadczenia na rzecz osób fizycznych | E171: 0 | F171: 0 | G171: 0 | H171: 0 | I171: 0 | J171: 0 | K171: 0 | L171: 0
D172: Wydatki na programy finansowane z UE | E172: 0 | F172: 0 | G172: 0 | H172: 0 | I172: 0 | J172: 0 | K172: 0 | L172: 0
D173: Obsługa długu | E173: 0 | F173: 0 | G173: 0 | H173: 0 | I173: 0 | J173: 0 | K173: 0 | L173: 0
D174: Poręczenia i gwarancje | E174: 0 | F174: 0 | G174: 0 | H174: 0 | I174: 0 | J174: 0 | K174: 0 | L174: 0
D175: WYDATKI MAJĄTKOWE | E175: 1500000 | F175: 1500000 | G175: 0 | H175: 0 | I175: 0 | J175: 0 | K175: 1500000 | L175: 1500000 | M175: Tak
B176: 40001 | E176: =SUM(E177,E186) -> 0 | F176: 0 | G176: 0 | H176: 0 | I176: 0 | J176: 0 | K176: 0 | L176: 0
D177: WYDATKI BIEŻĄCE | E177: =SUM(E178,E181:E185) -> 0 | F177: 0 | G177: 0 | H177: 0 | I177: 0 | J177: 0 | K177: 0 | L177: 0
D178: Wydatki jednostek budżetowych w tym na: | E178: =SUM(E179:E180) -> 0 | F178: 0 | G178: 0 | H178: 0 | I178: 0 | J178: 0 | K178: 0 | L178: 0
D179: wynagrodzenia i składki od nich naliczane | E179: =SUM(E188:E190) -> 0 | F179: 0 | G179: 0 | H179: 0 | I179: 0 | J179: 0 | K179: 0 | L179: 0
D180: wydatki związane z realizacją ich zadań statutowych | E180: =SUM(E187) -> 0 | F180: 0 | G180: 0 | H180: 0 | I180: 0 | J180: 0 | K180: 0 | L180: 0
D181: Dotacje na zadania bieżące
D182: Świadczenia na rzecz osób fizycznych
D183: Wydatki na programy finansowane z UE
D184: Obsługa długu
D185: Poręczenia i gwarancje
D186: WYDATKI MAJĄTKOWE
C187: 2970 | E187: =0+ZADANIOWY!J2021 -> 0 | F187: =0+ZADANIOWY!K2021 -> 0 | G187: =0+ZADANIOWY!L2021 -> 0 | H187: =0+ZADANIOWY!M2021 -> 0 | I187: =0+ZADANIOWY!N2021 -> 0 | J187: =0+ZADANIOWY!O2021 -> 0 | K187: 0 | L187: 0
C188: 4010 | E188: =0+ZADANIOWY!J9070 -> 0 | F188: =0+ZADANIOWY!K9070 -> 0 | G188: =0+ZADANIOWY!L9070 -> 0 | H188: =0+ZADANIOWY!M9070 -> 0 | I188: =0+ZADANIOWY!N9070 -> 0 | J188: =0+ZADANIOWY!O9070 -> 0 | K188: 0 | L188: 0
C189: 4110 | E189: =0+ZADANIOWY!J9071 -> 0 | F189: =0+ZADANIOWY!K9071 -> 0 | G189: =0+ZADANIOWY!L9071 -> 0 | H189: =0+ZADANIOWY!M9071 -> 0 | I189: =0+ZADANIOWY!N9071 -> 0 | J189: =0+ZADANIOWY!O9071 -> 0 | K189: 0 | L189: 0
C190: 4120 | E190: =0+ZADANIOWY!J9072 -> 0 | F190: =0+ZADANIOWY!K9072 -> 0 | G190: =0+ZADANIOWY!L9072 -> 0 | H190: =0+ZADANIOWY!M9072 -> 0 | I190: =0+ZADANIOWY!N9072 -> 0 | J190: =0+ZADANIOWY!O9072 -> 0 | K190: 0 | L190: 0
B191: 40002 | D191: Dostarczanie wody | E191: =SUM(E192,E201) -> 2325908 | F191: 2325908 | G191: 0 | H191: 0 | I191: 0 | J191: 0 | K191: 2325908 | L191: 2325908 | M191: Tak
D192: WYDATKI BIEŻĄCE | E192: =SUM(E193,E196:E200) -> 825908 | F192: 825908 | G192: 0 | H192: 0 | I192: 0 | J192: 0 | K192: 825908 | L192: 825908 | M192: Tak
D193: Wydatki jednostek budżetowych w tym na: | E193: =SUM(E194:E195) -> 825908 | F193: 825908 | G193: 0 | H193: 0 | I193: 0 | J193: 0 | K193: 825908 | L193: 825908 | M193: Tak
D194: wynagrodzenia i składki od nich naliczane | E194: =SUM(E202:E204) -> 0 | F194: 0 | G194: 0 | H194: 0 | I194: 0 | J194: 0 | K194: 0 | L194: 0
D195: wydatki związane z realizacją ich zadań statutowych | E195: =SUM(E205:E217) -> 825908 | F195: 825908 | G195: 0 | H195: 0 | I195: 0 | J195: 0 | K195: 825908 | L195: 825908 | M195: Tak
D196: Dotacje na zadania bieżące
D197: Świadczenia na rzecz osób fizycznych
D198: Wydatki na programy finansowane z UE
D199: Obsługa długu
D200: Poręczenia i gwarancje
D201: WYDATKI MAJĄTKOWE | E201: =SUM(E218:E219) -> 1500000 | F201: 1500000 | G201: 0 | H201: 0 | I201: 0 | J201: 0 | K201: 1500000 | L201: 1500000 | M201: Tak
... 4299 more rows

Sheet ZADANIOWY
A1: PLAN WYDATKÓW w UKŁADZIE ZADANIOWYM | O1: Załącznik Nr 2 do uchwały Nr 343/2025 Zarządu Dzielnicy Bemowo m.st. Warszawy z dnia 25 kwietnia 2025 r. | V1: =IF(COUNTA(V2:V15067)=0,"",COUNTA(V2:V15067)) -> 
A2: D.01.000 | F2: =IF(OR(T3<>"",U3<>""),"Istnieją błędy","") ->  | J2: =J10706 -> 585206628 | K2: 241939118 | L2: 890000 | M2: 890000 | N2: 890000 | O2: 890000 | P2: 585129368 | Q2: 241890758
A3: PROGRAM | B3: OPIS | C3: S/P/Z/PZ | D3: Header | E3: DZIAŁ | F3: ROZDZIAŁ | G3: § | H3: NAZWA PARAGRAFU | I3: OBSZAR FUNKCJONALNY | J3: PLAN | K3: w tym Urząd m.st. Warszawy | L3: PLAN Zmiana[-] | M3: PLAN Zmiana[+] | N3: w tym Urząd Zmiana[-] | O3: w tym Urząd Zmiana[+] | P3: PLAN PO ZMIANIE | Q3: w tym Urząd PO ZMIANIE | R3: WYPEŁNIONE POZYCJE | S3: WYPEŁNIONE ZMIANY | T3: =IF(COUNTIF(T4:T10705,"błędny urząd")<>0,"ŹLE","") ->  | U3: =IF(COUNTIF(U4:U10705,"ujemny plan")<>0,"ŹLE","") -> 
A4: I | B4: TRANSPORT I KOMUNIKACJA | C4: I sfera | D4: T | J4: =SUM(J204,J5) -> 7222432 | K4: 7222432 | L4: 0 | M4: 0 | N4: 0 | O4: 0 | P4: 7222432 | Q4: 7222432 | R4: =IF(SUM(J4:Q4)>0,"Tak","") -> Tak | S4: =IF(SUM(L4:O4)>0,"Tak","") ->  | T4: =IF(OR(J4<K4,P4<Q4,L4<N4,M4<O4),"błędny urząd","") ->  | U4: =IF(OR(J4<0,K4<0,P4<0,Q4<0),"ujemny plan","") -> 
A5: I/1 | B5: Komunikacja zbiorowa | C5: 1 program | D5: T | J5: =SUM(J193,J182,J38,J6) -> 19000 | K5: 19000 | L5: 0 | M5: 0 | N5: 0 | O5: 0 | P5: 19000 | Q5: 19000 | R5: Tak
A6: B/I/1/1 | B6: Zakup usług komunikacji miejskiej | C6: 1 zadanie | D6: T | J6: =SUM(J34,J30,J26,J19,J11,J7) -> 0 | K6: 0 | L6: 0 | M6: 0 | N6: 0 | O6: 0 | P6: 0 | Q6: 0
A7: B/I/1/1/1 | B7: Metro Warszawskie | C7: 1 podzadanie | D7: T | E7: 600 | F7: 60004 | J7: =SUM(J8) -> 0 | K7: 0 | L7: 0 | M7: 0 | N7: 0 | O7: 0 | P7: 0 | Q7: 0
A8: B/I/1/1/1 | B8: Metro Warszawskie | C8: 1 podzadanie | D8: NIE | E8: 600 | F8: 60004 | J8: =SUM(J9:J10) -> 0 | K8: 0 | L8: 0 | M8: 0 | N8: 0 | O8: 0 | P8: 0 | Q8: 0
A9: B/I/1/1/1 | B9: Metro Warszawskie | C9: 1 podzadanie | D9: NIE | E9: 600 | F9: 60004 | G9: 4300 | H9: Zakup usług pozostałych | I9: GMMW | P9: =J9+M9-L9 -> 0 | Q9: =K9+O9-N9 -> 0 | R9: =IF(SUM(J9:Q9)>0,"Tak","") ->  | S9: =IF(SUM(L9:O9)>0,"Tak","") ->  | T9: =IF(OR(J9<K9,P9<Q9,L9<N9,M9<O9),"błędny urząd","") ->  | U9: =IF(OR(J9<0,K9<0,P9<0,Q9<0),"ujemny plan","") -> 
A10: B/I/1/1/1 | B10: Metro Warszawskie | C10: 1 podzadanie | D10: NIE | E10: 600 | F10: 60004 | G10: 4530 | H10: Podatek od towarów i usług (VAT) | I10: GMMW | P10: =J10+M10-L10 -> 0 | Q10: =K10+O10-N10 -> 0 | R10: =IF(SUM(J10:Q10)>0,"Tak","") ->  | S10: =IF(SUM(L10:O10)>0,"Tak","") ->  | T10: =IF(OR(J10<K10,P10<Q10,L10<N10,M10<O10),"błędny urząd","") ->  | U10: =IF(OR(J10<0,K10<0,P10<0,Q10<0),"ujemny plan","") -> 
A11: B/I/1/1/2 | B11: Miejskie Zakłady Autobusowe | C11: 2 podzadanie | D11: T | E11: 600 | F11: 60004 | J11: =SUM(J12) -> 0 | K11: 0 | L11: 0 | M11: 0 | N11: 0 | O11: 0 | P11: 0 | Q11: 0
A12: B/I/1/1/2 | B12: Miejskie Zakłady Autobusowe | C12: 2 podzadanie | D12: NIE | E12: 600 | F12: 60004 | J12: =SUM(J13:J18) -> 0 | K12: 0 | L12: 0 | M12: 0 | N12: 0 | O12: 0 | P12: 0 | Q12: 0
A13: B/I/1/1/2 | B13: Miejskie Zakłady Autobusowe | C13: 2 podzadanie | D13: NIE | E13: 600 | F13: 60004 | G13: 4300 | H13: Zakup usług pozostałych | I13: GUUW | P13: 0 | Q13: 0
A14: B/I/1/1/2 | B14: Miejskie Zakłady Autobusowe | C14: 2 podzadanie | D14: NIE | E14: 600 | F14: 60004 | G14: 4300 | H14: Zakup usług pozostałych | I14: GMMW | P14: 0 | Q14: 0
A15: B/I/1/1/2 | B15: Miejskie Zakłady Autobusowe | C15: 2 podzadanie | D15: NIE | E15: 600 | F15: 60004 | G15: 4300 | H15: Zakup usług pozostałych | I15: GPGM | P15: 0 | Q15: 0
A16: B/I/1/1/2 | B16: Miejskie Zakłady Autobusowe | C16: 2 podzadanie | D16: NIE | E16: 600 | F16: 60004 | G16: 4370 | H16: Zakup usług związanych z pomocą obywatelom Ukrainy | I16: GUUW | P16: 0 | Q16: 0
A17: B/I/1/1/2 | B17: Miejskie Zakłady Autobusowe | C17: 2 podzadanie | D17: NIE | E17: 600 | F17: 60004 | G17: 4530 | H17: Podatek od towarów i usług (VAT) | I17: GUUW | P17: 0 | Q17: 0
A18: B/I/1/1/2 | B18: Miejskie Zakłady Autobusowe | C18: 2 podzadanie | D18: NIE | E18: 600 | F18: 60004 | G18: 4530 | H18: Podatek od towarów i usług (VAT) | I18: GMMW | P18: 0 | Q18: 0
A19: B/I/1/1/3 | B19: Pozostali przewoźnicy autobusowi | C19: 3 podzadanie | D19: T | E19: 600 | F19: 60004 | J19: =SUM(J20) -> 0 | K19: 0 | L19: 0 | M19: 0 | N19: 0 | O19: 0 | P19: 0 | Q19: 0
A20: B/I/1/1/3 | B20: Pozostali przewoźnicy autobusowi | C20: 3 podzadanie | D20: NIE | E20: 600 | F20: 60004 | J20: =SUM(J21:J25) -> 0 | K20: 0 | L20: 0 | M20: 0 | N20: 0 | O20: 0 | P20: 0 | Q20: 0
A21: B/I/1/1/3 | B21: Pozostali przewoźnicy autobusowi | C21: 3 podzadanie | D21: NIE | E21: 600 | F21: 60004 | G21: 4300 | H21: Zakup usług pozostałych | I21: GUUW | P21: 0 | Q21: 0
A22: B/I/1/1/3 | B22: Pozostali przewoźnicy autobusowi | C22: 3 podzadanie | D22: NIE | E22: 600 | F22: 60004 | G22: 4300 | H22: Zakup usług pozostałych | I22: GMMW | P22: 0 | Q22: 0
A23: B/I/1/1/3 | B23: Pozostali przewoźnicy autobusowi | C23: 3 podzadanie | D23: NIE | E23: 600 | F23: 60004 | G23: 4370 | H23: Zakup usług związanych z pomocą obywatelom Ukrainy | I23: GUUW | P23: 0 | Q23: 0
A24: B/I/1/1/3 | B24: Pozostali przewoźnicy autobusowi | C24: 3 podzadanie | D24: NIE | E24: 600 | F24: 60004 | G24: 4530 | H24: Podatek od towarów i usług (VAT) | I24: GUUW | P24: 0 | Q24: 0
A25: B/I/1/1/3 | B25: Pozostali przewoźnicy autobusowi | C25: 3 podzadanie | D25: NIE | E25: 600 | F25: 60004 | G25: 4530 | H25: Podatek od towarów i usług (VAT) | I25: GMMW | P25: 0 | Q25: 0
A26: B/I/1/1/4 | B26: Szybka Kolej Miejska | C26: 4 podzadanie | D26: T | E26: 600 | F26: 60004 | J26: =SUM(J27) -> 0 | K26: 0 | L26: 0 | M26: 0 | N26: 0 | O26: 0 | P26: 0 | Q26: 0
A27: B/I/1/1/4 | B27: Szybka Kolej Miejska | C27: 4 podzadanie | D27: NIE | E27: 600 | F27: 60004 | J27: =SUM(J28:J29) -> 0 | K27: 0 | L27: 0 | M27: 0 | N27: 0 | O27: 0 | P27: 0 | Q27: 0
A28: B/I/1/1/4 | B28: Szybka Kolej Miejska | C28: 4 podzadanie | D28: NIE | E28: 600 | F28: 60004 | G28: 4300 | H28: Zakup usług pozostałych | I28: GMMW | P28: 0 | Q28: 0
A29: B/I/1/1/4 | B29: Szybka Kolej Miejska | C29: 4 podzadanie | D29: NIE | E29: 600 | F29: 60004 | G29: 4530 | H29: Podatek od towarów i usług (VAT) | I29: GMMW | P29: 0 | Q29: 0
A30: B/I/1/1/5 | B30: Tramwaje Warszawskie | C30: 5 podzadanie | D30: T | E30: 600 | F30: 60004 | J30: =SUM(J31) -> 0 | K30: 0 | L30: 0 | M30: 0 | N30: 0 | O30: 0 | P30: 0 | Q30: 0
A31: B/I/1/1/5 | B31: Tramwaje Warszawskie | C31: 5 podzadanie | D31: NIE | E31: 600 | F31: 60004 | J31: =SUM(J32:J33) -> 0 | K31: 0 | L31: 0 | M31: 0 | N31: 0 | O31: 0 | P31: 0 | Q31: 0
A32: B/I/1/1/5 | B32: Tramwaje Warszawskie | C32: 5 podzadanie | D32: NIE | E32: 600 | F32: 60004 | G32: 4300 | H32: Zakup usług pozostałych | I32: GMMW | P32: 0 | Q32: 0
A33: B/I/1/1/5 | B33: Tramwaje Warszawskie | C33: 5 podzadanie | D33: NIE | E33: 600 | F33: 60004 | G33: 4530 | H33: Podatek od towarów i usług (VAT) | I33: GMMW | P33: 0 | Q33: 0
A34: B/I/1/1/6 | B34: Pozostali przewoźnicy kolejowi | C34: 6 podzadanie | D34: T | E34: 600 | F34: 60004 | J34: =SUM(J35) -> 0 | K34: 0 | L34: 0 | M34: 0 | N34: 0 | O34: 0 | P34: 0 | Q34: 0
A35: B/I/1/1/6 | B35: Pozostali przewoźnicy kolejowi | C35: 6 podzadanie | D35: NIE | E35: 600 | F35: 60004 | J35: =SUM(J36:J37) -> 0 | K35: 0 | L35: 0 | M35: 0 | N35: 0 | O35: 0 | P35: 0 | Q35: 0
A36: B/I/1/1/6 | B36: Pozostali przewoźnicy kolejowi | C36: 6 podzadanie | D36: NIE | E36: 600 | F36: 60004 | G36: 4300 | H36: Zakup usług pozostałych | I36: GMMW | P36: 0 | Q36: 0
A37: B/I/1/1/6 | B37: Pozostali przewoźnicy kolejowi | C37: 6 podzadanie | D37: NIE | E37: 600 | F37: 60004 | G37: 4530 | H37: Podatek od towarów i usług (VAT) | I37: GMMW | P37: 0 | Q37: 0
A38: B/I/1/2 | B38: Zarządzanie komunikacją miejską | C38: 2 zadanie | D38: T | J38: =SUM(J135,J125,J39) -> 19000 | K38: 19000 | L38: 0 | M38: 0 | N38: 0 | O38: 0 | P38: 19000 | Q38: 19000 | R38: Tak
A39: B/I/1/2/1 | B39: Utrzymanie Zarządu Transportu Miejskiego, w tym obsługa inwestycji | C39: 1 podzadanie | D39: T | E39: 600 | F39: 60004 | J39: =SUM(J121,J40) -> 0 | K39: 0 | L39: 0 | M39: 0 | N39: 0 | O39: 0 | P39: 0 | Q39: 0
A40: B/I/1/2/1 | B40: Utrzymanie Zarządu Transportu Miejskiego, w tym obsługa inwestycji | C40: 1 podzadanie | D40: NIE | E40: 600 | F40: 60004 | J40: =SUM(J41:J86,J90:J112,J116:J120) -> 0 | K40: 0 | L40: 0 | M40: 0 | N40: 0 | O40: 0 | P40: 0 | Q40: 0
A41: B/I/1/2/1 | B41: Utrzymanie Zarządu Transportu Miejskiego, w tym obsługa inwestycji | C41: 1 podzadanie | D41: NIE | E41: 600 | F41: 60004 | G41: 3020 | H41: Wydatki osobowe niezaliczone do wynagrodzeń | I41: GMMW | P41: 0 | Q41: 0
A42: B/I/1/2/1 | B42: Utrzymanie Zarządu Transportu Miejskiego, w tym obsługa inwestycji | C42: 1 podzadanie | D42: NIE | E42: 600 | F42: 60004 | G42: 4010 | H42: Wynagrodzenia osobowe pracowników | I42: GMMW | P42: 0 | Q42: 0
A43: B/I/1/2/1 | B43: Utrzymanie Zarządu Transportu Miejskiego, w tym obsługa inwestycji | C43: 1 podzadanie | D43: NIE | E43: 600 | F43: 60004 | G43: 4017 | H43: Wynagrodzenia osobowe pracowników | I43: SFUE/23/6 | P43: 0 | Q43: 0
A44: B/I/1/2/1 | B44: Utrzymanie Zarządu Transportu Miejskiego, w tym obsługa inwestycji | C44: 1 podzadanie | D44: NIE | E44: 600 | F44: 60004 | G44: 4018 | H44: Wynagrodzenia osobowe pracowników | I44: SFUE/8/59 | P44: 0 | Q44: 0
A45: B/I/1/2/1 | B45: Utrzymanie Zarządu Transportu Miejskiego, w tym obsługa inwestycji | C45: 1 podzadanie | D45: NIE | E45: 600 | F45: 60004 | G45: 4018 | H45: Wynagrodzenia osobowe pracowników | I45: SFUE/8/60 | P45: 0 | Q45: 0
A46: B/I/1/2/1 | B46: Utrzymanie Zarządu Transportu Miejskiego, w tym obsługa inwestycji | C46: 1 podzadanie | D46: NIE | E46: 600 | F46: 60004 | G46: 4018 | H46: Wynagrodzenia osobowe pracowników | I46: SFUE/8/61 | P46: 0 | Q46: 0
A47: B/I/1/2/1 | B47: Utrzymanie Zarządu Transportu Miejskiego, w tym obsługa inwestycji | C47: 1 podzadanie | D47: NIE | E47: 600 | F47: 60004 | G47: 4019 | H47: Wynagrodzenia osobowe pracowników | I47: SFUE/23/6 | P47: 0 | Q47: 0
A48: B/I/1/2/1 | B48: Utrzymanie Zarządu Transportu Miejskiego, w tym obsługa inwestycji | C48: 1 podzadanie | D48: NIE | E48: 600 | F48: 60004 | G48: 4019 | H48: Wynagrodzenia osobowe pracowników | I48: SFUE/8/60 | P48: 0 | Q48: 0
A49: B/I/1/2/1 | B49: Utrzymanie Zarządu Transportu Miejskiego, w tym obsługa inwestycji | C49: 1 podzadanie | D49: NIE | E49: 600 | F49: 60004 | G49: 4019 | H49: Wynagrodzenia osobowe pracowników | I49: SFUE/8/61 | P49: 0 | Q49: 0
A50: B/I/1/2/1 | B50: Utrzymanie Zarządu Transportu Miejskiego, w tym obsługa inwestycji | C50: 1 podzadanie | D50: NIE | E50: 600 | F50: 60004 | G50: 4040 | H50: Dodatkowe wynagrodzenie roczne | I50: GMMW | P50: 0 | Q50: 0
A51: B/I/1/2/1 | B51: Utrzymanie Zarządu Transportu Miejskiego, w tym obsługa inwestycji | C51: 1 podzadanie | D51: NIE | E51: 600 | F51: 60004 | G51: 4047 | H51: Dodatkowe wynagrodzenie roczne | I51: SFUE/23/6 | P51: 0 | Q51: 0
A52: B/I/1/2/1 | B52: Utrzymanie Zarządu Transportu Miejskiego, w tym obsługa inwestycji | C52: 1 podzadanie | D52: NIE | E52: 600 | F52: 60004 | G52: 4048 | H52: Dodatkowe wynagrodzenie roczne | I52: SFUE/8/59 | P52: 0 | Q52: 0
A53: B/I/1/2/1 | B53: Utrzymanie Zarządu Transportu Miejskiego, w tym obsługa inwestycji | C53: 1 podzadanie | D53: NIE | E53: 600 | F53: 60004 | G53: 4049 | H53: Dodatkowe wynagrodzenie roczne | I53: SFUE/23/6 | P53: 0 | Q53: 0
A54: B/I/1/2/1 | B54: Utrzymanie Zarządu Transportu Miejskiego, w tym obsługa inwestycji | C54: 1 podzadanie | D54: NIE | E54: 600 | F54: 60004 | G54: 4110 | H54: Składki na ubezpieczenia społeczne | I54: GMMW | P54: 0 | Q54: 0
A55: B/I/1/2/1 | B55: Utrzymanie Zarządu Transportu Miejskiego, w tym obsługa inwestycji | C55: 1 podzadanie | D55: NIE | E55: 600 | F55: 60004 | G55: 4117 | H55: Składki na ubezpieczenia społeczne | I55: SFUE/23/6 | P55: 0 | Q55: 0
A56: B/I/1/2/1 | B56: Utrzymanie Zarządu Transportu Miejskiego, w tym obsługa inwestycji | C56: 1 podzadanie | D56: NIE | E56: 600 | F56: 60004 | G56: 4118 | H56: Składki na ubezpieczenia społeczne | I56: SFUE/8/59 | P56: 0 | Q56: 0
A57: B/I/1/2/1 | B57: Utrzymanie Zarządu Transportu Miejskiego, w tym obsługa inwestycji | C57: 1 podzadanie | D57: NIE | E57: 600 | F57: 60004 | G57: 4118 | H57: Składki na ubezpieczenia społeczne | I57: SFUE/8/60 | P57: 0 | Q57: 0
A58: B/I/1/2/1 | B58: Utrzymanie Zarządu Transportu Miejskiego, w tym obsługa inwestycji | C58: 1 podzadanie | D58: NIE | E58: 600 | F58: 60004 | G58: 4118 | H58: Składki na ubezpieczenia społeczne | I58: SFUE/8/61 | P58: 0 | Q58: 0
A59: B/I/1/2/1 | B59: Utrzymanie Zarządu Transportu Miejskiego, w tym obsługa inwestycji | C59: 1 podzadanie | D59: NIE | E59: 600 | F59: 60004 | G59: 4119 | H59: Składki na ubezpieczenia społeczne | I59: SFUE/23/6 | P59: 0 | Q59: 0
A60: B/I/1/2/1 | B60: Utrzymanie Zarządu Transportu Miejskiego, w tym obsługa inwestycji | C60: 1 podzadanie | D60: NIE | E60: 600 | F60: 60004 | G60: 4119 | H60: Składki na ubezpieczenia społeczne | I60: SFUE/8/60 | P60: 0 | Q60: 0
A61: B/I/1/2/1 | B61: Utrzymanie Zarządu Transportu Miejskiego, w tym obsługa inwestycji | C61: 1 podzadanie | D61: NIE | E61: 600 | F61: 60004 | G61: 4119 | H61: Składki na ubezpieczenia społeczne | I61: SFUE/8/61 | P61: 0 | Q61: 0
A62: B/I/1/2/1 | B62: Utrzymanie Zarządu Transportu Miejskiego, w tym obsługa inwestycji | C62: 1 podzadanie | D62: NIE | E62: 600 | F62: 60004 | G62: 4120 | H62: Składki na Fundusz Pracy oraz Fundusz Solidarnościowy | I62: GMMW | P62: 0 | Q62: 0
A63: B/I/1/2/1 | B63: Utrzymanie Zarządu Transportu Miejskiego, w tym obsługa inwestycji | C63: 1 podzadanie | D63: NIE | E63: 600 | F63: 60004 | G63: 4127 | H63: Składki na Fundusz Pracy oraz Fundusz Solidarnościowy | I63: SFUE/23/6 | P63: 0 | Q63: 0
A64: B/I/1/2/1 | B64: Utrzymanie Zarządu Transportu Miejskiego, w tym obsługa inwestycji | C64: 1 podzadanie | D64: NIE | E64: 600 | F64: 60004 | G64: 4128 | H64: Składki na Fundusz Pracy oraz Fundusz Solidarnościowy | I64: SFUE/8/59 | P64: 0 | Q64: 0
A65: B/I/1/2/1 | B65: Utrzymanie Zarządu Transportu Miejskiego, w tym obsługa inwestycji | C65: 1 podzadanie | D65: NIE | E65: 600 | F65: 60004 | G65: 4128 | H65: Składki na Fundusz Pracy oraz Fundusz Solidarnościowy | I65: SFUE/8/60 | P65: 0 | Q65: 0
A66: B/I/1/2/1 | B66: Utrzymanie Zarządu Transportu Miejskiego, w tym obsługa inwestycji | C66: 1 podzadanie | D66: NIE | E66: 600 | F66: 60004 | G66: 4128 | H66: Składki na Fundusz Pracy oraz Fundusz Solidarnościowy | I66: SFUE/8/61 | P66: 0 | Q66: 0
A67: B/I/1/2/1 | B67: Utrzymanie Zarządu Transportu Miejskiego, w tym obsługa inwestycji | C67: 1 podzadanie | D67: NIE | E67: 600 | F67: 60004 | G67: 4129 | H67: Składki na Fundusz Pracy oraz Fundusz Solidarnościowy | I67: SFUE/23/6 | P67: 0 | Q67: 0
A68: B/I/1/2/1 | B68: Utrzymanie Zarządu Transportu Miejskiego, w tym obsługa inwestycji | C68: 1 podzadanie | D68: NIE | E68: 600 | F68: 60004 | G68: 4129 | H68: Składki na Fundusz Pracy oraz Fundusz Solidarnościowy | I68: SFUE/8/60 | P68: 0 | Q68: 0
A69: B/I/1/2/1 | B69: Utrzymanie Zarządu Transportu Miejskiego, w tym obsługa inwestycji | C69: 1 podzadanie | D69: NIE | E69: 600 | F69: 60004 | G69: 4129 | H69: Składki na Fundusz Pracy oraz Fundusz Solidarnościowy | I69: SFUE/8/61 | P69: 0 | Q69: 0
A70: B/I/1/2/1 | B70: Utrzymanie Zarządu Transportu Miejskiego, w tym obsługa inwestycji | C70: 1 podzadanie | D70: NIE | E70: 600 | F70: 60004 | G70: 4140 | H70: Wpłaty na Państwowy Fundusz Rehabilitacji Osób Niepełnosprawnych | I70: GMMW | P70: 0 | Q70: 0
A71: B/I/1/2/1 | B71: Utrzymanie Zarządu Transportu Miejskiego, w tym obsługa inwestycji | C71: 1 podzadanie | D71: NIE | E71: 600 | F71: 60004 | G71: 4170 | H71: Wynagrodzenia bezosobowe | I71: GMMW | P71: 0 | Q71: 0
A72: B/I/1/2/1 | B72: Utrzymanie Zarządu Transportu Miejskiego, w tym obsługa inwestycji | C72: 1 podzadanie | D72: NIE | E72: 600 | F72: 60004 | G72: 4190 | H72: Nagrody konkursowe | I72: GMMW | P72: 0 | Q72: 0
A73: B/I/1/2/1 | B73: Utrzymanie Zarządu Transportu Miejskiego, w tym obsługa inwestycji | C73: 1 podzadanie | D73: NIE | E73: 600 | F73: 60004 | G73: 4210 | H73: Zakup materiałów i wyposażenia | I73: GMMW/C | P73: 0 | Q73: 0
A74: B/I/1/2/1 | B74: Utrzymanie Zarządu Transportu Miejskiego, w tym obsługa inwestycji | C74: 1 podzadanie | D74: NIE | E74: 600 | F74: 60004 | G74: 4210 | H74: Zakup materiałów i wyposażenia | I74: GMMW | P74: =J74+M74-L74 -> 0 | Q74: =K74+O74-N74 -> 0 | R74: =IF(SUM(J74:Q74)>0,"Tak","") ->  | S74: =IF(SUM(L74:O74)>0,"Tak","") ->  | T74: =IF(OR(J74<K74,P74<Q74,L74<N74,M74<O74),"błędny urząd","") ->  | U74: =IF(OR(J74<0,K74<0,P74<0,Q74<0),"ujemny plan","") -> 
A75: B/I/1/2/1 | B75: Utrzymanie Zarządu Transportu Miejskiego, w tym obsługa inwestycji | C75: 1 podzadanie | D75: NIE | E75: 600 | F75: 60004 | G75: 4260 | H75: Zakup energii | I75: GMMW | P75: 0 | Q75: 0
A76: B/I/1/2/1 | B76: Utrzymanie Zarządu Transportu Miejskiego, w tym obsługa inwestycji | C76: 1 podzadanie | D76: NIE | E76: 600 | F76: 60004 | G76: 4270 | H76: Zakup usług remontowych | I76: GMMW | P76: 0 | Q76: 0
A77: B/I/1/2/1 | B77: Utrzymanie Zarządu Transportu Miejskiego, w tym obsługa inwestycji | C77: 1 podzadanie | D77: NIE | E77: 600 | F77: 60004 | G77: 4280 | H77: Zakup usług zdrowotnych | I77: GMMW/C | P77: 0 | Q77: 0
A78: B/I/1/2/1 | B78: Utrzymanie Zarządu Transportu Miejskiego, w tym obsługa inwestycji | C78: 1 podzadanie | D78: NIE | E78: 600 | F78: 60004 | G78: 4280 | H78: Zakup usług zdrowotnych | I78: GMMW | P78: 0 | Q78: 0
A79: B/I/1/2/1 | B79: Utrzymanie Zarządu Transportu Miejskiego, w tym obsługa inwestycji | C79: 1 podzadanie | D79: NIE | E79: 600 | F79: 60004 | G79: 4300 | H79: Zakup usług pozostałych | I79: GMMW | P79: 0 | Q79: 0
A80: B/I/1/2/1 | B80: Utrzymanie Zarządu Transportu Miejskiego, w tym obsługa inwestycji | C80: 1 podzadanie | D80: NIE | E80: 600 | F80: 60004 | G80: 4307 | H80: Zakup usług pozostałych | I80: SFUE/29/1 | P80: 0 | Q80: 0
A81: B/I/1/2/1 | B81: Utrzymanie Zarządu Transportu Miejskiego, w tym obsługa inwestycji | C81: 1 podzadanie | D81: NIE | E81: 600 | F81: 60004 | G81: 4309 | H81: Zakup usług pozostałych | I81: SFUE/29/1 | P81: 0 | Q81: 0
A82: B/I/1/2/1 | B82: Utrzymanie Zarządu Transportu Miejskiego, w tym obsługa inwestycji | C82: 1 podzadanie | D82: NIE | E82: 600 | F82: 60004 | G82: 4360 | H82: Opłaty z tytułu zakupu usług telekomunikacyjnych | I82: GMMW | P82: 0 | Q82: 0
A83: B/I/1/2/1 | B83: Utrzymanie Zarządu Transportu Miejskiego, w tym obsługa inwestycji | C83: 1 podzadanie | D83: NIE | E83: 600 | F83: 60004 | G83: 4380 | H83: Zakup usług obejmujących tłumaczenia | I83: GMMW | P83: 0 | Q83: 0
A84: B/I/1/2/1 | B84: Utrzymanie Zarządu Transportu Miejskiego, w tym obsługa inwestycji | C84: 1 podzadanie | D84: NIE | E84: 600 | F84: 60004 | G84: 4390 | H84: Zakup usług obejmujących wykonanie ekspertyz, analiz i opinii | I84: GMMW | P84: 0 | Q84: 0
A85: B/I/1/2/1 | B85: Utrzymanie Zarządu Transportu Miejskiego, w tym obsługa inwestycji | C85: 1 podzadanie | D85: NIE | E85: 600 | F85: 60004 | G85: 4397 | H85: Zakup usług obejmujących wykonanie ekspertyz, analiz i opinii | I85: SFUE/29/1 | P85: 0 | Q85: 0
A86: B/I/1/2/1 | B86: Utrzymanie Zarządu Transportu Miejskiego, w tym obsługa inwestycji | C86: 1 podzadanie | D86: NIE | E86: 600 | F86: 60004 | G86: 4399 | H86: Zakup usług obejmujących wykonanie ekspertyz, analiz i opinii | J86: =SUM(J87:J89) -> 0 | K86: 0 | L86: 0 | M86: 0 | N86: 0 | O86: 0 | P86: 0 | Q86: 0
A87: B/I/1/2/1 | B87: Utrzymanie Zarządu Transportu Miejskiego, w tym obsługa inwestycji | C87: 1 podzadanie | D87: NIE | E87: 600 | F87: 60004 | G87: 4399 | H87: +000 | I87: SFUE/29/1 | P87: 0 | Q87: 0
A88: B/I/1/2/1 | B88: Utrzymanie Zarządu Transportu Miejskiego, w tym obsługa inwestycji | C88: 1 podzadanie | D88: NIE | E88: 600 | F88: 60004 | G88: 4399 | H88: +001 | I88: SFUE/29/1 | P88: 0 | Q88: 0
A89: B/I/1/2/1 | B89: Utrzymanie Zarządu Transportu Miejskiego, w tym obsługa inwestycji | C89: 1 podzadanie | D89: NIE | E89: 600 | F89: 60004 | G89: 4399 | H89: +002 | I89: SFUE/29/1 | P89: 0 | Q89: 0
A90: B/I/1/2/1 | B90: Utrzymanie Zarządu Transportu Miejskiego, w tym obsługa inwestycji | C90: 1 podzadanie | D90: NIE | E90: 600 | F90: 60004 | G90: 4400 | H90: Opłaty za administrowanie i czynsze za budynki, lokale i pomieszczenia garażowe | I90: GMMW | P90: 0 | Q90: 0
A91: B/I/1/2/1 | B91: Utrzymanie Zarządu Transportu Miejskiego, w tym obsługa inwestycji | C91: 1 podzadanie | D91: NIE | E91: 600 | F91: 60004 | G91: 4410 | H91: Podróże służbowe krajowe | I91: GMMW | P91: 0 | Q91: 0
A92: B/I/1/2/1 | B92: Utrzymanie Zarządu Transportu Miejskiego, w tym obsługa inwestycji | C92: 1 podzadanie | D92: NIE | E92: 600 | F92: 60004 | G92: 4420 | H92: Podróże służbowe zagraniczne | I92: GMMW | P92: 0 | Q92: 0
A93: B/I/1/2/1 | B93: Utrzymanie Zarządu Transportu Miejskiego, w tym obsługa inwestycji | C93: 1 podzadanie | D93: NIE | E93: 600 | F93: 60004 | G93: 4428 | H93: Podróże służbowe zagraniczne | I93: SFUE/8/59 | P93: 0 | Q93: 0
A94: B/I/1/2/1 | B94: Utrzymanie Zarządu Transportu Miejskiego, w tym obsługa inwestycji | C94: 1 podzadanie | D94: NIE | E94: 600 | F94: 60004 | G94: 4428 | H94: Podróże służbowe zagraniczne | I94: SFUE/8/60 | P94: 0 | Q94: 0
A95: B/I/1/2/1 | B95: Utrzymanie Zarządu Transportu Miejskiego, w tym obsługa inwestycji | C95: 1 podzadanie | D95: NIE | E95: 600 | F95: 60004 | G95: 4428 | H95: Podróże służbowe zagraniczne | I95: SFUE/8/61 | P95: 0 | Q95: 0
A96: B/I/1/2/1 | B96: Utrzymanie Zarządu Transportu Miejskiego, w tym obsługa inwestycji | C96: 1 podzadanie | D96: NIE | E96: 600 | F96: 60004 | G96: 4429 | H96: Podróże służbowe zagraniczne | I96: SFUE/8/60 | P96: 0 | Q96: 0
A97: B/I/1/2/1 | B97: Utrzymanie Zarządu Transportu Miejskiego, w tym obsługa inwestycji | C97: 1 podzadanie | D97: NIE | E97: 600 | F97: 60004 | G97: 4429 | H97: Podróże służbowe zagraniczne | I97: SFUE/8/61 | P97: 0 | Q97: 0
A98: B/I/1/2/1 | B98: Utrzymanie Zarządu Transportu Miejskiego, w tym obsługa inwestycji | C98: 1 podzadanie | D98: NIE | E98: 600 | F98: 60004 | G98: 4430 | H98: Różne opłaty i składki | I98: GMMW | P98: 0 | Q98: 0
A99: B/I/1/2/1 | B99: Utrzymanie Zarządu Transportu Miejskiego, w tym obsługa inwestycji | C99: 1 podzadanie | D99: NIE | E99: 600 | F99: 60004 | G99: 4440 | H99: Odpisy na zakładowy fundusz świadczeń socjalnych | I99: GMMW | P99: 0 | Q99: 0
A100: B/I/1/2/1 | B100: Utrzymanie Zarządu Transportu Miejskiego, w tym obsługa inwestycji | C100: 1 podzadanie | D100: NIE | E100: 600 | F100: 60004 | G100: 4480 | H100: Podatek od nieruchomości | I100: GMMW | P100: 0 | Q100: 0
A101: B/I/1/2/1 | B101: Utrzymanie Zarządu Transportu Miejskiego, w tym obsługa inwestycji | C101: 1 podzadanie | D101: NIE | E101: 600 | F101: 60004 | G101: 4510 | H101: Opłaty na rzecz budżetu państwa | I101: GMMW | P101: 0 | Q101: 0
A102: B/I/1/2/1 | B102: Utrzymanie Zarządu Transportu Miejskiego, w tym obsługa inwestycji | C102: 1 podzadanie | D102: NIE | E102: 600 | F102: 60004 | G102: 4530 | H102: Podatek od towarów i usług (VAT) | I102: GMMW/C | P102: 0 | Q102: 0
A103: B/I/1/2/1 | B103: Utrzymanie Zarządu Transportu Miejskiego, w tym obsługa inwestycji | C103: 1 podzadanie | D103: NIE | E103: 600 | F103: 60004 | G103: 4530 | H103: Podatek od towarów i usług (VAT) | I103: GMMW | P103: 0 | Q103: 0
A104: B/I/1/2/1 | B104: Utrzymanie Zarządu Transportu Miejskiego, w tym obsługa inwestycji | C104: 1 podzadanie | D104: NIE | E104: 600 | F104: 60004 | G104: 4530 | H104: Podatek od towarów i usług (VAT) | I104: SFUE/29/1 | P104: 0 | Q104: 0
A105: B/I/1/2/1 | B105: Utrzymanie Zarządu Transportu Miejskiego, w tym obsługa inwestycji | C105: 1 podzadanie | D105: NIE | E105: 600 | F105: 60004 | G105: 4540 | H105: Składki do organizacji międzynarodowych | I105: GMMW | P105: 0 | Q105: 0
A106: B/I/1/2/1 | B106: Utrzymanie Zarządu Transportu Miejskiego, w tym obsługa inwestycji | C106: 1 podzadanie | D106: NIE | E106: 600 | F106: 60004 | G106: 4590 | H106: Kary i odszkodowania wypłacane na rzecz osób fizycznych | I106: GMMW | P106: 0 | Q106: 0
A107: B/I/1/2/1 | B107: Utrzymanie Zarządu Transportu Miejskiego, w tym obsługa inwestycji | C107: 1 podzadanie | D107: NIE | E107: 600 | F107: 60004 | G107: 4600 | H107: Kary, odszkodowania i grzywny wypłacane na rzecz osób prawnych i innych jednostek organizacyjnych | I107: GMMW | P107: 0 | Q107: 0
A108: B/I/1/2/1 | B108: Utrzymanie Zarządu Transportu Miejskiego, w tym obsługa inwestycji | C108: 1 podzadanie | D108: NIE | E108: 600 | F108: 60004 | G108: 4610 | H108: Koszty postępowania sądowego i prokuratorskiego | I108: GMMW | P108: 0 | Q108: 0
A109: B/I/1/2/1 | B109: Utrzymanie Zarządu Transportu Miejskiego, w tym obsługa inwestycji | C109: 1 podzadanie | D109: NIE | E109: 600 | F109: 60004 | G109: 4700 | H109: Szkolenia pracowników niebędących członkami korpusu służby cywilnej | I109: GMMW/C | P109: 0 | Q109: 0
A110: B/I/1/2/1 | B110: Utrzymanie Zarządu Transportu Miejskiego, w tym obsługa inwestycji | C110: 1 podzadanie | D110: NIE | E110: 600 | F110: 60004 | G110: 4700 | H110: Szkolenia pracowników niebędących członkami korpusu służby cywilnej | I110: GMMW | P110: 0 | Q110: 0
A111: B/I/1/2/1 | B111: Utrzymanie Zarządu Transportu Miejskiego, w tym obsługa inwestycji | C111: 1 podzadanie | D111: NIE | E111: 600 | F111: 60004 | G111: 4707 | H111: Szkolenia pracowników niebędących członkami korpusu służby cywilnej | I111: SFUE/29/1 | P111: 0 | Q111: 0
A112: B/I/1/2/1 | B112: Utrzymanie Zarządu Transportu Miejskiego, w tym obsługa inwestycji | C112: 1 podzadanie | D112: NIE | E112: 600 | F112: 60004 | G112: 4709 | H112: Szkolenia pracowników niebędących członkami korpusu służby cywilnej | J112: =SUM(J113:J115) -> 0 | K112: 0 | L112: 0 | M112: 0 | N112: 0 | O112: 0 | P112: 0 | Q112: 0
A113: B/I/1/2/1 | B113: Utrzymanie Zarządu Transportu Miejskiego, w tym obsługa inwestycji | C113: 1 podzadanie | D113: NIE | E113: 600 | F113: 60004 | G113: 4709 | H113: +000 | I113: SFUE/29/1 | P113: 0 | Q113: 0
A114: B/I/1/2/1 | B114: Utrzymanie Zarządu Transportu Miejskiego, w tym obsługa inwestycji | C114: 1 podzadanie | D114: NIE | E114: 600 | F114: 60004 | G114: 4709 | H114: +001 | I114: SFUE/29/1 | P114: 0 | Q114: 0
A115: B/I/1/2/1 | B115: Utrzymanie Zarządu Transportu Miejskiego, w tym obsługa inwestycji | C115: 1 podzadanie | D115: NIE | E115: 600 | F115: 60004 | G115: 4709 | H115: +002 | I115: SFUE/29/1 | P115: 0 | Q115: 0
A116: B/I/1/2/1 | B116: Utrzymanie Zarządu Transportu Miejskiego, w tym obsługa inwestycji | C116: 1 podzadanie | D116: NIE | E116: 600 | F116: 60004 | G116: 4710 | H116: Wpłaty na PPK finansowane przez podmiot zatrudniający | I116: GMMW | P116: 0 | Q116: 0
A117: B/I/1/2/1 | B117: Utrzymanie Zarządu Transportu Miejskiego, w tym obsługa inwestycji | C117: 1 podzadanie | D117: NIE | E117: 600 | F117: 60004 | G117: 4718 | H117: Wpłaty na PPK finansowane przez podmiot zatrudniający | I117: SFUE/8/59 | P117: 0 | Q117: 0
A118: B/I/1/2/1 | B118: Utrzymanie Zarządu Transportu Miejskiego, w tym obsługa inwestycji | C118: 1 podzadanie | D118: NIE | E118: 600 | F118: 60004 | G118: 4718 | H118: Wpłaty na PPK finansowane przez podmiot zatrudniający | I118: SFUE/8/61 | P118: 0 | Q118: 0
A119: B/I/1/2/1 | B119: Utrzymanie Zarządu Transportu Miejskiego, w tym obsługa inwestycji | C119: 1 podzadanie | D119: NIE | E119: 600 | F119: 60004 | G119: 4719 | H119: Wpłaty na PPK finansowane przez podmiot zatrudniający | I119: SFUE/8/61 | P119: 0 | Q119: 0
A120: B/I/1/2/1 | B120: Utrzymanie Zarządu Transportu Miejskiego, w tym obsługa inwestycji | C120: 1 podzadanie | D120: NIE | E120: 600 | F120: 60004 | G120: 4950 | H120: Różnice kursowe | I120: GMMW | P120: 0 | Q120: 0
A121: B/I/1/2/1 | B121: Utrzymanie Zarządu Transportu Miejskiego, w tym obsługa inwestycji | C121: 1 podzadanie | D121: NIE | E121: 754 | F121: 75416 | J121: =SUM(J122:J124) -> 0 | K121: 0 | L121: 0 | M121: 0 | N121: 0 | O121: 0 | P121: 0 | Q121: 0
A122: B/I/1/2/1 | B122: Utrzymanie Zarządu Transportu Miejskiego, w tym obsługa inwestycji | C122: 1 podzadanie | D122: NIE | E122: 754 | F122: 75416 | G122: 4260 | H122: Zakup energii | I122: GMMW | P122: 0 | Q122: 0
A123: B/I/1/2/1 | B123: Utrzymanie Zarządu Transportu Miejskiego, w tym obsługa inwestycji | C123: 1 podzadanie | D123: NIE | E123: 754 | F123: 75416 | G123: 4300 | H123: Zakup usług pozostałych | I123: GMMW | P123: 0 | Q123: 0
A124: B/I/1/2/1 | B124: Utrzymanie Zarządu Transportu Miejskiego, w tym obsługa inwestycji | C124: 1 podzadanie | D124: NIE | E124: 754 | F124: 75416 | G124: 4400 | H124: Opłaty za administrowanie i czynsze za budynki, lokale i pomieszczenia garażowe | I124: GMMW | P124: 0 | Q124: 0
A125: B/I/1/2/2 | B125: Utrzymanie i obsługa systemu biletowego | C125: 2 podzadanie | D125: T | E125: 600 | F125: 60004 | J125: =SUM(J126) -> 0 | K125: 0 | L125: 0 | M125: 0 | N125: 0 | O125: 0 | P125: 0 | Q125: 0
A126: B/I/1/2/2 | B126: Utrzymanie i obsługa systemu biletowego | C126: 2 podzadanie | D126: NIE | E126: 600 | F126: 60004 | J126: =SUM(J127:J134) -> 0 | K126: 0 | L126: 0 | M126: 0 | N126: 0 | O126: 0 | P126: 0 | Q126: 0
A127: B/I/1/2/2 | B127: Utrzymanie i obsługa systemu biletowego | C127: 2 podzadanie | D127: NIE | E127: 600 | F127: 60004 | G127: 4190 | H127: Nagrody konkursowe | I127: GMMW | P127: 0 | Q127: 0
A128: B/I/1/2/2 | B128: Utrzymanie i obsługa systemu biletowego | C128: 2 podzadanie | D128: NIE | E128: 600 | F128: 60004 | G128: 4210 | H128: Zakup materiałów i wyposażenia | I128: GMMW | P128: 0 | Q128: 0
A129: B/I/1/2/2 | B129: Utrzymanie i obsługa systemu biletowego | C129: 2 podzadanie | D129: NIE | E129: 600 | F129: 60004 | G129: 4260 | H129: Zakup energii | I129: GMMW | P129: 0 | Q129: 0
A130: B/I/1/2/2 | B130: Utrzymanie i obsługa systemu biletowego | C130: 2 podzadanie | D130: NIE | E130: 600 | F130: 60004 | G130: 4270 | H130: Zakup usług remontowych | I130: GMMW | P130: 0 | Q130: 0
A131: B/I/1/2/2 | B131: Utrzymanie i obsługa systemu biletowego | C131: 2 podzadanie | D131: NIE | E131: 600 | F131: 60004 | G131: 4300 | H131: Zakup usług pozostałych | I131: GMMW | P131: 0 | Q131: 0
A132: B/I/1/2/2 | B132: Utrzymanie i obsługa systemu biletowego | C132: 2 podzadanie | D132: NIE | E132: 600 | F132: 60004 | G132: 4400 | H132: Opłaty za administrowanie i czynsze za budynki, lokale i pomieszczenia garażowe | I132: GMMW | P132: 0 | Q132: 0
A133: B/I/1/2/2 | B133: Utrzymanie i obsługa systemu biletowego | C133: 2 podzadanie | D133: NIE | E133: 600 | F133: 60004 | G133: 4530 | H133: Podatek od towarów i usług (VAT) | I133: GMMW | P133: 0 | Q133: 0
A134: B/I/1/2/2 | B134: Utrzymanie i obsługa systemu biletowego | C134: 2 podzadanie | D134: NIE | E134: 600 | F134: 60004 | G134: 4610 | H134: Koszty postępowania sądowego i prokuratorskiego | I134: GMMW | P134: 0 | Q134: 0
A135: B/I/1/2/3 | B135: Organizacja komunikacji, marketing, nadzór i kontrola ruchu | C135: 3 podzadanie | D135: T | J135: =SUM(J177,J172,J136) -> 19000 | K135: 19000 | L135: 0 | M135: 0 | N135: 0 | O135: 0 | P135: 19000 | Q135: 19000 | R135: Tak
A136: B/I/1/2/3 | B136: Organizacja komunikacji, marketing, nadzór i kontrola ruchu | C136: 3 podzadanie | D136: NIE | E136: 600 | F136: 60004 | J136: =SUM(J137:J161,J165:J168) -> 0 | K136: 0 | L136: 0 | M136: 0 | N136: 0 | O136: 0 | P136: 0 | Q136: 0
A137: B/I/1/2/3 | B137: Organizacja komunikacji, marketing, nadzór i kontrola ruchu | C137: 3 podzadanie | D137: NIE | E137: 600 | F137: 60004 | G137: 3020 | H137: Wydatki osobowe niezaliczone do wynagrodzeń | I137: GMMW | P137: 0 | Q137: 0
A138: B/I/1/2/3 | B138: Organizacja komunikacji, marketing, nadzór i kontrola ruchu | C138: 3 podzadanie | D138: NIE | E138: 600 | F138: 60004 | G138: 4210 | H138: Zakup materiałów i wyposażenia | I138: GMMW | P138: =J138+M138-L138 -> 0 | Q138: =K138+O138-N138 -> 0 | R138: =IF(SUM(J138:Q138)>0,"Tak","") ->  | S138: =IF(SUM(L138:O138)>0,"Tak","") ->  | T138: =IF(OR(J138<K138,P138<Q138,L138<N138,M138<O138),"błędny urząd","") ->  | U138: =IF(OR(J138<0,K138<0,P138<0,Q138<0),"ujemny plan","") -> 
A139: B/I/1/2/3 | B139: Organizacja komunikacji, marketing, nadzór i kontrola ruchu | C139: 3 podzadanie | D139: NIE | E139: 600 | F139: 60004 | G139: 4218 | H139: Zakup materiałów i wyposażenia | I139: SFUE/8/59 | P139: 0 | Q139: 0
A140: B/I/1/2/3 | B140: Organizacja komunikacji, marketing, nadzór i kontrola ruchu | C140: 3 podzadanie | D140: NIE | E140: 600 | F140: 60004 | G140: 4218 | H140: Zakup materiałów i wyposażenia | I140: SFUE/8/60 | P140: 0 | Q140: 0
A141: B/I/1/2/3 | B141: Organizacja komunikacji, marketing, nadzór i kontrola ruchu | C141: 3 podzadanie | D141: NIE | E141: 600 | F141: 60004 | G141: 4218 | H141: Zakup materiałów i wyposażenia | I141: SFUE/8/61 | P141: 0 | Q141: 0
A142: B/I/1/2/3 | B142: Organizacja komunikacji, marketing, nadzór i kontrola ruchu | C142: 3 podzadanie | D142: NIE | E142: 600 | F142: 60004 | G142: 4219 | H142: Zakup materiałów i wyposażenia | I142: SFUE/8/61 | P142: 0 | Q142: 0
A143: B/I/1/2/3 | B143: Organizacja komunikacji, marketing, nadzór i kontrola ruchu | C143: 3 podzadanie | D143: NIE | E143: 600 | F143: 60004 | G143: 4270 | H143: Zakup usług remontowych | I143: GMMW | P143: 0 | Q143: 0
A144: B/I/1/2/3 | B144: Organizacja komunikacji, marketing, nadzór i kontrola ruchu | C144: 3 podzadanie | D144: NIE | E144: 600 | F144: 60004 | G144: 4300 | H144: Zakup usług pozostałych | I144: GMMW | P144: 0 | Q144: 0
A145: B/I/1/2/3 | B145: Organizacja komunikacji, marketing, nadzór i kontrola ruchu | C145: 3 podzadanie | D145: NIE | E145: 600 | F145: 60004 | G145: 4307 | H145: Zakup usług pozostałych | I145: SFUE/23/6 | P145: 0 | Q145: 0
A146: B/I/1/2/3 | B146: Organizacja komunikacji, marketing, nadzór i kontrola ruchu | C146: 3 podzadanie | D146: NIE | E146: 600 | F146: 60004 | G146: 4308 | H146: Zakup usług pozostałych | I146: SFUE/8/59 | P146: 0 | Q146: 0
A147: B/I/1/2/3 | B147: Organizacja komunikacji, marketing, nadzór i kontrola ruchu | C147: 3 podzadanie | D147: NIE | E147: 600 | F147: 60004 | G147: 4308 | H147: Zakup usług pozostałych | I147: SFUE/8/60 | P147: 0 | Q147: 0
A148: B/I/1/2/3 | B148: Organizacja komunikacji, marketing, nadzór i kontrola ruchu | C148: 3 podzadanie | D148: NIE | E148: 600 | F148: 60004 | G148: 4308 | H148: Zakup usług pozostałych | I148: SFUE/8/61 | P148: 0 | Q148: 0
A149: B/I/1/2/3 | B149: Organizacja komunikacji, marketing, nadzór i kontrola ruchu | C149: 3 podzadanie | D149: NIE | E149: 600 | F149: 60004 | G149: 4309 | H149: Zakup usług pozostałych | I149: SFUE/23/6 | P149: 0 | Q149: 0
A150: B/I/1/2/3 | B150: Organizacja komunikacji, marketing, nadzór i kontrola ruchu | C150: 3 podzadanie | D150: NIE | E150: 600 | F150: 60004 | G150: 4309 | H150: Zakup usług pozostałych | I150: SFUE/8/61 | P150: 0 | Q150: 0
A151: B/I/1/2/3 | B151: Organizacja komunikacji, marketing, nadzór i kontrola ruchu | C151: 3 podzadanie | D151: NIE | E151: 600 | F151: 60004 | G151: 4388 | H151: Zakup usług obejmujących tłumaczenia | I151: SFUE/8/59 | P151: 0 | Q151: 0
A152: B/I/1/2/3 | B152: Organizacja komunikacji, marketing, nadzór i kontrola ruchu | C152: 3 podzadanie | D152: NIE | E152: 600 | F152: 60004 | G152: 4388 | H152: Zakup usług obejmujących tłumaczenia | I152: SFUE/8/60 | P152: 0 | Q152: 0
A153: B/I/1/2/3 | B153: Organizacja komunikacji, marketing, nadzór i kontrola ruchu | C153: 3 podzadanie | D153: NIE | E153: 600 | F153: 60004 | G153: 4388 | H153: Zakup usług obejmujących tłumaczenia | I153: SFUE/8/61 | P153: 0 | Q153: 0
A154: B/I/1/2/3 | B154: Organizacja komunikacji, marketing, nadzór i kontrola ruchu | C154: 3 podzadanie | D154: NIE | E154: 600 | F154: 60004 | G154: 4389 | H154: Zakup usług obejmujących tłumaczenia | I154: SFUE/8/61 | P154: 0 | Q154: 0
A155: B/I/1/2/3 | B155: Organizacja komunikacji, marketing, nadzór i kontrola ruchu | C155: 3 podzadanie | D155: NIE | E155: 600 | F155: 60004 | G155: 4390 | H155: Zakup usług obejmujących wykonanie ekspertyz, analiz i opinii | I155: GMMW | P155: 0 | Q155: 0
A156: B/I/1/2/3 | B156: Organizacja komunikacji, marketing, nadzór i kontrola ruchu | C156: 3 podzadanie | D156: NIE | E156: 600 | F156: 60004 | G156: 4398 | H156: Zakup usług obejmujących wykonanie ekspertyz, analiz i opinii | I156: SFUE/19/6 | P156: 0 | Q156: 0
A157: B/I/1/2/3 | B157: Organizacja komunikacji, marketing, nadzór i kontrola ruchu | C157: 3 podzadanie | D157: NIE | E157: 600 | F157: 60004 | G157: 4398 | H157: Zakup usług obejmujących wykonanie ekspertyz, analiz i opinii | I157: SFUE/8/59 | P157: 0 | Q157: 0
A158: B/I/1/2/3 | B158: Organizacja komunikacji, marketing, nadzór i kontrola ruchu | C158: 3 podzadanie | D158: NIE | E158: 600 | F158: 60004 | G158: 4398 | H158: Zakup usług obejmujących wykonanie ekspertyz, analiz i opinii | I158: SFUE/8/60 | P158: 0 | Q158: 0
A159: B/I/1/2/3 | B159: Organizacja komunikacji, marketing, nadzór i kontrola ruchu | C159: 3 podzadanie | D159: NIE | E159: 600 | F159: 60004 | G159: 4398 | H159: Zakup usług obejmujących wykonanie ekspertyz, analiz i opinii | I159: SFUE/8/61 | P159: 0 | Q159: 0
A160: B/I/1/2/3 | B160: Organizacja komunikacji, marketing, nadzór i kontrola ruchu | C160: 3 podzadanie | D160: NIE | E160: 600 | F160: 60004 | G160: 4399 | H160: Zakup usług obejmujących wykonanie ekspertyz, analiz i opinii | I160: SFUE/8/61 | P160: 0 | Q160: 0
A161: B/I/1/2/3 | B161: Organizacja komunikacji, marketing, nadzór i kontrola ruchu | C161: 3 podzadanie | D161: NIE | E161: 600 | F161: 60004 | G161: 4399 | H161: Zakup usług obejmujących wykonanie ekspertyz, analiz i opinii | J161: =SUM(J162:J164) -> 0 | K161: 0 | L161: 0 | M161: 0 | N161: 0 | O161: 0 | P161: 0 | Q161: 0
A162: B/I/1/2/3 | B162: Organizacja komunikacji, marketing, nadzór i kontrola ruchu | C162: 3 podzadanie | D162: NIE | E162: 600 | F162: 60004 | G162: 4399 | H162: +000 | I162: SFUE/19/6 | P162: 0 | Q162: 0
A163: B/I/1/2/3 | B163: Organizacja komunikacji, marketing, nadzór i kontrola ruchu | C163: 3 podzadanie | D163: NIE | E163: 600 | F163: 60004 | G163: 4399 | H163: +001 | I163: SFUE/19/6 | P163: 0 | Q163: 0
A164: B/I/1/2/3 | B164: Organizacja komunikacji, marketing, nadzór i kontrola ruchu | C164: 3 podzadanie | D164: NIE | E164: 600 | F164: 60004 | G164: 4399 | H164: +002 | I164: SFUE/19/6 | P164: 0 | Q164: 0
A165: B/I/1/2/3 | B165: Organizacja komunikacji, marketing, nadzór i kontrola ruchu | C165: 3 podzadanie | D165: NIE | E165: 600 | F165: 60004 | G165: 4530 | H165: Podatek od towarów i usług (VAT) | I165: GMMW | P165: 0 | Q165: 0
A166: B/I/1/2/3 | B166: Organizacja komunikacji, marketing, nadzór i kontrola ruchu | C166: 3 podzadanie | D166: NIE | E166: 600 | F166: 60004 | G166: 4530 | H166: Podatek od towarów i usług (VAT) | I166: SFUE/23/6 | P166: 0 | Q166: 0
A167: B/I/1/2/3 | B167: Organizacja komunikacji, marketing, nadzór i kontrola ruchu | C167: 3 podzadanie | D167: NIE | E167: 600 | F167: 60004 | G167: 4538 | H167: Podatek od towarów i usług (VAT) | I167: SFUE/19/6 | P167: 0 | Q167: 0
A168: B/I/1/2/3 | B168: Organizacja komunikacji, marketing, nadzór i kontrola ruchu | C168: 3 podzadanie | D168: NIE | E168: 600 | F168: 60004 | G168: 4539 | H168: Podatek od towarów i usług (VAT) | J168: =SUM(J169:J171) -> 0 | K168: 0 | L168: 0 | M168: 0 | N168: 0 | O168: 0 | P168: 0 | Q168: 0
A169: B/I/1/2/3 | B169: Organizacja komunikacji, marketing, nadzór i kontrola ruchu | C169: 3 podzadanie | D169: NIE | E169: 600 | F169: 60004 | G169: 4539 | H169: +000 | I169: SFUE/19/6 | P169: 0 | Q169: 0
A170: B/I/1/2/3 | B170: Organizacja komunikacji, marketing, nadzór i kontrola ruchu | C170: 3 podzadanie | D170: NIE | E170: 600 | F170: 60004 | G170: 4539 | H170: +001 | I170: SFUE/19/6 | P170: 0 | Q170: 0
A171: B/I/1/2/3 | B171: Organizacja komunikacji, marketing, nadzór i kontrola ruchu | C171: 3 podzadanie | D171: NIE | E171: 600 | F171: 60004 | G171: 4539 | H171: +002 | I171: SFUE/19/6 | P171: 0 | Q171: 0
A172: B/I/1/2/3 | B172: Organizacja komunikacji, marketing, nadzór i kontrola ruchu | C172: 3 podzadanie | D172: NIE | E172: 600 | F172: 60022 | J172: =SUM(J173:J176) -> 0 | K172: 0 | L172: 0 | M172: 0 | N172: 0 | O172: 0 | P172: 0 | Q172: 0
A173: B/I/1/2/3 | B173: Organizacja komunikacji, marketing, nadzór i kontrola ruchu | C173: 3 podzadanie | D173: NIE | E173: 600 | F173: 60022 | G173: 4210 | H173: Zakup materiałów i wyposażenia | I173: GMMW | P173: 0 | Q173: 0
A174: B/I/1/2/3 | B174: Organizacja komunikacji, marketing, nadzór i kontrola ruchu | C174: 3 podzadanie | D174: NIE | E174: 600 | F174: 60022 | G174: 4270 | H174: Zakup usług remontowych | I174: GMMW | P174: 0 | Q174: 0
A175: B/I/1/2/3 | B175: Organizacja komunikacji, marketing, nadzór i kontrola ruchu | C175: 3 podzadanie | D175: NIE | E175: 600 | F175: 60022 | G175: 4300 | H175: Zakup usług pozostałych | I175: GMMW | P175: 0 | Q175: 0
A176: B/I/1/2/3 | B176: Organizacja komunikacji, marketing, nadzór i kontrola ruchu | C176: 3 podzadanie | D176: NIE | E176: 600 | F176: 60022 | G176: 4430 | H176: Różne opłaty i składki | I176: GMMW | P176: 0 | Q176: 0
A177: B/I/1/2/3 | B177: Organizacja komunikacji, marketing, nadzór i kontrola ruchu | C177: 3 podzadanie | D177: NIE | E177: 600 | F177: 60095 | J177: =SUM(J178:J181) -> 19000 | K177: 19000 | L177: 0 | M177: 0 | N177: 0 | O177: 0 | P177: 19000 | Q177: 19000 | R177: Tak
A178: B/I/1/2/3 | B178: Organizacja komunikacji, marketing, nadzór i kontrola ruchu | C178: 3 podzadanie | D178: NIE | E178: 600 | F178: 60095 | G178: 4210 | H178: Zakup materiałów i wyposażenia | I178: BO/25/01/0038 | J178: 3000 | K178: 3000 | P178: 3000 | Q178: 3000 | R178: Tak
A179: B/I/1/2/3 | B179: Organizacja komunikacji, marketing, nadzór i kontrola ruchu | C179: 3 podzadanie | D179: NIE | E179: 600 | F179: 60095 | G179: 4210 | H179: Zakup materiałów i wyposażenia | I179: GMMW | P179: 0 | Q179: 0
A180: B/I/1/2/3 | B180: Organizacja komunikacji, marketing, nadzór i kontrola ruchu | C180: 3 podzadanie | D180: NIE | E180: 600 | F180: 60095 | G180: 4270 | H180: Zakup usług remontowych | I180: GMMW | J180: 16000 | K180: 16000 | P180: 16000 | Q180: 16000 | R180: Tak
A181: B/I/1/2/3 | B181: Organizacja komunikacji, marketing, nadzór i kontrola ruchu | C181: 3 podzadanie | D181: NIE | E181: 600 | F181: 60095 | G181: 4300 | H181: Zakup usług pozostałych | I181: GMMW | P181: 0 | Q181: 0
A182: B/I/1/3 | B182: Utrzymanie infrastruktury przystankowej | C182: 3 zadanie | D182: T | J182: =SUM(J183) -> 0 | K182: 0 | L182: 0 | M182: 0 | N182: 0 | O182: 0 | P182: 0 | Q182: 0
A183: B/I/1/3 | B183: Utrzymanie infrastruktury przystankowej | C183: 3 zadanie | D183: NIE | E183: 600 | F183: 60020 | J183: =SUM(J184:J192) -> 0 | K183: 0 | L183: 0 | M183: 0 | N183: 0 | O183: 0 | P183: 0 | Q183: 0
A184: B/I/1/3 | B184: Utrzymanie infrastruktury przystankowej | C184: 3 zadanie | D184: NIE | E184: 600 | F184: 60020 | G184: 4210 | H184: Zakup materiałów i wyposażenia | I184: GMMW | P184: 0 | Q184: 0
A185: B/I/1/3 | B185: Utrzymanie infrastruktury przystankowej | C185: 3 zadanie | D185: NIE | E185: 600 | F185: 60020 | G185: 4270 | H185: Zakup usług remontowych | I185: GMMW/C | P185: 0 | Q185: 0
A186: B/I/1/3 | B186: Utrzymanie infrastruktury przystankowej | C186: 3 zadanie | D186: NIE | E186: 600 | F186: 60020 | G186: 4270 | H186: Zakup usług remontowych | I186: GMMW | P186: 0 | Q186: 0
A187: B/I/1/3 | B187: Utrzymanie infrastruktury przystankowej | C187: 3 zadanie | D187: NIE | E187: 600 | F187: 60020 | G187: 4270 | H187: Zakup usług remontowych | I187: GUPP | P187: 0 | Q187: 0
A188: B/I/1/3 | B188: Utrzymanie infrastruktury przystankowej | C188: 3 zadanie | D188: NIE | E188: 600 | F188: 60020 | G188: 4300 | H188: Zakup usług pozostałych | I188: GMMW/C | P188: 0 | Q188: 0
A189: B/I/1/3 | B189: Utrzymanie infrastruktury przystankowej | C189: 3 zadanie | D189: NIE | E189: 600 | F189: 60020 | G189: 4300 | H189: Zakup usług pozostałych | I189: GMMW | P189: 0 | Q189: 0
A190: B/I/1/3 | B190: Utrzymanie infrastruktury przystankowej | C190: 3 zadanie | D190: NIE | E190: 600 | F190: 60020 | G190: 4520 | H190: Opłaty na rzecz budżetów jednostek samorządu terytorialnego | I190: GMMW | P190: 0 | Q190: 0
A191: B/I/1/3 | B191: Utrzymanie infrastruktury przystankowej | C191: 3 zadanie | D191: NIE | E191: 600 | F191: 60020 | G191: 4530 | H191: Podatek od towarów i usług (VAT) | I191: GMMW/C | P191: 0 | Q191: 0
A192: B/I/1/3 | B192: Utrzymanie infrastruktury przystankowej | C192: 3 zadanie | D192: NIE | E192: 600 | F192: 60020 | G192: 4530 | H192: Podatek od towarów i usług (VAT) | I192: GMMW | P192: 0 | Q192: 0
A193: B/I/1/4 | B193: Opracowania i analizy związane z komunikacją miejską | C193: 4 zadanie | D193: T | J193: =SUM(J200,J194) -> 0 | K193: 0 | L193: 0 | M193: 0 | N193: 0 | O193: 0 | P193: 0 | Q193: 0
A194: B/I/1/4 | B194: Opracowania i analizy związane z komunikacją miejską | C194: 4 zadanie | D194: NIE | E194: 600 | F194: 60004 | J194: =SUM(J195:J199) -> 0 | K194: 0 | L194: 0 | M194: 0 | N194: 0 | O194: 0 | P194: 0 | Q194: 0
A195: B/I/1/4 | B195: Opracowania i analizy związane z komunikacją miejską | C195: 4 zadanie | D195: NIE | E195: 600 | F195: 60004 | G195: 2310 | H195: Dotacja celowa przekazana gminie na zadania bieżące realizowane na podstawie porozumień (umów) między jednostkami samorządu terytorialnego | I195: GMMW | P195: 0 | Q195: 0
A196: B/I/1/4 | B196: Opracowania i analizy związane z komunikacją miejską | C196: 4 zadanie | D196: NIE | E196: 600 | F196: 60004 | G196: 4390 | H196: Zakup usług obejmujących wykonanie ekspertyz, analiz i opinii | I196: SFUE/8/57 | P196: 0 | Q196: 0
A197: B/I/1/4 | B197: Opracowania i analizy związane z komunikacją miejską | C197: 4 zadanie | D197: NIE | E197: 600 | F197: 60004 | G197: 4397 | H197: Zakup usług obejmujących wykonanie ekspertyz, analiz i opinii | I197: SFUE/8/57 | P197: 0 | Q197: 0
A198: B/I/1/4 | B198: Opracowania i analizy związane z komunikacją miejską | C198: 4 zadanie | D198: NIE | E198: 600 | F198: 60004 | G198: 4399 | H198: Zakup usług obejmujących wykonanie ekspertyz, analiz i opinii | I198: SFUE/8/57 | P198: 0 | Q198: 0
A199: B/I/1/4 | B199: Opracowania i analizy związane z komunikacją miejską | C199: 4 zadanie | D199: NIE | E199: 600 | F199: 60004 | G199: 4530 | H199: Podatek od towarów i usług (VAT) | I199: SFUE/8/57 | P199: 0 | Q199: 0
A200: B/I/1/4 | B200: Opracowania i analizy związane z komunikacją miejską | C200: 4 zadanie | D200: NIE | E200: 600 | F200: 60095 | J200: =SUM(J201:J203) -> 0 | K200: 0 | L200: 0 | M200: 0 | N200: 0 | O200: 0 | P200: 0 | Q200: 0
... 4300 more rows

Sheet WNIOSEK
J1: Załącznik Nr 3
J2: do uchwały Nr 343/2025
J3: Zarządu Dzielnicy Bemowo m.st. Warszawy
J4: z dnia 25 kwietnia 2025 r.
A7: WNIOSEK W SPRAWIE ZMIAN W PLANIE WYDATKÓW BIEŻĄCYCH
M9: w zł
A10: Stanowisko finansowe | C10: Pozycje finansowe | F10: Obszar funkcjonalny | G10: Program budżetowy | I10: Plan wg stanu na dzień 15.04.2025 r. | J10: Zaangażowanie wg stanu na dzień 23.04.2025 r. | K10: Proponowane zmiany | M10: Plan po zmianach
A11: Nazwa dysponenta | B11: Kod | C11: Dział | D11: Rozdział | E11: § | F11: Kod | G11: Nazwa | H11: Kod | K11: zmniejszenia | L11: zwiększenia
A15: Zespół Kadr | B15: U.01.000 | C15: 750.75023.W4010+000 | F15: GMMW | G15: Fundusz wynagrodzeń | H15: B/X/2/1/1 | I15: 38288988 | J15: 38288988 | K15: 890000 | M15: 37398988
A16: Wydział Budżetowo-Księgowy | B16: U.01.000 | C16: 750.75023.W4530+000 | F16: GMMW | G16: Różne rozliczenia | H16: B/XI/1/7 | I16: 2050090 | J16: 36300 | L16: 575000 | M16: 2625090
A17: Wydział Budżetowo-Księgowy | B17: U.01.000 | C17: 750.75023.W4680+000 | F17: GMMW | G17: Różne rozliczenia | H17: B/XI/1/7 | I17: 6000 | J17: 25 | L17: 315000 | M17: 321000
A18: RAZEM | I18: =SUM(I15:I17) -> 40345078 | J18: =SUM(J15:J17) -> 38325313 | K18: =SUM(K15:K17) -> 890000 | L18: =SUM(L15:L17) -> 890000 | M18: =SUM(M15:M17) -> 40345078

Sheet UZASADNIENIE
C1: Załącznik Nr 4 | E1: =IF((ROWS(E9:E1314)-COUNTA(E9:E1314))=0,"Formuła jest OK","Przeciągnij formułę, gdzie jest zero, lub pusta komórka") -> Formuła jest OK | G1: =IF((ROWS(G9:G1314)-COUNTA(G9:G1314))=0,"","Jest gdzieś pusta komórka") ->  | H1: =IF((ROWS(H9:H1314)-COUNTA(H9:H1314))=0,"","Jest gdzieś pusta komórka") ->  | I1: =IF((ROWS(I9:I1314)-COUNTA(I9:I1314))=0,"","Jest gdzieś pusta komórka") ->  | J1: =IF((ROWS(J9:J1314)-COUNTA(J9:J1314))=0,"","Jest gdzieś pusta komórka") ->  | K1: =IF((ROWS(K9:K1314)-COUNTA(K9:K1314))=0,"","Jest gdzieś pusta komórka") ->  | M1: =IF((ROWS(M9:M1314)-COUNTA(M9:M1314))=0,"","Jest gdzieś pusta komórka") ->  | N1: =IF((ROWS(N9:N1314)-COUNTA(N9:N1314))=0,"","Jest gdzieś pusta komórka") ->  | O1: =IF((ROWS(O9:O1314)-COUNTA(O9:O1314))=0,"","Jest gdzieś pusta komórka") ->  | P1: =IF((ROWS(P9:P1314)-COUNTA(P9:P1314))=0,"","Jest gdzieś pusta komórka") ->  | Q1: =IF((ROWS(Q9:Q1314)-COUNTA(Q9:Q1314))=0,"","Jest gdzieś pusta komórka") -> 
C2: do uchwały Nr 343/2025
C3: Zarządu Dzielnicy Bemowo m.st. Warszawy
C4: z dnia 25 kwietnia 2025 r.
B5: DZIELNICA BEMOWO | G5: Powiązanie uzasadnienia z arkuszem "Zadaniowy"
E6: Wypełnione | G6: Spr. z arkusz. zadaniowym | I6: Kwota - w tym: Urząd | K6: Wypełn. poz. | M6: Dane dla tych zadań, w których dokonywane są zmiany
B7: Wyszczególnienie | C7: Zmniejszenie | D7: Zwiększenie | E7: zmiany | F7: Uwagi | G7: [ - ] | H7: [ + ] | I7: [ - ] | J7: [ + ] | K7: w zadaniowym | M7: Zadanie | N7: Zadanie: Dysponent | O7: Tylko zadanie | P7: Tylko Dysponent | Q7: Alternatywna formuła
E8: =IF(C$9+D$9>0,"tak","nie") -> tak | K8: =IF(G$9+H$9>0,"tak","nie") -> nie
A9: D.01.000 | B9: RAZEM DZIELNICA BEMOWO | C9: =C11+C57+C183+C363+C665+C853+C919+C985+C1065+C1273 -> 890000 | D9: =D11+D57+D183+D363+D665+D853+D919+D985+D1065+D1273 -> 890000 | E9: =IF(OR(A9="",COUNTIF(A9,"* *")>0),OFFSET(E9,-1,0),IF(C9+D9>0,"tak","nie")) -> tak | G9: =G11+G57+G183+G363+G665+G853+G919+G985+G1065+G1273 -> 0 | H9: =H11+H57+H183+H363+H665+H853+H919+H985+H1065+H1273 -> 0 | I9: =I11+I57+I183+I363+I665+I853+I919+I985+I1065+I1273 -> 890000 | J9: =J11+J57+J183+J363+J665+J853+J919+J985+J1065+J1273 -> 890000 | K9: =IF(OR(A9="",COUNTIF(A9,"* *")>0,LEFT(A9,1)="7",LEFT(A9,1)="8"),OFFSET(K9,-1,0),IF(G9+H9>0,"tak","nie")) -> nie | M9: =IF(OR(A9="",COUNTIF(A9,"* *")>0,LEFT(A9,1)="7",LEFT(A9,1)="8"),OFFSET(M9,-1,0),IF(C9+D9>0,A9,"")) -> D.01.000 | N9: =IF(AND(COUNTIF(B9,"Dysponen*")>0,NOT(M9="")),M9&MID(B9,FIND(":",B9),80),"") ->  | O9: =IF(N9="","",LEFT(N9,FIND(":",N9)-1)) ->  | P9: =IF(N9="","",MID(N9,FIND(":",N9)+2,80)) ->  | Q9: =IF(N9="","",RIGHT(N9,LEN(N9)-FIND(":",N9)-1)) -> 
E10: =IF(OR(A10="",COUNTIF(A10,"* *")>0),OFFSET(E10,-1,0),IF(C10+D10>0,"tak","nie")) -> tak | G10: =IF(OR(A10="",COUNTIF(A10,"* *")>0,LEFT(A10,1)="7",LEFT(A10,1)="8"),"",IF(VLOOKUP(A10,[3]ZADANIOWY!A$2:O$10653,4,0)="T",VLOOKUP(A10,[3]ZADANIOWY!A$2:O$10653,12,0)-C10,"")) ->  | H10: =IF(OR(A10="",COUNTIF(A10,"* *")>0,LEFT(A10,1)="7",LEFT(A10,1)="8"),"",IF(VLOOKUP(A10,[3]ZADANIOWY!A$2:O$10653,4,0)="T",VLOOKUP(A10,[3]ZADANIOWY!A$2:O$10653,13,0)-D10,"")) ->  | I10: =IF(OR(A10="",COUNTIF(A10,"* *")>0,LEFT(A10,1)="7",LEFT(A10,1)="8"),"",IF(VLOOKUP(A10,[3]ZADANIOWY!A$2:O$10653,4,0)="T",VLOOKUP(A10,[3]ZADANIOWY!A$2:O$10653,14,0),"")) ->  | J10: =IF(OR(A10="",COUNTIF(A10,"* *")>0,LEFT(A10,1)="7",LEFT(A10,1)="8"),"",IF(VLOOKUP(A10,[3]ZADANIOWY!A$2:O$10653,4,0)="T",VLOOKUP(A10,[3]ZADANIOWY!A$2:O$10653,15,0),"")) ->  | K10: =IF(OR(A10="",COUNTIF(A10,"* *")>0,LEFT(A10,1)="7",LEFT(A10,1)="8"),OFFSET(K10,-1,0),IF(G10+H10>0,"tak","nie")) -> nie | M10: =IF(OR(A10="",COUNTIF(A10,"* *")>0,LEFT(A10,1)="7",LEFT(A10,1)="8"),OFFSET(M10,-1,0),IF(C10+D10>0,A10,"")) -> D.01.000 | N10: =IF(AND(COUNTIF(B10,"Dysponen*")>0,NOT(M10="")),M10&MID(B10,FIND(":",B10),80),"") ->  | O10: =IF(N10="","",LEFT(N10,FIND(":",N10)-1)) ->  | P10: =IF(N10="","",MID(N10,FIND(":",N10)+2,80)) ->  | Q10: =IF(N10="","",RIGHT(N10,LEN(N10)-FIND(":",N10)-1)) -> 
A11: I | B11: TRANSPORT I KOMUNIKACJA | C11: =C13 -> 0 | D11: =D13 -> 0 | E11: nie | G11: =IF(OR(A11="",COUNTIF(A11,"* *")>0,LEFT(A11,1)="7",LEFT(A11,1)="8"),"",IF(VLOOKUP(A11,ZADANIOWY!A$2:O$10710,4,0)="T",VLOOKUP(A11,ZADANIOWY!A$2:O$10710,12,0)-C11,"")) -> 0 | H11: =IF(OR(A11="",COUNTIF(A11,"* *")>0,LEFT(A11,1)="7",LEFT(A11,1)="8"),"",IF(VLOOKUP(A11,ZADANIOWY!A$2:O$10710,4,0)="T",VLOOKUP(A11,ZADANIOWY!A$2:O$10710,13,0)-D11,"")) -> 0 | I11: =IF(OR(A11="",COUNTIF(A11,"* *")>0,LEFT(A11,1)="7",LEFT(A11,1)="8"),"",IF(VLOOKUP(A11,ZADANIOWY!A$2:O$10710,4,0)="T",VLOOKUP(A11,ZADANIOWY!A$2:O$10710,14,0),"")) -> 0 | J11: =IF(OR(A11="",COUNTIF(A11,"* *")>0,LEFT(A11,1)="7",LEFT(A11,1)="8"),"",IF(VLOOKUP(A11,ZADANIOWY!A$2:O$10710,4,0)="T",VLOOKUP(A11,ZADANIOWY!A$2:O$10710,15,0),"")) -> 0 | K11: nie
E12: nie | G12: =IF(OR(A12="",COUNTIF(A12,"* *")>0,LEFT(A12,1)="7",LEFT(A12,1)="8"),"",IF(VLOOKUP(A12,ZADANIOWY!A$2:O$10710,4,0)="T",VLOOKUP(A12,ZADANIOWY!A$2:O$10710,12,0)-C12,"")) ->  | H12: =IF(OR(A12="",COUNTIF(A12,"* *")>0,LEFT(A12,1)="7",LEFT(A12,1)="8"),"",IF(VLOOKUP(A12,ZADANIOWY!A$2:O$10710,4,0)="T",VLOOKUP(A12,ZADANIOWY!A$2:O$10710,13,0)-D12,"")) ->  | I12: =IF(OR(A12="",COUNTIF(A12,"* *")>0,LEFT(A12,1)="7",LEFT(A12,1)="8"),"",IF(VLOOKUP(A12,ZADANIOWY!A$2:O$10710,4,0)="T",VLOOKUP(A12,ZADANIOWY!A$2:O$10710,14,0),"")) ->  | J12: =IF(OR(A12="",COUNTIF(A12,"* *")>0,LEFT(A12,1)="7",LEFT(A12,1)="8"),"",IF(VLOOKUP(A12,ZADANIOWY!A$2:O$10710,4,0)="T",VLOOKUP(A12,ZADANIOWY!A$2:O$10710,15,0),"")) ->  | K12: nie
A13: I/2 | B13: Drogi i mosty - program 2 | C13: =C15+C39+C49 -> 0 | D13: =D15+D39+D49 -> 0 | E13: nie | G13: =IF(OR(A13="",COUNTIF(A13,"* *")>0,LEFT(A13,1)="7",LEFT(A13,1)="8"),"",IF(VLOOKUP(A13,ZADANIOWY!A$2:O$10710,4,0)="T",VLOOKUP(A13,ZADANIOWY!A$2:O$10710,12,0)-C13,"")) -> 0 | H13: =IF(OR(A13="",COUNTIF(A13,"* *")>0,LEFT(A13,1)="7",LEFT(A13,1)="8"),"",IF(VLOOKUP(A13,ZADANIOWY!A$2:O$10710,4,0)="T",VLOOKUP(A13,ZADANIOWY!A$2:O$10710,13,0)-D13,"")) -> 0 | I13: =IF(OR(A13="",COUNTIF(A13,"* *")>0,LEFT(A13,1)="7",LEFT(A13,1)="8"),"",IF(VLOOKUP(A13,ZADANIOWY!A$2:O$10710,4,0)="T",VLOOKUP(A13,ZADANIOWY!A$2:O$10710,14,0),"")) -> 0 | J13: =IF(OR(A13="",COUNTIF(A13,"* *")>0,LEFT(A13,1)="7",LEFT(A13,1)="8"),"",IF(VLOOKUP(A13,ZADANIOWY!A$2:O$10710,4,0)="T",VLOOKUP(A13,ZADANIOWY!A$2:O$10710,15,0),"")) -> 0 | K13: nie
E14: nie | G14: =IF(OR(A14="",COUNTIF(A14,"* *")>0,LEFT(A14,1)="7",LEFT(A14,1)="8"),"",IF(VLOOKUP(A14,ZADANIOWY!A$2:O$10710,4,0)="T",VLOOKUP(A14,ZADANIOWY!A$2:O$10710,12,0)-C14,"")) ->  | H14: =IF(OR(A14="",COUNTIF(A14,"* *")>0,LEFT(A14,1)="7",LEFT(A14,1)="8"),"",IF(VLOOKUP(A14,ZADANIOWY!A$2:O$10710,4,0)="T",VLOOKUP(A14,ZADANIOWY!A$2:O$10710,13,0)-D14,"")) ->  | I14: =IF(OR(A14="",COUNTIF(A14,"* *")>0,LEFT(A14,1)="7",LEFT(A14,1)="8"),"",IF(VLOOKUP(A14,ZADANIOWY!A$2:O$10710,4,0)="T",VLOOKUP(A14,ZADANIOWY!A$2:O$10710,14,0),"")) ->  | J14: =IF(OR(A14="",COUNTIF(A14,"* *")>0,LEFT(A14,1)="7",LEFT(A14,1)="8"),"",IF(VLOOKUP(A14,ZADANIOWY!A$2:O$10710,4,0)="T",VLOOKUP(A14,ZADANIOWY!A$2:O$10710,15,0),"")) ->  | K14: nie
A15: B/I/2/1 | B15: Utrzymanie i remonty dróg - zadanie 1 | C15: =C17+C31 -> 0 | D15: =D17+D31 -> 0 | E15: nie | G15: =IF(OR(A15="",COUNTIF(A15,"* *")>0,LEFT(A15,1)="7",LEFT(A15,1)="8"),"",IF(VLOOKUP(A15,ZADANIOWY!A$2:O$10710,4,0)="T",VLOOKUP(A15,ZADANIOWY!A$2:O$10710,12,0)-C15,"")) -> 0 | H15: =IF(OR(A15="",COUNTIF(A15,"* *")>0,LEFT(A15,1)="7",LEFT(A15,1)="8"),"",IF(VLOOKUP(A15,ZADANIOWY!A$2:O$10710,4,0)="T",VLOOKUP(A15,ZADANIOWY!A$2:O$10710,13,0)-D15,"")) -> 0 | I15: =IF(OR(A15="",COUNTIF(A15,"* *")>0,LEFT(A15,1)="7",LEFT(A15,1)="8"),"",IF(VLOOKUP(A15,ZADANIOWY!A$2:O$10710,4,0)="T",VLOOKUP(A15,ZADANIOWY!A$2:O$10710,14,0),"")) -> 0 | J15: =IF(OR(A15="",COUNTIF(A15,"* *")>0,LEFT(A15,1)="7",LEFT(A15,1)="8"),"",IF(VLOOKUP(A15,ZADANIOWY!A$2:O$10710,4,0)="T",VLOOKUP(A15,ZADANIOWY!A$2:O$10710,15,0),"")) -> 0 | K15: nie
E16: nie | G16: =IF(OR(A16="",COUNTIF(A16,"* *")>0,LEFT(A16,1)="7",LEFT(A16,1)="8"),"",IF(VLOOKUP(A16,ZADANIOWY!A$2:O$10710,4,0)="T",VLOOKUP(A16,ZADANIOWY!A$2:O$10710,12,0)-C16,"")) ->  | H16: =IF(OR(A16="",COUNTIF(A16,"* *")>0,LEFT(A16,1)="7",LEFT(A16,1)="8"),"",IF(VLOOKUP(A16,ZADANIOWY!A$2:O$10710,4,0)="T",VLOOKUP(A16,ZADANIOWY!A$2:O$10710,13,0)-D16,"")) ->  | I16: =IF(OR(A16="",COUNTIF(A16,"* *")>0,LEFT(A16,1)="7",LEFT(A16,1)="8"),"",IF(VLOOKUP(A16,ZADANIOWY!A$2:O$10710,4,0)="T",VLOOKUP(A16,ZADANIOWY!A$2:O$10710,14,0),"")) ->  | J16: =IF(OR(A16="",COUNTIF(A16,"* *")>0,LEFT(A16,1)="7",LEFT(A16,1)="8"),"",IF(VLOOKUP(A16,ZADANIOWY!A$2:O$10710,4,0)="T",VLOOKUP(A16,ZADANIOWY!A$2:O$10710,15,0),"")) ->  | K16: nie
A17: B/I/2/1/1 | B17: Utrzymanie i remonty dróg gminnych | C17: =C19+C25 -> 0 | D17: =D19+D25 -> 0 | E17: nie | G17: =IF(OR(A17="",COUNTIF(A17,"* *")>0,LEFT(A17,1)="7",LEFT(A17,1)="8"),"",IF(VLOOKUP(A17,ZADANIOWY!A$2:O$10710,4,0)="T",VLOOKUP(A17,ZADANIOWY!A$2:O$10710,12,0)-C17,"")) -> 0 | H17: =IF(OR(A17="",COUNTIF(A17,"* *")>0,LEFT(A17,1)="7",LEFT(A17,1)="8"),"",IF(VLOOKUP(A17,ZADANIOWY!A$2:O$10710,4,0)="T",VLOOKUP(A17,ZADANIOWY!A$2:O$10710,13,0)-D17,"")) -> 0 | I17: =IF(OR(A17="",COUNTIF(A17,"* *")>0,LEFT(A17,1)="7",LEFT(A17,1)="8"),"",IF(VLOOKUP(A17,ZADANIOWY!A$2:O$10710,4,0)="T",VLOOKUP(A17,ZADANIOWY!A$2:O$10710,14,0),"")) -> 0 | J17: =IF(OR(A17="",COUNTIF(A17,"* *")>0,LEFT(A17,1)="7",LEFT(A17,1)="8"),"",IF(VLOOKUP(A17,ZADANIOWY!A$2:O$10710,4,0)="T",VLOOKUP(A17,ZADANIOWY!A$2:O$10710,15,0),"")) -> 0 | K17: nie
E18: nie | G18: =IF(OR(A18="",COUNTIF(A18,"* *")>0,LEFT(A18,1)="7",LEFT(A18,1)="8"),"",IF(VLOOKUP(A18,ZADANIOWY!A$2:O$10710,4,0)="T",VLOOKUP(A18,ZADANIOWY!A$2:O$10710,12,0)-C18,"")) ->  | H18: =IF(OR(A18="",COUNTIF(A18,"* *")>0,LEFT(A18,1)="7",LEFT(A18,1)="8"),"",IF(VLOOKUP(A18,ZADANIOWY!A$2:O$10710,4,0)="T",VLOOKUP(A18,ZADANIOWY!A$2:O$10710,13,0)-D18,"")) ->  | I18: =IF(OR(A18="",COUNTIF(A18,"* *")>0,LEFT(A18,1)="7",LEFT(A18,1)="8"),"",IF(VLOOKUP(A18,ZADANIOWY!A$2:O$10710,4,0)="T",VLOOKUP(A18,ZADANIOWY!A$2:O$10710,14,0),"")) ->  | J18: =IF(OR(A18="",COUNTIF(A18,"* *")>0,LEFT(A18,1)="7",LEFT(A18,1)="8"),"",IF(VLOOKUP(A18,ZADANIOWY!A$2:O$10710,4,0)="T",VLOOKUP(A18,ZADANIOWY!A$2:O$10710,15,0),"")) ->  | K18: nie
B19: Dysponent 1: Wydział Inwestycji | E19: nie | G19: =IF(OR(A19="",COUNTIF(A19,"* *")>0,LEFT(A19,1)="7",LEFT(A19,1)="8"),"",IF(VLOOKUP(A19,ZADANIOWY!A$2:O$10710,4,0)="T",VLOOKUP(A19,ZADANIOWY!A$2:O$10710,12,0)-C19,"")) ->  | H19: =IF(OR(A19="",COUNTIF(A19,"* *")>0,LEFT(A19,1)="7",LEFT(A19,1)="8"),"",IF(VLOOKUP(A19,ZADANIOWY!A$2:O$10710,4,0)="T",VLOOKUP(A19,ZADANIOWY!A$2:O$10710,13,0)-D19,"")) ->  | I19: =IF(OR(A19="",COUNTIF(A19,"* *")>0,LEFT(A19,1)="7",LEFT(A19,1)="8"),"",IF(VLOOKUP(A19,ZADANIOWY!A$2:O$10710,4,0)="T",VLOOKUP(A19,ZADANIOWY!A$2:O$10710,14,0),"")) ->  | J19: =IF(OR(A19="",COUNTIF(A19,"* *")>0,LEFT(A19,1)="7",LEFT(A19,1)="8"),"",IF(VLOOKUP(A19,ZADANIOWY!A$2:O$10710,4,0)="T",VLOOKUP(A19,ZADANIOWY!A$2:O$10710,15,0),"")) ->  | K19: nie
E20: nie | G20: =IF(OR(A20="",COUNTIF(A20,"* *")>0,LEFT(A20,1)="7",LEFT(A20,1)="8"),"",IF(VLOOKUP(A20,ZADANIOWY!A$2:O$10710,4,0)="T",VLOOKUP(A20,ZADANIOWY!A$2:O$10710,12,0)-C20,"")) ->  | H20: =IF(OR(A20="",COUNTIF(A20,"* *")>0,LEFT(A20,1)="7",LEFT(A20,1)="8"),"",IF(VLOOKUP(A20,ZADANIOWY!A$2:O$10710,4,0)="T",VLOOKUP(A20,ZADANIOWY!A$2:O$10710,13,0)-D20,"")) ->  | I20: =IF(OR(A20="",COUNTIF(A20,"* *")>0,LEFT(A20,1)="7",LEFT(A20,1)="8"),"",IF(VLOOKUP(A20,ZADANIOWY!A$2:O$10710,4,0)="T",VLOOKUP(A20,ZADANIOWY!A$2:O$10710,14,0),"")) ->  | J20: =IF(OR(A20="",COUNTIF(A20,"* *")>0,LEFT(A20,1)="7",LEFT(A20,1)="8"),"",IF(VLOOKUP(A20,ZADANIOWY!A$2:O$10710,4,0)="T",VLOOKUP(A20,ZADANIOWY!A$2:O$10710,15,0),"")) ->  | K20: nie
B21: Klasyfikacja: rozdział: 60016 | E21: nie | G21: =IF(OR(A21="",COUNTIF(A21,"* *")>0,LEFT(A21,1)="7",LEFT(A21,1)="8"),"",IF(VLOOKUP(A21,ZADANIOWY!A$2:O$10710,4,0)="T",VLOOKUP(A21,ZADANIOWY!A$2:O$10710,12,0)-C21,"")) ->  | H21: =IF(OR(A21="",COUNTIF(A21,"* *")>0,LEFT(A21,1)="7",LEFT(A21,1)="8"),"",IF(VLOOKUP(A21,ZADANIOWY!A$2:O$10710,4,0)="T",VLOOKUP(A21,ZADANIOWY!A$2:O$10710,13,0)-D21,"")) ->  | I21: =IF(OR(A21="",COUNTIF(A21,"* *")>0,LEFT(A21,1)="7",LEFT(A21,1)="8"),"",IF(VLOOKUP(A21,ZADANIOWY!A$2:O$10710,4,0)="T",VLOOKUP(A21,ZADANIOWY!A$2:O$10710,14,0),"")) ->  | J21: =IF(OR(A21="",COUNTIF(A21,"* *")>0,LEFT(A21,1)="7",LEFT(A21,1)="8"),"",IF(VLOOKUP(A21,ZADANIOWY!A$2:O$10710,4,0)="T",VLOOKUP(A21,ZADANIOWY!A$2:O$10710,15,0),"")) ->  | K21: nie
E22: nie | G22: =IF(OR(A22="",COUNTIF(A22,"* *")>0,LEFT(A22,1)="7",LEFT(A22,1)="8"),"",IF(VLOOKUP(A22,ZADANIOWY!A$2:O$10710,4,0)="T",VLOOKUP(A22,ZADANIOWY!A$2:O$10710,12,0)-C22,"")) ->  | H22: =IF(OR(A22="",COUNTIF(A22,"* *")>0,LEFT(A22,1)="7",LEFT(A22,1)="8"),"",IF(VLOOKUP(A22,ZADANIOWY!A$2:O$10710,4,0)="T",VLOOKUP(A22,ZADANIOWY!A$2:O$10710,13,0)-D22,"")) ->  | I22: =IF(OR(A22="",COUNTIF(A22,"* *")>0,LEFT(A22,1)="7",LEFT(A22,1)="8"),"",IF(VLOOKUP(A22,ZADANIOWY!A$2:O$10710,4,0)="T",VLOOKUP(A22,ZADANIOWY!A$2:O$10710,14,0),"")) ->  | J22: =IF(OR(A22="",COUNTIF(A22,"* *")>0,LEFT(A22,1)="7",LEFT(A22,1)="8"),"",IF(VLOOKUP(A22,ZADANIOWY!A$2:O$10710,4,0)="T",VLOOKUP(A22,ZADANIOWY!A$2:O$10710,15,0),"")) ->  | K22: nie
B23: OPIS | E23: nie | G23: =IF(OR(A23="",COUNTIF(A23,"* *")>0,LEFT(A23,1)="7",LEFT(A23,1)="8"),"",IF(VLOOKUP(A23,ZADANIOWY!A$2:O$10710,4,0)="T",VLOOKUP(A23,ZADANIOWY!A$2:O$10710,12,0)-C23,"")) ->  | H23: =IF(OR(A23="",COUNTIF(A23,"* *")>0,LEFT(A23,1)="7",LEFT(A23,1)="8"),"",IF(VLOOKUP(A23,ZADANIOWY!A$2:O$10710,4,0)="T",VLOOKUP(A23,ZADANIOWY!A$2:O$10710,13,0)-D23,"")) ->  | I23: =IF(OR(A23="",COUNTIF(A23,"* *")>0,LEFT(A23,1)="7",LEFT(A23,1)="8"),"",IF(VLOOKUP(A23,ZADANIOWY!A$2:O$10710,4,0)="T",VLOOKUP(A23,ZADANIOWY!A$2:O$10710,14,0),"")) ->  | J23: =IF(OR(A23="",COUNTIF(A23,"* *")>0,LEFT(A23,1)="7",LEFT(A23,1)="8"),"",IF(VLOOKUP(A23,ZADANIOWY!A$2:O$10710,4,0)="T",VLOOKUP(A23,ZADANIOWY!A$2:O$10710,15,0),"")) ->  | K23: nie
E24: nie | G24: =IF(OR(A24="",COUNTIF(A24,"* *")>0,LEFT(A24,1)="7",LEFT(A24,1)="8"),"",IF(VLOOKUP(A24,ZADANIOWY!A$2:O$10710,4,0)="T",VLOOKUP(A24,ZADANIOWY!A$2:O$10710,12,0)-C24,"")) ->  | H24: =IF(OR(A24="",COUNTIF(A24,"* *")>0,LEFT(A24,1)="7",LEFT(A24,1)="8"),"",IF(VLOOKUP(A24,ZADANIOWY!A$2:O$10710,4,0)="T",VLOOKUP(A24,ZADANIOWY!A$2:O$10710,13,0)-D24,"")) ->  | I24: =IF(OR(A24="",COUNTIF(A24,"* *")>0,LEFT(A24,1)="7",LEFT(A24,1)="8"),"",IF(VLOOKUP(A24,ZADANIOWY!A$2:O$10710,4,0)="T",VLOOKUP(A24,ZADANIOWY!A$2:O$10710,14,0),"")) ->  | J24: =IF(OR(A24="",COUNTIF(A24,"* *")>0,LEFT(A24,1)="7",LEFT(A24,1)="8"),"",IF(VLOOKUP(A24,ZADANIOWY!A$2:O$10710,4,0)="T",VLOOKUP(A24,ZADANIOWY!A$2:O$10710,15,0),"")) ->  | K24: nie
B25: Dysponent 2: Wydział Infrastruktury | E25: nie | G25: =IF(OR(A25="",COUNTIF(A25,"* *")>0,LEFT(A25,1)="7",LEFT(A25,1)="8"),"",IF(VLOOKUP(A25,ZADANIOWY!A$2:O$10710,4,0)="T",VLOOKUP(A25,ZADANIOWY!A$2:O$10710,12,0)-C25,"")) ->  | H25: =IF(OR(A25="",COUNTIF(A25,"* *")>0,LEFT(A25,1)="7",LEFT(A25,1)="8"),"",IF(VLOOKUP(A25,ZADANIOWY!A$2:O$10710,4,0)="T",VLOOKUP(A25,ZADANIOWY!A$2:O$10710,13,0)-D25,"")) ->  | I25: =IF(OR(A25="",COUNTIF(A25,"* *")>0,LEFT(A25,1)="7",LEFT(A25,1)="8"),"",IF(VLOOKUP(A25,ZADANIOWY!A$2:O$10710,4,0)="T",VLOOKUP(A25,ZADANIOWY!A$2:O$10710,14,0),"")) ->  | J25: =IF(OR(A25="",COUNTIF(A25,"* *")>0,LEFT(A25,1)="7",LEFT(A25,1)="8"),"",IF(VLOOKUP(A25,ZADANIOWY!A$2:O$10710,4,0)="T",VLOOKUP(A25,ZADANIOWY!A$2:O$10710,15,0),"")) ->  | K25: nie
E26: nie | G26: =IF(OR(A26="",COUNTIF(A26,"* *")>0,LEFT(A26,1)="7",LEFT(A26,1)="8"),"",IF(VLOOKUP(A26,ZADANIOWY!A$2:O$10710,4,0)="T",VLOOKUP(A26,ZADANIOWY!A$2:O$10710,12,0)-C26,"")) ->  | H26: =IF(OR(A26="",COUNTIF(A26,"* *")>0,LEFT(A26,1)="7",LEFT(A26,1)="8"),"",IF(VLOOKUP(A26,ZADANIOWY!A$2:O$10710,4,0)="T",VLOOKUP(A26,ZADANIOWY!A$2:O$10710,13,0)-D26,"")) ->  | I26: =IF(OR(A26="",COUNTIF(A26,"* *")>0,LEFT(A26,1)="7",LEFT(A26,1)="8"),"",IF(VLOOKUP(A26,ZADANIOWY!A$2:O$10710,4,0)="T",VLOOKUP(A26,ZADANIOWY!A$2:O$10710,14,0),"")) ->  | J26: =IF(OR(A26="",COUNTIF(A26,"* *")>0,LEFT(A26,1)="7",LEFT(A26,1)="8"),"",IF(VLOOKUP(A26,ZADANIOWY!A$2:O$10710,4,0)="T",VLOOKUP(A26,ZADANIOWY!A$2:O$10710,15,0),"")) ->  | K26: nie
B27: Klasyfikacja: rozdział: 60016 | E27: nie | G27: =IF(OR(A27="",COUNTIF(A27,"* *")>0,LEFT(A27,1)="7",LEFT(A27,1)="8"),"",IF(VLOOKUP(A27,ZADANIOWY!A$2:O$10710,4,0)="T",VLOOKUP(A27,ZADANIOWY!A$2:O$10710,12,0)-C27,"")) ->  | H27: =IF(OR(A27="",COUNTIF(A27,"* *")>0,LEFT(A27,1)="7",LEFT(A27,1)="8"),"",IF(VLOOKUP(A27,ZADANIOWY!A$2:O$10710,4,0)="T",VLOOKUP(A27,ZADANIOWY!A$2:O$10710,13,0)-D27,"")) ->  | I27: =IF(OR(A27="",COUNTIF(A27,"* *")>0,LEFT(A27,1)="7",LEFT(A27,1)="8"),"",IF(VLOOKUP(A27,ZADANIOWY!A$2:O$10710,4,0)="T",VLOOKUP(A27,ZADANIOWY!A$2:O$10710,14,0),"")) ->  | J27: =IF(OR(A27="",COUNTIF(A27,"* *")>0,LEFT(A27,1)="7",LEFT(A27,1)="8"),"",IF(VLOOKUP(A27,ZADANIOWY!A$2:O$10710,4,0)="T",VLOOKUP(A27,ZADANIOWY!A$2:O$10710,15,0),"")) ->  | K27: nie
E28: nie | G28: =IF(OR(A28="",COUNTIF(A28,"* *")>0,LEFT(A28,1)="7",LEFT(A28,1)="8"),"",IF(VLOOKUP(A28,ZADANIOWY!A$2:O$10710,4,0)="T",VLOOKUP(A28,ZADANIOWY!A$2:O$10710,12,0)-C28,"")) ->  | H28: =IF(OR(A28="",COUNTIF(A28,"* *")>0,LEFT(A28,1)="7",LEFT(A28,1)="8"),"",IF(VLOOKUP(A28,ZADANIOWY!A$2:O$10710,4,0)="T",VLOOKUP(A28,ZADANIOWY!A$2:O$10710,13,0)-D28,"")) ->  | I28: =IF(OR(A28="",COUNTIF(A28,"* *")>0,LEFT(A28,1)="7",LEFT(A28,1)="8"),"",IF(VLOOKUP(A28,ZADANIOWY!A$2:O$10710,4,0)="T",VLOOKUP(A28,ZADANIOWY!A$2:O$10710,14,0),"")) ->  | J28: =IF(OR(A28="",COUNTIF(A28,"* *")>0,LEFT(A28,1)="7",LEFT(A28,1)="8"),"",IF(VLOOKUP(A28,ZADANIOWY!A$2:O$10710,4,0)="T",VLOOKUP(A28,ZADANIOWY!A$2:O$10710,15,0),"")) ->  | K28: nie
B29: OPIS | E29: nie | G29: =IF(OR(A29="",COUNTIF(A29,"* *")>0,LEFT(A29,1)="7",LEFT(A29,1)="8"),"",IF(VLOOKUP(A29,ZADANIOWY!A$2:O$10710,4,0)="T",VLOOKUP(A29,ZADANIOWY!A$2:O$10710,12,0)-C29,"")) ->  | H29: =IF(OR(A29="",COUNTIF(A29,"* *")>0,LEFT(A29,1)="7",LEFT(A29,1)="8"),"",IF(VLOOKUP(A29,ZADANIOWY!A$2:O$10710,4,0)="T",VLOOKUP(A29,ZADANIOWY!A$2:O$10710,13,0)-D29,"")) ->  | I29: =IF(OR(A29="",COUNTIF(A29,"* *")>0,LEFT(A29,1)="7",LEFT(A29,1)="8"),"",IF(VLOOKUP(A29,ZADANIOWY!A$2:O$10710,4,0)="T",VLOOKUP(A29,ZADANIOWY!A$2:O$10710,14,0),"")) ->  | J29: =IF(OR(A29="",COUNTIF(A29,"* *")>0,LEFT(A29,1)="7",LEFT(A29,1)="8"),"",IF(VLOOKUP(A29,ZADANIOWY!A$2:O$10710,4,0)="T",VLOOKUP(A29,ZADANIOWY!A$2:O$10710,15,0),"")) ->  | K29: nie
E30: nie | G30: =IF(OR(A30="",COUNTIF(A30,"* *")>0,LEFT(A30,1)="7",LEFT(A30,1)="8"),"",IF(VLOOKUP(A30,ZADANIOWY!A$2:O$10710,4,0)="T",VLOOKUP(A30,ZADANIOWY!A$2:O$10710,12,0)-C30,"")) ->  | H30: =IF(OR(A30="",COUNTIF(A30,"* *")>0,LEFT(A30,1)="7",LEFT(A30,1)="8"),"",IF(VLOOKUP(A30,ZADANIOWY!A$2:O$10710,4,0)="T",VLOOKUP(A30,ZADANIOWY!A$2:O$10710,13,0)-D30,"")) ->  | I30: =IF(OR(A30="",COUNTIF(A30,"* *")>0,LEFT(A30,1)="7",LEFT(A30,1)="8"),"",IF(VLOOKUP(A30,ZADANIOWY!A$2:O$10710,4,0)="T",VLOOKUP(A30,ZADANIOWY!A$2:O$10710,14,0),"")) ->  | J30: =IF(OR(A30="",COUNTIF(A30,"* *")>0,LEFT(A30,1)="7",LEFT(A30,1)="8"),"",IF(VLOOKUP(A30,ZADANIOWY!A$2:O$10710,4,0)="T",VLOOKUP(A30,ZADANIOWY!A$2:O$10710,15,0),"")) ->  | K30: nie
A31: B/I/2/1/3 | B31: Utrzymanie i remonty dróg wewnętrznych | E31: nie | G31: =IF(OR(A31="",COUNTIF(A31,"* *")>0,LEFT(A31,1)="7",LEFT(A31,1)="8"),"",IF(VLOOKUP(A31,ZADANIOWY!A$2:O$10710,4,0)="T",VLOOKUP(A31,ZADANIOWY!A$2:O$10710,12,0)-C31,"")) -> 0 | H31: =IF(OR(A31="",COUNTIF(A31,"* *")>0,LEFT(A31,1)="7",LEFT(A31,1)="8"),"",IF(VLOOKUP(A31,ZADANIOWY!A$2:O$10710,4,0)="T",VLOOKUP(A31,ZADANIOWY!A$2:O$10710,13,0)-D31,"")) -> 0 | I31: =IF(OR(A31="",COUNTIF(A31,"* *")>0,LEFT(A31,1)="7",LEFT(A31,1)="8"),"",IF(VLOOKUP(A31,ZADANIOWY!A$2:O$10710,4,0)="T",VLOOKUP(A31,ZADANIOWY!A$2:O$10710,14,0),"")) -> 0 | J31: =IF(OR(A31="",COUNTIF(A31,"* *")>0,LEFT(A31,1)="7",LEFT(A31,1)="8"),"",IF(VLOOKUP(A31,ZADANIOWY!A$2:O$10710,4,0)="T",VLOOKUP(A31,ZADANIOWY!A$2:O$10710,15,0),"")) -> 0 | K31: nie
E32: nie | G32: =IF(OR(A32="",COUNTIF(A32,"* *")>0,LEFT(A32,1)="7",LEFT(A32,1)="8"),"",IF(VLOOKUP(A32,ZADANIOWY!A$2:O$10710,4,0)="T",VLOOKUP(A32,ZADANIOWY!A$2:O$10710,12,0)-C32,"")) ->  | H32: =IF(OR(A32="",COUNTIF(A32,"* *")>0,LEFT(A32,1)="7",LEFT(A32,1)="8"),"",IF(VLOOKUP(A32,ZADANIOWY!A$2:O$10710,4,0)="T",VLOOKUP(A32,ZADANIOWY!A$2:O$10710,13,0)-D32,"")) ->  | I32: =IF(OR(A32="",COUNTIF(A32,"* *")>0,LEFT(A32,1)="7",LEFT(A32,1)="8"),"",IF(VLOOKUP(A32,ZADANIOWY!A$2:O$10710,4,0)="T",VLOOKUP(A32,ZADANIOWY!A$2:O$10710,14,0),"")) ->  | J32: =IF(OR(A32="",COUNTIF(A32,"* *")>0,LEFT(A32,1)="7",LEFT(A32,1)="8"),"",IF(VLOOKUP(A32,ZADANIOWY!A$2:O$10710,4,0)="T",VLOOKUP(A32,ZADANIOWY!A$2:O$10710,15,0),"")) ->  | K32: nie
B33: Dysponent: Wydział Infrastruktury | E33: nie | G33: =IF(OR(A33="",COUNTIF(A33,"* *")>0,LEFT(A33,1)="7",LEFT(A33,1)="8"),"",IF(VLOOKUP(A33,ZADANIOWY!A$2:O$10710,4,0)="T",VLOOKUP(A33,ZADANIOWY!A$2:O$10710,12,0)-C33,"")) ->  | H33: =IF(OR(A33="",COUNTIF(A33,"* *")>0,LEFT(A33,1)="7",LEFT(A33,1)="8"),"",IF(VLOOKUP(A33,ZADANIOWY!A$2:O$10710,4,0)="T",VLOOKUP(A33,ZADANIOWY!A$2:O$10710,13,0)-D33,"")) ->  | I33: =IF(OR(A33="",COUNTIF(A33,"* *")>0,LEFT(A33,1)="7",LEFT(A33,1)="8"),"",IF(VLOOKUP(A33,ZADANIOWY!A$2:O$10710,4,0)="T",VLOOKUP(A33,ZADANIOWY!A$2:O$10710,14,0),"")) ->  | J33: =IF(OR(A33="",COUNTIF(A33,"* *")>0,LEFT(A33,1)="7",LEFT(A33,1)="8"),"",IF(VLOOKUP(A33,ZADANIOWY!A$2:O$10710,4,0)="T",VLOOKUP(A33,ZADANIOWY!A$2:O$10710,15,0),"")) ->  | K33: nie
E34: nie | G34: =IF(OR(A34="",COUNTIF(A34,"* *")>0,LEFT(A34,1)="7",LEFT(A34,1)="8"),"",IF(VLOOKUP(A34,ZADANIOWY!A$2:O$10710,4,0)="T",VLOOKUP(A34,ZADANIOWY!A$2:O$10710,12,0)-C34,"")) ->  | H34: =IF(OR(A34="",COUNTIF(A34,"* *")>0,LEFT(A34,1)="7",LEFT(A34,1)="8"),"",IF(VLOOKUP(A34,ZADANIOWY!A$2:O$10710,4,0)="T",VLOOKUP(A34,ZADANIOWY!A$2:O$10710,13,0)-D34,"")) ->  | I34: =IF(OR(A34="",COUNTIF(A34,"* *")>0,LEFT(A34,1)="7",LEFT(A34,1)="8"),"",IF(VLOOKUP(A34,ZADANIOWY!A$2:O$10710,4,0)="T",VLOOKUP(A34,ZADANIOWY!A$2:O$10710,14,0),"")) ->  | J34: =IF(OR(A34="",COUNTIF(A34,"* *")>0,LEFT(A34,1)="7",LEFT(A34,1)="8"),"",IF(VLOOKUP(A34,ZADANIOWY!A$2:O$10710,4,0)="T",VLOOKUP(A34,ZADANIOWY!A$2:O$10710,15,0),"")) ->  | K34: nie
B35: Klasyfikacja: rozdział: 60017 | E35: nie | G35: =IF(OR(A35="",COUNTIF(A35,"* *")>0,LEFT(A35,1)="7",LEFT(A35,1)="8"),"",IF(VLOOKUP(A35,ZADANIOWY!A$2:O$10710,4,0)="T",VLOOKUP(A35,ZADANIOWY!A$2:O$10710,12,0)-C35,"")) ->  | H35: =IF(OR(A35="",COUNTIF(A35,"* *")>0,LEFT(A35,1)="7",LEFT(A35,1)="8"),"",IF(VLOOKUP(A35,ZADANIOWY!A$2:O$10710,4,0)="T",VLOOKUP(A35,ZADANIOWY!A$2:O$10710,13,0)-D35,"")) ->  | I35: =IF(OR(A35="",COUNTIF(A35,"* *")>0,LEFT(A35,1)="7",LEFT(A35,1)="8"),"",IF(VLOOKUP(A35,ZADANIOWY!A$2:O$10710,4,0)="T",VLOOKUP(A35,ZADANIOWY!A$2:O$10710,14,0),"")) ->  | J35: =IF(OR(A35="",COUNTIF(A35,"* *")>0,LEFT(A35,1)="7",LEFT(A35,1)="8"),"",IF(VLOOKUP(A35,ZADANIOWY!A$2:O$10710,4,0)="T",VLOOKUP(A35,ZADANIOWY!A$2:O$10710,15,0),"")) ->  | K35: nie
E36: nie | G36: =IF(OR(A36="",COUNTIF(A36,"* *")>0,LEFT(A36,1)="7",LEFT(A36,1)="8"),"",IF(VLOOKUP(A36,ZADANIOWY!A$2:O$10710,4,0)="T",VLOOKUP(A36,ZADANIOWY!A$2:O$10710,12,0)-C36,"")) ->  | H36: =IF(OR(A36="",COUNTIF(A36,"* *")>0,LEFT(A36,1)="7",LEFT(A36,1)="8"),"",IF(VLOOKUP(A36,ZADANIOWY!A$2:O$10710,4,0)="T",VLOOKUP(A36,ZADANIOWY!A$2:O$10710,13,0)-D36,"")) ->  | I36: =IF(OR(A36="",COUNTIF(A36,"* *")>0,LEFT(A36,1)="7",LEFT(A36,1)="8"),"",IF(VLOOKUP(A36,ZADANIOWY!A$2:O$10710,4,0)="T",VLOOKUP(A36,ZADANIOWY!A$2:O$10710,14,0),"")) ->  | J36: =IF(OR(A36="",COUNTIF(A36,"* *")>0,LEFT(A36,1)="7",LEFT(A36,1)="8"),"",IF(VLOOKUP(A36,ZADANIOWY!A$2:O$10710,4,0)="T",VLOOKUP(A36,ZADANIOWY!A$2:O$10710,15,0),"")) ->  | K36: nie
B37: OPIS | E37: nie | G37: =IF(OR(A37="",COUNTIF(A37,"* *")>0,LEFT(A37,1)="7",LEFT(A37,1)="8"),"",IF(VLOOKUP(A37,ZADANIOWY!A$2:O$10710,4,0)="T",VLOOKUP(A37,ZADANIOWY!A$2:O$10710,12,0)-C37,"")) ->  | H37: =IF(OR(A37="",COUNTIF(A37,"* *")>0,LEFT(A37,1)="7",LEFT(A37,1)="8"),"",IF(VLOOKUP(A37,ZADANIOWY!A$2:O$10710,4,0)="T",VLOOKUP(A37,ZADANIOWY!A$2:O$10710,13,0)-D37,"")) ->  | I37: =IF(OR(A37="",COUNTIF(A37,"* *")>0,LEFT(A37,1)="7",LEFT(A37,1)="8"),"",IF(VLOOKUP(A37,ZADANIOWY!A$2:O$10710,4,0)="T",VLOOKUP(A37,ZADANIOWY!A$2:O$10710,14,0),"")) ->  | J37: =IF(OR(A37="",COUNTIF(A37,"* *")>0,LEFT(A37,1)="7",LEFT(A37,1)="8"),"",IF(VLOOKUP(A37,ZADANIOWY!A$2:O$10710,4,0)="T",VLOOKUP(A37,ZADANIOWY!A$2:O$10710,15,0),"")) ->  | K37: nie
E38: nie | G38: =IF(OR(A38="",COUNTIF(A38,"* *")>0,LEFT(A38,1)="7",LEFT(A38,1)="8"),"",IF(VLOOKUP(A38,ZADANIOWY!A$2:O$10710,4,0)="T",VLOOKUP(A38,ZADANIOWY!A$2:O$10710,12,0)-C38,"")) ->  | H38: =IF(OR(A38="",COUNTIF(A38,"* *")>0,LEFT(A38,1)="7",LEFT(A38,1)="8"),"",IF(VLOOKUP(A38,ZADANIOWY!A$2:O$10710,4,0)="T",VLOOKUP(A38,ZADANIOWY!A$2:O$10710,13,0)-D38,"")) ->  | I38: =IF(OR(A38="",COUNTIF(A38,"* *")>0,LEFT(A38,1)="7",LEFT(A38,1)="8"),"",IF(VLOOKUP(A38,ZADANIOWY!A$2:O$10710,4,0)="T",VLOOKUP(A38,ZADANIOWY!A$2:O$10710,14,0),"")) ->  | J38: =IF(OR(A38="",COUNTIF(A38,"* *")>0,LEFT(A38,1)="7",LEFT(A38,1)="8"),"",IF(VLOOKUP(A38,ZADANIOWY!A$2:O$10710,4,0)="T",VLOOKUP(A38,ZADANIOWY!A$2:O$10710,15,0),"")) ->  | K38: nie
A39: B/I/2/4 | B39: Oświetlenie ulic - zadanie 4 | C39: =C41 -> 0 | D39: =D41 -> 0 | E39: nie | G39: =IF(OR(A39="",COUNTIF(A39,"* *")>0,LEFT(A39,1)="7",LEFT(A39,1)="8"),"",IF(VLOOKUP(A39,ZADANIOWY!A$2:O$10710,4,0)="T",VLOOKUP(A39,ZADANIOWY!A$2:O$10710,12,0)-C39,"")) -> 0 | H39: =IF(OR(A39="",COUNTIF(A39,"* *")>0,LEFT(A39,1)="7",LEFT(A39,1)="8"),"",IF(VLOOKUP(A39,ZADANIOWY!A$2:O$10710,4,0)="T",VLOOKUP(A39,ZADANIOWY!A$2:O$10710,13,0)-D39,"")) -> 0 | I39: =IF(OR(A39="",COUNTIF(A39,"* *")>0,LEFT(A39,1)="7",LEFT(A39,1)="8"),"",IF(VLOOKUP(A39,ZADANIOWY!A$2:O$10710,4,0)="T",VLOOKUP(A39,ZADANIOWY!A$2:O$10710,14,0),"")) -> 0 | J39: =IF(OR(A39="",COUNTIF(A39,"* *")>0,LEFT(A39,1)="7",LEFT(A39,1)="8"),"",IF(VLOOKUP(A39,ZADANIOWY!A$2:O$10710,4,0)="T",VLOOKUP(A39,ZADANIOWY!A$2:O$10710,15,0),"")) -> 0 | K39: nie
E40: nie | G40: =IF(OR(A40="",COUNTIF(A40,"* *")>0,LEFT(A40,1)="7",LEFT(A40,1)="8"),"",IF(VLOOKUP(A40,ZADANIOWY!A$2:O$10710,4,0)="T",VLOOKUP(A40,ZADANIOWY!A$2:O$10710,12,0)-C40,"")) ->  | H40: =IF(OR(A40="",COUNTIF(A40,"* *")>0,LEFT(A40,1)="7",LEFT(A40,1)="8"),"",IF(VLOOKUP(A40,ZADANIOWY!A$2:O$10710,4,0)="T",VLOOKUP(A40,ZADANIOWY!A$2:O$10710,13,0)-D40,"")) ->  | I40: =IF(OR(A40="",COUNTIF(A40,"* *")>0,LEFT(A40,1)="7",LEFT(A40,1)="8"),"",IF(VLOOKUP(A40,ZADANIOWY!A$2:O$10710,4,0)="T",VLOOKUP(A40,ZADANIOWY!A$2:O$10710,14,0),"")) ->  | J40: =IF(OR(A40="",COUNTIF(A40,"* *")>0,LEFT(A40,1)="7",LEFT(A40,1)="8"),"",IF(VLOOKUP(A40,ZADANIOWY!A$2:O$10710,4,0)="T",VLOOKUP(A40,ZADANIOWY!A$2:O$10710,15,0),"")) ->  | K40: nie
A41: B/I/2/4/2 | B41: Utrzymanie i remonty oświetlenia ulic, placów i dróg | E41: nie | G41: =IF(OR(A41="",COUNTIF(A41,"* *")>0,LEFT(A41,1)="7",LEFT(A41,1)="8"),"",IF(VLOOKUP(A41,ZADANIOWY!A$2:O$10710,4,0)="T",VLOOKUP(A41,ZADANIOWY!A$2:O$10710,12,0)-C41,"")) -> 0 | H41: =IF(OR(A41="",COUNTIF(A41,"* *")>0,LEFT(A41,1)="7",LEFT(A41,1)="8"),"",IF(VLOOKUP(A41,ZADANIOWY!A$2:O$10710,4,0)="T",VLOOKUP(A41,ZADANIOWY!A$2:O$10710,13,0)-D41,"")) -> 0 | I41: =IF(OR(A41="",COUNTIF(A41,"* *")>0,LEFT(A41,1)="7",LEFT(A41,1)="8"),"",IF(VLOOKUP(A41,ZADANIOWY!A$2:O$10710,4,0)="T",VLOOKUP(A41,ZADANIOWY!A$2:O$10710,14,0),"")) -> 0 | J41: =IF(OR(A41="",COUNTIF(A41,"* *")>0,LEFT(A41,1)="7",LEFT(A41,1)="8"),"",IF(VLOOKUP(A41,ZADANIOWY!A$2:O$10710,4,0)="T",VLOOKUP(A41,ZADANIOWY!A$2:O$10710,15,0),"")) -> 0 | K41: nie
E42: nie | G42: =IF(OR(A42="",COUNTIF(A42,"* *")>0,LEFT(A42,1)="7",LEFT(A42,1)="8"),"",IF(VLOOKUP(A42,ZADANIOWY!A$2:O$10710,4,0)="T",VLOOKUP(A42,ZADANIOWY!A$2:O$10710,12,0)-C42,"")) ->  | H42: =IF(OR(A42="",COUNTIF(A42,"* *")>0,LEFT(A42,1)="7",LEFT(A42,1)="8"),"",IF(VLOOKUP(A42,ZADANIOWY!A$2:O$10710,4,0)="T",VLOOKUP(A42,ZADANIOWY!A$2:O$10710,13,0)-D42,"")) ->  | I42: =IF(OR(A42="",COUNTIF(A42,"* *")>0,LEFT(A42,1)="7",LEFT(A42,1)="8"),"",IF(VLOOKUP(A42,ZADANIOWY!A$2:O$10710,4,0)="T",VLOOKUP(A42,ZADANIOWY!A$2:O$10710,14,0),"")) ->  | J42: =IF(OR(A42="",COUNTIF(A42,"* *")>0,LEFT(A42,1)="7",LEFT(A42,1)="8"),"",IF(VLOOKUP(A42,ZADANIOWY!A$2:O$10710,4,0)="T",VLOOKUP(A42,ZADANIOWY!A$2:O$10710,15,0),"")) ->  | K42: nie
B43: Dysponent: Wydział Infrastruktury | E43: nie | G43: =IF(OR(A43="",COUNTIF(A43,"* *")>0,LEFT(A43,1)="7",LEFT(A43,1)="8"),"",IF(VLOOKUP(A43,ZADANIOWY!A$2:O$10710,4,0)="T",VLOOKUP(A43,ZADANIOWY!A$2:O$10710,12,0)-C43,"")) ->  | H43: =IF(OR(A43="",COUNTIF(A43,"* *")>0,LEFT(A43,1)="7",LEFT(A43,1)="8"),"",IF(VLOOKUP(A43,ZADANIOWY!A$2:O$10710,4,0)="T",VLOOKUP(A43,ZADANIOWY!A$2:O$10710,13,0)-D43,"")) ->  | I43: =IF(OR(A43="",COUNTIF(A43,"* *")>0,LEFT(A43,1)="7",LEFT(A43,1)="8"),"",IF(VLOOKUP(A43,ZADANIOWY!A$2:O$10710,4,0)="T",VLOOKUP(A43,ZADANIOWY!A$2:O$10710,14,0),"")) ->  | J43: =IF(OR(A43="",COUNTIF(A43,"* *")>0,LEFT(A43,1)="7",LEFT(A43,1)="8"),"",IF(VLOOKUP(A43,ZADANIOWY!A$2:O$10710,4,0)="T",VLOOKUP(A43,ZADANIOWY!A$2:O$10710,15,0),"")) ->  | K43: nie
E44: nie | G44: =IF(OR(A44="",COUNTIF(A44,"* *")>0,LEFT(A44,1)="7",LEFT(A44,1)="8"),"",IF(VLOOKUP(A44,ZADANIOWY!A$2:O$10710,4,0)="T",VLOOKUP(A44,ZADANIOWY!A$2:O$10710,12,0)-C44,"")) ->  | H44: =IF(OR(A44="",COUNTIF(A44,"* *")>0,LEFT(A44,1)="7",LEFT(A44,1)="8"),"",IF(VLOOKUP(A44,ZADANIOWY!A$2:O$10710,4,0)="T",VLOOKUP(A44,ZADANIOWY!A$2:O$10710,13,0)-D44,"")) ->  | I44: =IF(OR(A44="",COUNTIF(A44,"* *")>0,LEFT(A44,1)="7",LEFT(A44,1)="8"),"",IF(VLOOKUP(A44,ZADANIOWY!A$2:O$10710,4,0)="T",VLOOKUP(A44,ZADANIOWY!A$2:O$10710,14,0),"")) ->  | J44: =IF(OR(A44="",COUNTIF(A44,"* *")>0,LEFT(A44,1)="7",LEFT(A44,1)="8"),"",IF(VLOOKUP(A44,ZADANIOWY!A$2:O$10710,4,0)="T",VLOOKUP(A44,ZADANIOWY!A$2:O$10710,15,0),"")) ->  | K44: nie
B45: Klasyfikacja: rozdział: 90015 | E45: nie | G45: =IF(OR(A45="",COUNTIF(A45,"* *")>0,LEFT(A45,1)="7",LEFT(A45,1)="8"),"",IF(VLOOKUP(A45,ZADANIOWY!A$2:O$10710,4,0)="T",VLOOKUP(A45,ZADANIOWY!A$2:O$10710,12,0)-C45,"")) ->  | H45: =IF(OR(A45="",COUNTIF(A45,"* *")>0,LEFT(A45,1)="7",LEFT(A45,1)="8"),"",IF(VLOOKUP(A45,ZADANIOWY!A$2:O$10710,4,0)="T",VLOOKUP(A45,ZADANIOWY!A$2:O$10710,13,0)-D45,"")) ->  | I45: =IF(OR(A45="",COUNTIF(A45,"* *")>0,LEFT(A45,1)="7",LEFT(A45,1)="8"),"",IF(VLOOKUP(A45,ZADANIOWY!A$2:O$10710,4,0)="T",VLOOKUP(A45,ZADANIOWY!A$2:O$10710,14,0),"")) ->  | J45: =IF(OR(A45="",COUNTIF(A45,"* *")>0,LEFT(A45,1)="7",LEFT(A45,1)="8"),"",IF(VLOOKUP(A45,ZADANIOWY!A$2:O$10710,4,0)="T",VLOOKUP(A45,ZADANIOWY!A$2:O$10710,15,0),"")) ->  | K45: nie
E46: nie | G46: =IF(OR(A46="",COUNTIF(A46,"* *")>0,LEFT(A46,1)="7",LEFT(A46,1)="8"),"",IF(VLOOKUP(A46,ZADANIOWY!A$2:O$10710,4,0)="T",VLOOKUP(A46,ZADANIOWY!A$2:O$10710,12,0)-C46,"")) ->  | H46: =IF(OR(A46="",COUNTIF(A46,"* *")>0,LEFT(A46,1)="7",LEFT(A46,1)="8"),"",IF(VLOOKUP(A46,ZADANIOWY!A$2:O$10710,4,0)="T",VLOOKUP(A46,ZADANIOWY!A$2:O$10710,13,0)-D46,"")) ->  | I46: =IF(OR(A46="",COUNTIF(A46,"* *")>0,LEFT(A46,1)="7",LEFT(A46,1)="8"),"",IF(VLOOKUP(A46,ZADANIOWY!A$2:O$10710,4,0)="T",VLOOKUP(A46,ZADANIOWY!A$2:O$10710,14,0),"")) ->  | J46: =IF(OR(A46="",COUNTIF(A46,"* *")>0,LEFT(A46,1)="7",LEFT(A46,1)="8"),"",IF(VLOOKUP(A46,ZADANIOWY!A$2:O$10710,4,0)="T",VLOOKUP(A46,ZADANIOWY!A$2:O$10710,15,0),"")) ->  | K46: nie
B47: OPIS | E47: nie | G47: =IF(OR(A47="",COUNTIF(A47,"* *")>0,LEFT(A47,1)="7",LEFT(A47,1)="8"),"",IF(VLOOKUP(A47,ZADANIOWY!A$2:O$10710,4,0)="T",VLOOKUP(A47,ZADANIOWY!A$2:O$10710,12,0)-C47,"")) ->  | H47: =IF(OR(A47="",COUNTIF(A47,"* *")>0,LEFT(A47,1)="7",LEFT(A47,1)="8"),"",IF(VLOOKUP(A47,ZADANIOWY!A$2:O$10710,4,0)="T",VLOOKUP(A47,ZADANIOWY!A$2:O$10710,13,0)-D47,"")) ->  | I47: =IF(OR(A47="",COUNTIF(A47,"* *")>0,LEFT(A47,1)="7",LEFT(A47,1)="8"),"",IF(VLOOKUP(A47,ZADANIOWY!A$2:O$10710,4,0)="T",VLOOKUP(A47,ZADANIOWY!A$2:O$10710,14,0),"")) ->  | J47: =IF(OR(A47="",COUNTIF(A47,"* *")>0,LEFT(A47,1)="7",LEFT(A47,1)="8"),"",IF(VLOOKUP(A47,ZADANIOWY!A$2:O$10710,4,0)="T",VLOOKUP(A47,ZADANIOWY!A$2:O$10710,15,0),"")) ->  | K47: nie
E48: nie | G48: =IF(OR(A48="",COUNTIF(A48,"* *")>0,LEFT(A48,1)="7",LEFT(A48,1)="8"),"",IF(VLOOKUP(A48,ZADANIOWY!A$2:O$10710,4,0)="T",VLOOKUP(A48,ZADANIOWY!A$2:O$10710,12,0)-C48,"")) ->  | H48: =IF(OR(A48="",COUNTIF(A48,"* *")>0,LEFT(A48,1)="7",LEFT(A48,1)="8"),"",IF(VLOOKUP(A48,ZADANIOWY!A$2:O$10710,4,0)="T",VLOOKUP(A48,ZADANIOWY!A$2:O$10710,13,0)-D48,"")) ->  | I48: =IF(OR(A48="",COUNTIF(A48,"* *")>0,LEFT(A48,1)="7",LEFT(A48,1)="8"),"",IF(VLOOKUP(A48,ZADANIOWY!A$2:O$10710,4,0)="T",VLOOKUP(A48,ZADANIOWY!A$2:O$10710,14,0),"")) ->  | J48: =IF(OR(A48="",COUNTIF(A48,"* *")>0,LEFT(A48,1)="7",LEFT(A48,1)="8"),"",IF(VLOOKUP(A48,ZADANIOWY!A$2:O$10710,4,0)="T",VLOOKUP(A48,ZADANIOWY!A$2:O$10710,15,0),"")) ->  | K48: nie
A49: B/I/2/5 | B49: Opracowania i analizy związane z drogami - zadanie 5 | E49: nie | G49: =IF(OR(A49="",COUNTIF(A49,"* *")>0,LEFT(A49,1)="7",LEFT(A49,1)="8"),"",IF(VLOOKUP(A49,ZADANIOWY!A$2:O$10710,4,0)="T",VLOOKUP(A49,ZADANIOWY!A$2:O$10710,12,0)-C49,"")) -> 0 | H49: =IF(OR(A49="",COUNTIF(A49,"* *")>0,LEFT(A49,1)="7",LEFT(A49,1)="8"),"",IF(VLOOKUP(A49,ZADANIOWY!A$2:O$10710,4,0)="T",VLOOKUP(A49,ZADANIOWY!A$2:O$10710,13,0)-D49,"")) -> 0 | I49: =IF(OR(A49="",COUNTIF(A49,"* *")>0,LEFT(A49,1)="7",LEFT(A49,1)="8"),"",IF(VLOOKUP(A49,ZADANIOWY!A$2:O$10710,4,0)="T",VLOOKUP(A49,ZADANIOWY!A$2:O$10710,14,0),"")) -> 0 | J49: =IF(OR(A49="",COUNTIF(A49,"* *")>0,LEFT(A49,1)="7",LEFT(A49,1)="8"),"",IF(VLOOKUP(A49,ZADANIOWY!A$2:O$10710,4,0)="T",VLOOKUP(A49,ZADANIOWY!A$2:O$10710,15,0),"")) -> 0 | K49: nie
E50: nie | G50: =IF(OR(A50="",COUNTIF(A50,"* *")>0,LEFT(A50,1)="7",LEFT(A50,1)="8"),"",IF(VLOOKUP(A50,ZADANIOWY!A$2:O$10710,4,0)="T",VLOOKUP(A50,ZADANIOWY!A$2:O$10710,12,0)-C50,"")) ->  | H50: =IF(OR(A50="",COUNTIF(A50,"* *")>0,LEFT(A50,1)="7",LEFT(A50,1)="8"),"",IF(VLOOKUP(A50,ZADANIOWY!A$2:O$10710,4,0)="T",VLOOKUP(A50,ZADANIOWY!A$2:O$10710,13,0)-D50,"")) ->  | I50: =IF(OR(A50="",COUNTIF(A50,"* *")>0,LEFT(A50,1)="7",LEFT(A50,1)="8"),"",IF(VLOOKUP(A50,ZADANIOWY!A$2:O$10710,4,0)="T",VLOOKUP(A50,ZADANIOWY!A$2:O$10710,14,0),"")) ->  | J50: =IF(OR(A50="",COUNTIF(A50,"* *")>0,LEFT(A50,1)="7",LEFT(A50,1)="8"),"",IF(VLOOKUP(A50,ZADANIOWY!A$2:O$10710,4,0)="T",VLOOKUP(A50,ZADANIOWY!A$2:O$10710,15,0),"")) ->  | K50: nie
B51: Dysponent: Wydział Infrastruktury | E51: nie | G51: =IF(OR(A51="",COUNTIF(A51,"* *")>0,LEFT(A51,1)="7",LEFT(A51,1)="8"),"",IF(VLOOKUP(A51,ZADANIOWY!A$2:O$10710,4,0)="T",VLOOKUP(A51,ZADANIOWY!A$2:O$10710,12,0)-C51,"")) ->  | H51: =IF(OR(A51="",COUNTIF(A51,"* *")>0,LEFT(A51,1)="7",LEFT(A51,1)="8"),"",IF(VLOOKUP(A51,ZADANIOWY!A$2:O$10710,4,0)="T",VLOOKUP(A51,ZADANIOWY!A$2:O$10710,13,0)-D51,"")) ->  | I51: =IF(OR(A51="",COUNTIF(A51,"* *")>0,LEFT(A51,1)="7",LEFT(A51,1)="8"),"",IF(VLOOKUP(A51,ZADANIOWY!A$2:O$10710,4,0)="T",VLOOKUP(A51,ZADANIOWY!A$2:O$10710,14,0),"")) ->  | J51: =IF(OR(A51="",COUNTIF(A51,"* *")>0,LEFT(A51,1)="7",LEFT(A51,1)="8"),"",IF(VLOOKUP(A51,ZADANIOWY!A$2:O$10710,4,0)="T",VLOOKUP(A51,ZADANIOWY!A$2:O$10710,15,0),"")) ->  | K51: nie
E52: nie | G52: =IF(OR(A52="",COUNTIF(A52,"* *")>0,LEFT(A52,1)="7",LEFT(A52,1)="8"),"",IF(VLOOKUP(A52,ZADANIOWY!A$2:O$10710,4,0)="T",VLOOKUP(A52,ZADANIOWY!A$2:O$10710,12,0)-C52,"")) ->  | H52: =IF(OR(A52="",COUNTIF(A52,"* *")>0,LEFT(A52,1)="7",LEFT(A52,1)="8"),"",IF(VLOOKUP(A52,ZADANIOWY!A$2:O$10710,4,0)="T",VLOOKUP(A52,ZADANIOWY!A$2:O$10710,13,0)-D52,"")) ->  | I52: =IF(OR(A52="",COUNTIF(A52,"* *")>0,LEFT(A52,1)="7",LEFT(A52,1)="8"),"",IF(VLOOKUP(A52,ZADANIOWY!A$2:O$10710,4,0)="T",VLOOKUP(A52,ZADANIOWY!A$2:O$10710,14,0),"")) ->  | J52: =IF(OR(A52="",COUNTIF(A52,"* *")>0,LEFT(A52,1)="7",LEFT(A52,1)="8"),"",IF(VLOOKUP(A52,ZADANIOWY!A$2:O$10710,4,0)="T",VLOOKUP(A52,ZADANIOWY!A$2:O$10710,15,0),"")) ->  | K52: nie
B53: Klasyfikacja: rozdział: 60095 | E53: nie | G53: =IF(OR(A53="",COUNTIF(A53,"* *")>0,LEFT(A53,1)="7",LEFT(A53,1)="8"),"",IF(VLOOKUP(A53,ZADANIOWY!A$2:O$10710,4,0)="T",VLOOKUP(A53,ZADANIOWY!A$2:O$10710,12,0)-C53,"")) ->  | H53: =IF(OR(A53="",COUNTIF(A53,"* *")>0,LEFT(A53,1)="7",LEFT(A53,1)="8"),"",IF(VLOOKUP(A53,ZADANIOWY!A$2:O$10710,4,0)="T",VLOOKUP(A53,ZADANIOWY!A$2:O$10710,13,0)-D53,"")) ->  | I53: =IF(OR(A53="",COUNTIF(A53,"* *")>0,LEFT(A53,1)="7",LEFT(A53,1)="8"),"",IF(VLOOKUP(A53,ZADANIOWY!A$2:O$10710,4,0)="T",VLOOKUP(A53,ZADANIOWY!A$2:O$10710,14,0),"")) ->  | J53: =IF(OR(A53="",COUNTIF(A53,"* *")>0,LEFT(A53,1)="7",LEFT(A53,1)="8"),"",IF(VLOOKUP(A53,ZADANIOWY!A$2:O$10710,4,0)="T",VLOOKUP(A53,ZADANIOWY!A$2:O$10710,15,0),"")) ->  | K53: nie
E54: nie | G54: =IF(OR(A54="",COUNTIF(A54,"* *")>0,LEFT(A54,1)="7",LEFT(A54,1)="8"),"",IF(VLOOKUP(A54,ZADANIOWY!A$2:O$10710,4,0)="T",VLOOKUP(A54,ZADANIOWY!A$2:O$10710,12,0)-C54,"")) ->  | H54: =IF(OR(A54="",COUNTIF(A54,"* *")>0,LEFT(A54,1)="7",LEFT(A54,1)="8"),"",IF(VLOOKUP(A54,ZADANIOWY!A$2:O$10710,4,0)="T",VLOOKUP(A54,ZADANIOWY!A$2:O$10710,13,0)-D54,"")) ->  | I54: =IF(OR(A54="",COUNTIF(A54,"* *")>0,LEFT(A54,1)="7",LEFT(A54,1)="8"),"",IF(VLOOKUP(A54,ZADANIOWY!A$2:O$10710,4,0)="T",VLOOKUP(A54,ZADANIOWY!A$2:O$10710,14,0),"")) ->  | J54: =IF(OR(A54="",COUNTIF(A54,"* *")>0,LEFT(A54,1)="7",LEFT(A54,1)="8"),"",IF(VLOOKUP(A54,ZADANIOWY!A$2:O$10710,4,0)="T",VLOOKUP(A54,ZADANIOWY!A$2:O$10710,15,0),"")) ->  | K54: nie
B55: OPIS | E55: nie | G55: =IF(OR(A55="",COUNTIF(A55,"* *")>0,LEFT(A55,1)="7",LEFT(A55,1)="8"),"",IF(VLOOKUP(A55,ZADANIOWY!A$2:O$10710,4,0)="T",VLOOKUP(A55,ZADANIOWY!A$2:O$10710,12,0)-C55,"")) ->  | H55: =IF(OR(A55="",COUNTIF(A55,"* *")>0,LEFT(A55,1)="7",LEFT(A55,1)="8"),"",IF(VLOOKUP(A55,ZADANIOWY!A$2:O$10710,4,0)="T",VLOOKUP(A55,ZADANIOWY!A$2:O$10710,13,0)-D55,"")) ->  | I55: =IF(OR(A55="",COUNTIF(A55,"* *")>0,LEFT(A55,1)="7",LEFT(A55,1)="8"),"",IF(VLOOKUP(A55,ZADANIOWY!A$2:O$10710,4,0)="T",VLOOKUP(A55,ZADANIOWY!A$2:O$10710,14,0),"")) ->  | J55: =IF(OR(A55="",COUNTIF(A55,"* *")>0,LEFT(A55,1)="7",LEFT(A55,1)="8"),"",IF(VLOOKUP(A55,ZADANIOWY!A$2:O$10710,4,0)="T",VLOOKUP(A55,ZADANIOWY!A$2:O$10710,15,0),"")) ->  | K55: nie
E56: nie | G56: =IF(OR(A56="",COUNTIF(A56,"* *")>0,LEFT(A56,1)="7",LEFT(A56,1)="8"),"",IF(VLOOKUP(A56,ZADANIOWY!A$2:O$10710,4,0)="T",VLOOKUP(A56,ZADANIOWY!A$2:O$10710,12,0)-C56,"")) ->  | H56: =IF(OR(A56="",COUNTIF(A56,"* *")>0,LEFT(A56,1)="7",LEFT(A56,1)="8"),"",IF(VLOOKUP(A56,ZADANIOWY!A$2:O$10710,4,0)="T",VLOOKUP(A56,ZADANIOWY!A$2:O$10710,13,0)-D56,"")) ->  | I56: =IF(OR(A56="",COUNTIF(A56,"* *")>0,LEFT(A56,1)="7",LEFT(A56,1)="8"),"",IF(VLOOKUP(A56,ZADANIOWY!A$2:O$10710,4,0)="T",VLOOKUP(A56,ZADANIOWY!A$2:O$10710,14,0),"")) ->  | J56: =IF(OR(A56="",COUNTIF(A56,"* *")>0,LEFT(A56,1)="7",LEFT(A56,1)="8"),"",IF(VLOOKUP(A56,ZADANIOWY!A$2:O$10710,4,0)="T",VLOOKUP(A56,ZADANIOWY!A$2:O$10710,15,0),"")) ->  | K56: nie
A57: II | B57: ŁAD PRZESTRZENNY I GOSPODARKA NIERUCHOMOŚCIAMI | C57: =C59+C75+C129+C153 -> 0 | D57: =D59+D75+D129+D153 -> 0 | E57: nie | G57: =IF(OR(A57="",COUNTIF(A57,"* *")>0,LEFT(A57,1)="7",LEFT(A57,1)="8"),"",IF(VLOOKUP(A57,ZADANIOWY!A$2:O$10710,4,0)="T",VLOOKUP(A57,ZADANIOWY!A$2:O$10710,12,0)-C57,"")) -> 0 | H57: =IF(OR(A57="",COUNTIF(A57,"* *")>0,LEFT(A57,1)="7",LEFT(A57,1)="8"),"",IF(VLOOKUP(A57,ZADANIOWY!A$2:O$10710,4,0)="T",VLOOKUP(A57,ZADANIOWY!A$2:O$10710,13,0)-D57,"")) -> 0 | I57: =IF(OR(A57="",COUNTIF(A57,"* *")>0,LEFT(A57,1)="7",LEFT(A57,1)="8"),"",IF(VLOOKUP(A57,ZADANIOWY!A$2:O$10710,4,0)="T",VLOOKUP(A57,ZADANIOWY!A$2:O$10710,14,0),"")) -> 0 | J57: =IF(OR(A57="",COUNTIF(A57,"* *")>0,LEFT(A57,1)="7",LEFT(A57,1)="8"),"",IF(VLOOKUP(A57,ZADANIOWY!A$2:O$10710,4,0)="T",VLOOKUP(A57,ZADANIOWY!A$2:O$10710,15,0),"")) -> 0 | K57: nie
E58: nie | G58: =IF(OR(A58="",COUNTIF(A58,"* *")>0,LEFT(A58,1)="7",LEFT(A58,1)="8"),"",IF(VLOOKUP(A58,ZADANIOWY!A$2:O$10710,4,0)="T",VLOOKUP(A58,ZADANIOWY!A$2:O$10710,12,0)-C58,"")) ->  | H58: =IF(OR(A58="",COUNTIF(A58,"* *")>0,LEFT(A58,1)="7",LEFT(A58,1)="8"),"",IF(VLOOKUP(A58,ZADANIOWY!A$2:O$10710,4,0)="T",VLOOKUP(A58,ZADANIOWY!A$2:O$10710,13,0)-D58,"")) ->  | I58: =IF(OR(A58="",COUNTIF(A58,"* *")>0,LEFT(A58,1)="7",LEFT(A58,1)="8"),"",IF(VLOOKUP(A58,ZADANIOWY!A$2:O$10710,4,0)="T",VLOOKUP(A58,ZADANIOWY!A$2:O$10710,14,0),"")) ->  | J58: =IF(OR(A58="",COUNTIF(A58,"* *")>0,LEFT(A58,1)="7",LEFT(A58,1)="8"),"",IF(VLOOKUP(A58,ZADANIOWY!A$2:O$10710,4,0)="T",VLOOKUP(A58,ZADANIOWY!A$2:O$10710,15,0),"")) ->  | K58: nie
A59: II/2 | B59: Gospodarka przestrzenna - program 2 | C59: =C61 -> 0 | D59: =D61 -> 0 | E59: nie | G59: =IF(OR(A59="",COUNTIF(A59,"* *")>0,LEFT(A59,1)="7",LEFT(A59,1)="8"),"",IF(VLOOKUP(A59,ZADANIOWY!A$2:O$10710,4,0)="T",VLOOKUP(A59,ZADANIOWY!A$2:O$10710,12,0)-C59,"")) -> 0 | H59: =IF(OR(A59="",COUNTIF(A59,"* *")>0,LEFT(A59,1)="7",LEFT(A59,1)="8"),"",IF(VLOOKUP(A59,ZADANIOWY!A$2:O$10710,4,0)="T",VLOOKUP(A59,ZADANIOWY!A$2:O$10710,13,0)-D59,"")) -> 0 | I59: =IF(OR(A59="",COUNTIF(A59,"* *")>0,LEFT(A59,1)="7",LEFT(A59,1)="8"),"",IF(VLOOKUP(A59,ZADANIOWY!A$2:O$10710,4,0)="T",VLOOKUP(A59,ZADANIOWY!A$2:O$10710,14,0),"")) -> 0 | J59: =IF(OR(A59="",COUNTIF(A59,"* *")>0,LEFT(A59,1)="7",LEFT(A59,1)="8"),"",IF(VLOOKUP(A59,ZADANIOWY!A$2:O$10710,4,0)="T",VLOOKUP(A59,ZADANIOWY!A$2:O$10710,15,0),"")) -> 0 | K59: nie
E60: nie | G60: =IF(OR(A60="",COUNTIF(A60,"* *")>0,LEFT(A60,1)="7",LEFT(A60,1)="8"),"",IF(VLOOKUP(A60,ZADANIOWY!A$2:O$10710,4,0)="T",VLOOKUP(A60,ZADANIOWY!A$2:O$10710,12,0)-C60,"")) ->  | H60: =IF(OR(A60="",COUNTIF(A60,"* *")>0,LEFT(A60,1)="7",LEFT(A60,1)="8"),"",IF(VLOOKUP(A60,ZADANIOWY!A$2:O$10710,4,0)="T",VLOOKUP(A60,ZADANIOWY!A$2:O$10710,13,0)-D60,"")) ->  | I60: =IF(OR(A60="",COUNTIF(A60,"* *")>0,LEFT(A60,1)="7",LEFT(A60,1)="8"),"",IF(VLOOKUP(A60,ZADANIOWY!A$2:O$10710,4,0)="T",VLOOKUP(A60,ZADANIOWY!A$2:O$10710,14,0),"")) ->  | J60: =IF(OR(A60="",COUNTIF(A60,"* *")>0,LEFT(A60,1)="7",LEFT(A60,1)="8"),"",IF(VLOOKUP(A60,ZADANIOWY!A$2:O$10710,4,0)="T",VLOOKUP(A60,ZADANIOWY!A$2:O$10710,15,0),"")) ->  | K60: nie
A61: B/II/2/3 | B61: Architektura, Urbanistyka i Zagospodarowanie Przestrzeni Publicznej - zadanie 3 | C61: =C63+C69 -> 0 | D61: =D63+D69 -> 0 | E61: nie | G61: =IF(OR(A61="",COUNTIF(A61,"* *")>0,LEFT(A61,1)="7",LEFT(A61,1)="8"),"",IF(VLOOKUP(A61,ZADANIOWY!A$2:O$10710,4,0)="T",VLOOKUP(A61,ZADANIOWY!A$2:O$10710,12,0)-C61,"")) -> 0 | H61: =IF(OR(A61="",COUNTIF(A61,"* *")>0,LEFT(A61,1)="7",LEFT(A61,1)="8"),"",IF(VLOOKUP(A61,ZADANIOWY!A$2:O$10710,4,0)="T",VLOOKUP(A61,ZADANIOWY!A$2:O$10710,13,0)-D61,"")) -> 0 | I61: =IF(OR(A61="",COUNTIF(A61,"* *")>0,LEFT(A61,1)="7",LEFT(A61,1)="8"),"",IF(VLOOKUP(A61,ZADANIOWY!A$2:O$10710,4,0)="T",VLOOKUP(A61,ZADANIOWY!A$2:O$10710,14,0),"")) -> 0 | J61: =IF(OR(A61="",COUNTIF(A61,"* *")>0,LEFT(A61,1)="7",LEFT(A61,1)="8"),"",IF(VLOOKUP(A61,ZADANIOWY!A$2:O$10710,4,0)="T",VLOOKUP(A61,ZADANIOWY!A$2:O$10710,15,0),"")) -> 0 | K61: nie
E62: nie | G62: =IF(OR(A62="",COUNTIF(A62,"* *")>0,LEFT(A62,1)="7",LEFT(A62,1)="8"),"",IF(VLOOKUP(A62,ZADANIOWY!A$2:O$10710,4,0)="T",VLOOKUP(A62,ZADANIOWY!A$2:O$10710,12,0)-C62,"")) ->  | H62: =IF(OR(A62="",COUNTIF(A62,"* *")>0,LEFT(A62,1)="7",LEFT(A62,1)="8"),"",IF(VLOOKUP(A62,ZADANIOWY!A$2:O$10710,4,0)="T",VLOOKUP(A62,ZADANIOWY!A$2:O$10710,13,0)-D62,"")) ->  | I62: =IF(OR(A62="",COUNTIF(A62,"* *")>0,LEFT(A62,1)="7",LEFT(A62,1)="8"),"",IF(VLOOKUP(A62,ZADANIOWY!A$2:O$10710,4,0)="T",VLOOKUP(A62,ZADANIOWY!A$2:O$10710,14,0),"")) ->  | J62: =IF(OR(A62="",COUNTIF(A62,"* *")>0,LEFT(A62,1)="7",LEFT(A62,1)="8"),"",IF(VLOOKUP(A62,ZADANIOWY!A$2:O$10710,4,0)="T",VLOOKUP(A62,ZADANIOWY!A$2:O$10710,15,0),"")) ->  | K62: nie
B63: Dysponent 1: Wydział Architektury i Budownictwa | E63: nie | G63: =IF(OR(A63="",COUNTIF(A63,"* *")>0,LEFT(A63,1)="7",LEFT(A63,1)="8"),"",IF(VLOOKUP(A63,ZADANIOWY!A$2:O$10710,4,0)="T",VLOOKUP(A63,ZADANIOWY!A$2:O$10710,12,0)-C63,"")) ->  | H63: =IF(OR(A63="",COUNTIF(A63,"* *")>0,LEFT(A63,1)="7",LEFT(A63,1)="8"),"",IF(VLOOKUP(A63,ZADANIOWY!A$2:O$10710,4,0)="T",VLOOKUP(A63,ZADANIOWY!A$2:O$10710,13,0)-D63,"")) ->  | I63: =IF(OR(A63="",COUNTIF(A63,"* *")>0,LEFT(A63,1)="7",LEFT(A63,1)="8"),"",IF(VLOOKUP(A63,ZADANIOWY!A$2:O$10710,4,0)="T",VLOOKUP(A63,ZADANIOWY!A$2:O$10710,14,0),"")) ->  | J63: =IF(OR(A63="",COUNTIF(A63,"* *")>0,LEFT(A63,1)="7",LEFT(A63,1)="8"),"",IF(VLOOKUP(A63,ZADANIOWY!A$2:O$10710,4,0)="T",VLOOKUP(A63,ZADANIOWY!A$2:O$10710,15,0),"")) ->  | K63: nie
E64: nie | G64: =IF(OR(A64="",COUNTIF(A64,"* *")>0,LEFT(A64,1)="7",LEFT(A64,1)="8"),"",IF(VLOOKUP(A64,ZADANIOWY!A$2:O$10710,4,0)="T",VLOOKUP(A64,ZADANIOWY!A$2:O$10710,12,0)-C64,"")) ->  | H64: =IF(OR(A64="",COUNTIF(A64,"* *")>0,LEFT(A64,1)="7",LEFT(A64,1)="8"),"",IF(VLOOKUP(A64,ZADANIOWY!A$2:O$10710,4,0)="T",VLOOKUP(A64,ZADANIOWY!A$2:O$10710,13,0)-D64,"")) ->  | I64: =IF(OR(A64="",COUNTIF(A64,"* *")>0,LEFT(A64,1)="7",LEFT(A64,1)="8"),"",IF(VLOOKUP(A64,ZADANIOWY!A$2:O$10710,4,0)="T",VLOOKUP(A64,ZADANIOWY!A$2:O$10710,14,0),"")) ->  | J64: =IF(OR(A64="",COUNTIF(A64,"* *")>0,LEFT(A64,1)="7",LEFT(A64,1)="8"),"",IF(VLOOKUP(A64,ZADANIOWY!A$2:O$10710,4,0)="T",VLOOKUP(A64,ZADANIOWY!A$2:O$10710,15,0),"")) ->  | K64: nie
B65: Klasyfikacja: rozdział: 71095 | E65: nie | G65: =IF(OR(A65="",COUNTIF(A65,"* *")>0,LEFT(A65,1)="7",LEFT(A65,1)="8"),"",IF(VLOOKUP(A65,ZADANIOWY!A$2:O$10710,4,0)="T",VLOOKUP(A65,ZADANIOWY!A$2:O$10710,12,0)-C65,"")) ->  | H65: =IF(OR(A65="",COUNTIF(A65,"* *")>0,LEFT(A65,1)="7",LEFT(A65,1)="8"),"",IF(VLOOKUP(A65,ZADANIOWY!A$2:O$10710,4,0)="T",VLOOKUP(A65,ZADANIOWY!A$2:O$10710,13,0)-D65,"")) ->  | I65: =IF(OR(A65="",COUNTIF(A65,"* *")>0,LEFT(A65,1)="7",LEFT(A65,1)="8"),"",IF(VLOOKUP(A65,ZADANIOWY!A$2:O$10710,4,0)="T",VLOOKUP(A65,ZADANIOWY!A$2:O$10710,14,0),"")) ->  | J65: =IF(OR(A65="",COUNTIF(A65,"* *")>0,LEFT(A65,1)="7",LEFT(A65,1)="8"),"",IF(VLOOKUP(A65,ZADANIOWY!A$2:O$10710,4,0)="T",VLOOKUP(A65,ZADANIOWY!A$2:O$10710,15,0),"")) ->  | K65: nie
E66: nie | G66: =IF(OR(A66="",COUNTIF(A66,"* *")>0,LEFT(A66,1)="7",LEFT(A66,1)="8"),"",IF(VLOOKUP(A66,ZADANIOWY!A$2:O$10710,4,0)="T",VLOOKUP(A66,ZADANIOWY!A$2:O$10710,12,0)-C66,"")) ->  | H66: =IF(OR(A66="",COUNTIF(A66,"* *")>0,LEFT(A66,1)="7",LEFT(A66,1)="8"),"",IF(VLOOKUP(A66,ZADANIOWY!A$2:O$10710,4,0)="T",VLOOKUP(A66,ZADANIOWY!A$2:O$10710,13,0)-D66,"")) ->  | I66: =IF(OR(A66="",COUNTIF(A66,"* *")>0,LEFT(A66,1)="7",LEFT(A66,1)="8"),"",IF(VLOOKUP(A66,ZADANIOWY!A$2:O$10710,4,0)="T",VLOOKUP(A66,ZADANIOWY!A$2:O$10710,14,0),"")) ->  | J66: =IF(OR(A66="",COUNTIF(A66,"* *")>0,LEFT(A66,1)="7",LEFT(A66,1)="8"),"",IF(VLOOKUP(A66,ZADANIOWY!A$2:O$10710,4,0)="T",VLOOKUP(A66,ZADANIOWY!A$2:O$10710,15,0),"")) ->  | K66: nie
B67: OPIS | E67: nie | G67: =IF(OR(A67="",COUNTIF(A67,"* *")>0,LEFT(A67,1)="7",LEFT(A67,1)="8"),"",IF(VLOOKUP(A67,ZADANIOWY!A$2:O$10710,4,0)="T",VLOOKUP(A67,ZADANIOWY!A$2:O$10710,12,0)-C67,"")) ->  | H67: =IF(OR(A67="",COUNTIF(A67,"* *")>0,LEFT(A67,1)="7",LEFT(A67,1)="8"),"",IF(VLOOKUP(A67,ZADANIOWY!A$2:O$10710,4,0)="T",VLOOKUP(A67,ZADANIOWY!A$2:O$10710,13,0)-D67,"")) ->  | I67: =IF(OR(A67="",COUNTIF(A67,"* *")>0,LEFT(A67,1)="7",LEFT(A67,1)="8"),"",IF(VLOOKUP(A67,ZADANIOWY!A$2:O$10710,4,0)="T",VLOOKUP(A67,ZADANIOWY!A$2:O$10710,14,0),"")) ->  | J67: =IF(OR(A67="",COUNTIF(A67,"* *")>0,LEFT(A67,1)="7",LEFT(A67,1)="8"),"",IF(VLOOKUP(A67,ZADANIOWY!A$2:O$10710,4,0)="T",VLOOKUP(A67,ZADANIOWY!A$2:O$10710,15,0),"")) ->  | K67: nie
E68: nie | G68: =IF(OR(A68="",COUNTIF(A68,"* *")>0,LEFT(A68,1)="7",LEFT(A68,1)="8"),"",IF(VLOOKUP(A68,ZADANIOWY!A$2:O$10710,4,0)="T",VLOOKUP(A68,ZADANIOWY!A$2:O$10710,12,0)-C68,"")) ->  | H68: =IF(OR(A68="",COUNTIF(A68,"* *")>0,LEFT(A68,1)="7",LEFT(A68,1)="8"),"",IF(VLOOKUP(A68,ZADANIOWY!A$2:O$10710,4,0)="T",VLOOKUP(A68,ZADANIOWY!A$2:O$10710,13,0)-D68,"")) ->  | I68: =IF(OR(A68="",COUNTIF(A68,"* *")>0,LEFT(A68,1)="7",LEFT(A68,1)="8"),"",IF(VLOOKUP(A68,ZADANIOWY!A$2:O$10710,4,0)="T",VLOOKUP(A68,ZADANIOWY!A$2:O$10710,14,0),"")) ->  | J68: =IF(OR(A68="",COUNTIF(A68,"* *")>0,LEFT(A68,1)="7",LEFT(A68,1)="8"),"",IF(VLOOKUP(A68,ZADANIOWY!A$2:O$10710,4,0)="T",VLOOKUP(A68,ZADANIOWY!A$2:O$10710,15,0),"")) ->  | K68: nie
B69: Dysponent 2: Wydział Administracyjno-Gospodarczy | E69: nie | G69: =IF(OR(A69="",COUNTIF(A69,"* *")>0,LEFT(A69,1)="7",LEFT(A69,1)="8"),"",IF(VLOOKUP(A69,ZADANIOWY!A$2:O$10710,4,0)="T",VLOOKUP(A69,ZADANIOWY!A$2:O$10710,12,0)-C69,"")) ->  | H69: =IF(OR(A69="",COUNTIF(A69,"* *")>0,LEFT(A69,1)="7",LEFT(A69,1)="8"),"",IF(VLOOKUP(A69,ZADANIOWY!A$2:O$10710,4,0)="T",VLOOKUP(A69,ZADANIOWY!A$2:O$10710,13,0)-D69,"")) ->  | I69: =IF(OR(A69="",COUNTIF(A69,"* *")>0,LEFT(A69,1)="7",LEFT(A69,1)="8"),"",IF(VLOOKUP(A69,ZADANIOWY!A$2:O$10710,4,0)="T",VLOOKUP(A69,ZADANIOWY!A$2:O$10710,14,0),"")) ->  | J69: =IF(OR(A69="",COUNTIF(A69,"* *")>0,LEFT(A69,1)="7",LEFT(A69,1)="8"),"",IF(VLOOKUP(A69,ZADANIOWY!A$2:O$10710,4,0)="T",VLOOKUP(A69,ZADANIOWY!A$2:O$10710,15,0),"")) ->  | K69: nie
E70: nie | G70: =IF(OR(A70="",COUNTIF(A70,"* *")>0,LEFT(A70,1)="7",LEFT(A70,1)="8"),"",IF(VLOOKUP(A70,ZADANIOWY!A$2:O$10710,4,0)="T",VLOOKUP(A70,ZADANIOWY!A$2:O$10710,12,0)-C70,"")) ->  | H70: =IF(OR(A70="",COUNTIF(A70,"* *")>0,LEFT(A70,1)="7",LEFT(A70,1)="8"),"",IF(VLOOKUP(A70,ZADANIOWY!A$2:O$10710,4,0)="T",VLOOKUP(A70,ZADANIOWY!A$2:O$10710,13,0)-D70,"")) ->  | I70: =IF(OR(A70="",COUNTIF(A70,"* *")>0,LEFT(A70,1)="7",LEFT(A70,1)="8"),"",IF(VLOOKUP(A70,ZADANIOWY!A$2:O$10710,4,0)="T",VLOOKUP(A70,ZADANIOWY!A$2:O$10710,14,0),"")) ->  | J70: =IF(OR(A70="",COUNTIF(A70,"* *")>0,LEFT(A70,1)="7",LEFT(A70,1)="8"),"",IF(VLOOKUP(A70,ZADANIOWY!A$2:O$10710,4,0)="T",VLOOKUP(A70,ZADANIOWY!A$2:O$10710,15,0),"")) ->  | K70: nie
B71: Klasyfikacja: rozdział: 71095 | E71: nie | G71: =IF(OR(A71="",COUNTIF(A71,"* *")>0,LEFT(A71,1)="7",LEFT(A71,1)="8"),"",IF(VLOOKUP(A71,ZADANIOWY!A$2:O$10710,4,0)="T",VLOOKUP(A71,ZADANIOWY!A$2:O$10710,12,0)-C71,"")) ->  | H71: =IF(OR(A71="",COUNTIF(A71,"* *")>0,LEFT(A71,1)="7",LEFT(A71,1)="8"),"",IF(VLOOKUP(A71,ZADANIOWY!A$2:O$10710,4,0)="T",VLOOKUP(A71,ZADANIOWY!A$2:O$10710,13,0)-D71,"")) ->  | I71: =IF(OR(A71="",COUNTIF(A71,"* *")>0,LEFT(A71,1)="7",LEFT(A71,1)="8"),"",IF(VLOOKUP(A71,ZADANIOWY!A$2:O$10710,4,0)="T",VLOOKUP(A71,ZADANIOWY!A$2:O$10710,14,0),"")) ->  | J71: =IF(OR(A71="",COUNTIF(A71,"* *")>0,LEFT(A71,1)="7",LEFT(A71,1)="8"),"",IF(VLOOKUP(A71,ZADANIOWY!A$2:O$10710,4,0)="T",VLOOKUP(A71,ZADANIOWY!A$2:O$10710,15,0),"")) ->  | K71: nie
E72: nie | G72: =IF(OR(A72="",COUNTIF(A72,"* *")>0,LEFT(A72,1)="7",LEFT(A72,1)="8"),"",IF(VLOOKUP(A72,ZADANIOWY!A$2:O$10710,4,0)="T",VLOOKUP(A72,ZADANIOWY!A$2:O$10710,12,0)-C72,"")) ->  | H72: =IF(OR(A72="",COUNTIF(A72,"* *")>0,LEFT(A72,1)="7",LEFT(A72,1)="8"),"",IF(VLOOKUP(A72,ZADANIOWY!A$2:O$10710,4,0)="T",VLOOKUP(A72,ZADANIOWY!A$2:O$10710,13,0)-D72,"")) ->  | I72: =IF(OR(A72="",COUNTIF(A72,"* *")>0,LEFT(A72,1)="7",LEFT(A72,1)="8"),"",IF(VLOOKUP(A72,ZADANIOWY!A$2:O$10710,4,0)="T",VLOOKUP(A72,ZADANIOWY!A$2:O$10710,14,0),"")) ->  | J72: =IF(OR(A72="",COUNTIF(A72,"* *")>0,LEFT(A72,1)="7",LEFT(A72,1)="8"),"",IF(VLOOKUP(A72,ZADANIOWY!A$2:O$10710,4,0)="T",VLOOKUP(A72,ZADANIOWY!A$2:O$10710,15,0),"")) ->  | K72: nie
B73: OPIS | E73: nie | G73: =IF(OR(A73="",COUNTIF(A73,"* *")>0,LEFT(A73,1)="7",LEFT(A73,1)="8"),"",IF(VLOOKUP(A73,ZADANIOWY!A$2:O$10710,4,0)="T",VLOOKUP(A73,ZADANIOWY!A$2:O$10710,12,0)-C73,"")) ->  | H73: =IF(OR(A73="",COUNTIF(A73,"* *")>0,LEFT(A73,1)="7",LEFT(A73,1)="8"),"",IF(VLOOKUP(A73,ZADANIOWY!A$2:O$10710,4,0)="T",VLOOKUP(A73,ZADANIOWY!A$2:O$10710,13,0)-D73,"")) ->  | I73: =IF(OR(A73="",COUNTIF(A73,"* *")>0,LEFT(A73,1)="7",LEFT(A73,1)="8"),"",IF(VLOOKUP(A73,ZADANIOWY!A$2:O$10710,4,0)="T",VLOOKUP(A73,ZADANIOWY!A$2:O$10710,14,0),"")) ->  | J73: =IF(OR(A73="",COUNTIF(A73,"* *")>0,LEFT(A73,1)="7",LEFT(A73,1)="8"),"",IF(VLOOKUP(A73,ZADANIOWY!A$2:O$10710,4,0)="T",VLOOKUP(A73,ZADANIOWY!A$2:O$10710,15,0),"")) ->  | K73: nie
E74: nie | G74: =IF(OR(A74="",COUNTIF(A74,"* *")>0,LEFT(A74,1)="7",LEFT(A74,1)="8"),"",IF(VLOOKUP(A74,ZADANIOWY!A$2:O$10710,4,0)="T",VLOOKUP(A74,ZADANIOWY!A$2:O$10710,12,0)-C74,"")) ->  | H74: =IF(OR(A74="",COUNTIF(A74,"* *")>0,LEFT(A74,1)="7",LEFT(A74,1)="8"),"",IF(VLOOKUP(A74,ZADANIOWY!A$2:O$10710,4,0)="T",VLOOKUP(A74,ZADANIOWY!A$2:O$10710,13,0)-D74,"")) ->  | I74: =IF(OR(A74="",COUNTIF(A74,"* *")>0,LEFT(A74,1)="7",LEFT(A74,1)="8"),"",IF(VLOOKUP(A74,ZADANIOWY!A$2:O$10710,4,0)="T",VLOOKUP(A74,ZADANIOWY!A$2:O$10710,14,0),"")) ->  | J74: =IF(OR(A74="",COUNTIF(A74,"* *")>0,LEFT(A74,1)="7",LEFT(A74,1)="8"),"",IF(VLOOKUP(A74,ZADANIOWY!A$2:O$10710,4,0)="T",VLOOKUP(A74,ZADANIOWY!A$2:O$10710,15,0),"")) ->  | K74: nie | M74: =IF(OR(A74="",COUNTIF(A74,"* *")>0,LEFT(A74,1)="7",LEFT(A74,1)="8"),OFFSET(M74,-1,0),IF(C74+D74>0,A74,"")) ->  | N74: =IF(AND(COUNTIF(B74,"Dysponen*")>0,NOT(M74="")),M74&MID(B74,FIND(":",B74),80),"") ->  | O74: =IF(N74="","",LEFT(N74,FIND(":",N74)-1)) ->  | P74: =IF(N74="","",MID(N74,FIND(":",N74)+2,80)) ->  | Q74: =IF(N74="","",RIGHT(N74,LEN(N74)-FIND(":",N74)-1)) -> 
A75: II/3 | B75: Mieszkaniowy zasób komunalny oraz pozostałe zadania związane z zapewnieniem lokali mieszkalnych - program 3 | C75: =C77+C91+C99+C107+C115 -> 0 | D75: =D77+D91+D99+D107+D115 -> 0 | E75: nie | G75: =IF(OR(A75="",COUNTIF(A75,"* *")>0,LEFT(A75,1)="7",LEFT(A75,1)="8"),"",IF(VLOOKUP(A75,ZADANIOWY!A$2:O$10710,4,0)="T",VLOOKUP(A75,ZADANIOWY!A$2:O$10710,12,0)-C75,"")) -> 0 | H75: =IF(OR(A75="",COUNTIF(A75,"* *")>0,LEFT(A75,1)="7",LEFT(A75,1)="8"),"",IF(VLOOKUP(A75,ZADANIOWY!A$2:O$10710,4,0)="T",VLOOKUP(A75,ZADANIOWY!A$2:O$10710,13,0)-D75,"")) -> 0 | I75: =IF(OR(A75="",COUNTIF(A75,"* *")>0,LEFT(A75,1)="7",LEFT(A75,1)="8"),"",IF(VLOOKUP(A75,ZADANIOWY!A$2:O$10710,4,0)="T",VLOOKUP(A75,ZADANIOWY!A$2:O$10710,14,0),"")) -> 0 | J75: =IF(OR(A75="",COUNTIF(A75,"* *")>0,LEFT(A75,1)="7",LEFT(A75,1)="8"),"",IF(VLOOKUP(A75,ZADANIOWY!A$2:O$10710,4,0)="T",VLOOKUP(A75,ZADANIOWY!A$2:O$10710,15,0),"")) -> 0 | K75: nie
E76: nie | G76: =IF(OR(A76="",COUNTIF(A76,"* *")>0,LEFT(A76,1)="7",LEFT(A76,1)="8"),"",IF(VLOOKUP(A76,ZADANIOWY!A$2:O$10710,4,0)="T",VLOOKUP(A76,ZADANIOWY!A$2:O$10710,12,0)-C76,"")) ->  | H76: =IF(OR(A76="",COUNTIF(A76,"* *")>0,LEFT(A76,1)="7",LEFT(A76,1)="8"),"",IF(VLOOKUP(A76,ZADANIOWY!A$2:O$10710,4,0)="T",VLOOKUP(A76,ZADANIOWY!A$2:O$10710,13,0)-D76,"")) ->  | I76: =IF(OR(A76="",COUNTIF(A76,"* *")>0,LEFT(A76,1)="7",LEFT(A76,1)="8"),"",IF(VLOOKUP(A76,ZADANIOWY!A$2:O$10710,4,0)="T",VLOOKUP(A76,ZADANIOWY!A$2:O$10710,14,0),"")) ->  | J76: =IF(OR(A76="",COUNTIF(A76,"* *")>0,LEFT(A76,1)="7",LEFT(A76,1)="8"),"",IF(VLOOKUP(A76,ZADANIOWY!A$2:O$10710,4,0)="T",VLOOKUP(A76,ZADANIOWY!A$2:O$10710,15,0),"")) ->  | K76: nie
A77: B/II/3/1 | B77: Koszty eksploatacji mieszkaniowego zasobu komunalnego - zadanie 1 | C77: =C79+C85 -> 0 | D77: =D79+D85 -> 0 | E77: nie | G77: =IF(OR(A77="",COUNTIF(A77,"* *")>0,LEFT(A77,1)="7",LEFT(A77,1)="8"),"",IF(VLOOKUP(A77,ZADANIOWY!A$2:O$10710,4,0)="T",VLOOKUP(A77,ZADANIOWY!A$2:O$10710,12,0)-C77,"")) -> 0 | H77: =IF(OR(A77="",COUNTIF(A77,"* *")>0,LEFT(A77,1)="7",LEFT(A77,1)="8"),"",IF(VLOOKUP(A77,ZADANIOWY!A$2:O$10710,4,0)="T",VLOOKUP(A77,ZADANIOWY!A$2:O$10710,13,0)-D77,"")) -> 0 | I77: =IF(OR(A77="",COUNTIF(A77,"* *")>0,LEFT(A77,1)="7",LEFT(A77,1)="8"),"",IF(VLOOKUP(A77,ZADANIOWY!A$2:O$10710,4,0)="T",VLOOKUP(A77,ZADANIOWY!A$2:O$10710,14,0),"")) -> 0 | J77: =IF(OR(A77="",COUNTIF(A77,"* *")>0,LEFT(A77,1)="7",LEFT(A77,1)="8"),"",IF(VLOOKUP(A77,ZADANIOWY!A$2:O$10710,4,0)="T",VLOOKUP(A77,ZADANIOWY!A$2:O$10710,15,0),"")) -> 0 | K77: nie
E78: nie | G78: =IF(OR(A78="",COUNTIF(A78,"* *")>0,LEFT(A78,1)="7",LEFT(A78,1)="8"),"",IF(VLOOKUP(A78,ZADANIOWY!A$2:O$10710,4,0)="T",VLOOKUP(A78,ZADANIOWY!A$2:O$10710,12,0)-C78,"")) ->  | H78: =IF(OR(A78="",COUNTIF(A78,"* *")>0,LEFT(A78,1)="7",LEFT(A78,1)="8"),"",IF(VLOOKUP(A78,ZADANIOWY!A$2:O$10710,4,0)="T",VLOOKUP(A78,ZADANIOWY!A$2:O$10710,13,0)-D78,"")) ->  | I78: =IF(OR(A78="",COUNTIF(A78,"* *")>0,LEFT(A78,1)="7",LEFT(A78,1)="8"),"",IF(VLOOKUP(A78,ZADANIOWY!A$2:O$10710,4,0)="T",VLOOKUP(A78,ZADANIOWY!A$2:O$10710,14,0),"")) ->  | J78: =IF(OR(A78="",COUNTIF(A78,"* *")>0,LEFT(A78,1)="7",LEFT(A78,1)="8"),"",IF(VLOOKUP(A78,ZADANIOWY!A$2:O$10710,4,0)="T",VLOOKUP(A78,ZADANIOWY!A$2:O$10710,15,0),"")) ->  | K78: nie
B79: Dysponent 1: Wydział Zasobów Lokalowych | E79: =IF(OR(A79="",COUNTIF(A79,"* *")>0),OFFSET(E79,-1,0),IF(C79+D79>0,"tak","nie")) -> nie | G79: =IF(OR(A79="",COUNTIF(A79,"* *")>0,LEFT(A79,1)="7",LEFT(A79,1)="8"),"",IF(VLOOKUP(A79,ZADANIOWY!A$2:O$10710,4,0)="T",VLOOKUP(A79,ZADANIOWY!A$2:O$10710,12,0)-C79,"")) ->  | H79: =IF(OR(A79="",COUNTIF(A79,"* *")>0,LEFT(A79,1)="7",LEFT(A79,1)="8"),"",IF(VLOOKUP(A79,ZADANIOWY!A$2:O$10710,4,0)="T",VLOOKUP(A79,ZADANIOWY!A$2:O$10710,13,0)-D79,"")) ->  | I79: =IF(OR(A79="",COUNTIF(A79,"* *")>0,LEFT(A79,1)="7",LEFT(A79,1)="8"),"",IF(VLOOKUP(A79,ZADANIOWY!A$2:O$10710,4,0)="T",VLOOKUP(A79,ZADANIOWY!A$2:O$10710,14,0),"")) ->  | J79: =IF(OR(A79="",COUNTIF(A79,"* *")>0,LEFT(A79,1)="7",LEFT(A79,1)="8"),"",IF(VLOOKUP(A79,ZADANIOWY!A$2:O$10710,4,0)="T",VLOOKUP(A79,ZADANIOWY!A$2:O$10710,15,0),"")) ->  | K79: =IF(OR(A79="",COUNTIF(A79,"* *")>0,LEFT(A79,1)="7",LEFT(A79,1)="8"),OFFSET(K79,-1,0),IF(G79+H79>0,"tak","nie")) -> nie
E80: nie | G80: =IF(OR(A80="",COUNTIF(A80,"* *")>0,LEFT(A80,1)="7",LEFT(A80,1)="8"),"",IF(VLOOKUP(A80,ZADANIOWY!A$2:O$10710,4,0)="T",VLOOKUP(A80,ZADANIOWY!A$2:O$10710,12,0)-C80,"")) ->  | H80: =IF(OR(A80="",COUNTIF(A80,"* *")>0,LEFT(A80,1)="7",LEFT(A80,1)="8"),"",IF(VLOOKUP(A80,ZADANIOWY!A$2:O$10710,4,0)="T",VLOOKUP(A80,ZADANIOWY!A$2:O$10710,13,0)-D80,"")) ->  | I80: =IF(OR(A80="",COUNTIF(A80,"* *")>0,LEFT(A80,1)="7",LEFT(A80,1)="8"),"",IF(VLOOKUP(A80,ZADANIOWY!A$2:O$10710,4,0)="T",VLOOKUP(A80,ZADANIOWY!A$2:O$10710,14,0),"")) ->  | J80: =IF(OR(A80="",COUNTIF(A80,"* *")>0,LEFT(A80,1)="7",LEFT(A80,1)="8"),"",IF(VLOOKUP(A80,ZADANIOWY!A$2:O$10710,4,0)="T",VLOOKUP(A80,ZADANIOWY!A$2:O$10710,15,0),"")) ->  | K80: nie
B81: Klasyfikacja: rozdział: 70007 | E81: nie | G81: =IF(OR(A81="",COUNTIF(A81,"* *")>0,LEFT(A81,1)="7",LEFT(A81,1)="8"),"",IF(VLOOKUP(A81,ZADANIOWY!A$2:O$10710,4,0)="T",VLOOKUP(A81,ZADANIOWY!A$2:O$10710,12,0)-C81,"")) ->  | H81: =IF(OR(A81="",COUNTIF(A81,"* *")>0,LEFT(A81,1)="7",LEFT(A81,1)="8"),"",IF(VLOOKUP(A81,ZADANIOWY!A$2:O$10710,4,0)="T",VLOOKUP(A81,ZADANIOWY!A$2:O$10710,13,0)-D81,"")) ->  | I81: =IF(OR(A81="",COUNTIF(A81,"* *")>0,LEFT(A81,1)="7",LEFT(A81,1)="8"),"",IF(VLOOKUP(A81,ZADANIOWY!A$2:O$10710,4,0)="T",VLOOKUP(A81,ZADANIOWY!A$2:O$10710,14,0),"")) ->  | J81: =IF(OR(A81="",COUNTIF(A81,"* *")>0,LEFT(A81,1)="7",LEFT(A81,1)="8"),"",IF(VLOOKUP(A81,ZADANIOWY!A$2:O$10710,4,0)="T",VLOOKUP(A81,ZADANIOWY!A$2:O$10710,15,0),"")) ->  | K81: nie
E82: nie | G82: =IF(OR(A82="",COUNTIF(A82,"* *")>0,LEFT(A82,1)="7",LEFT(A82,1)="8"),"",IF(VLOOKUP(A82,ZADANIOWY!A$2:O$10710,4,0)="T",VLOOKUP(A82,ZADANIOWY!A$2:O$10710,12,0)-C82,"")) ->  | H82: =IF(OR(A82="",COUNTIF(A82,"* *")>0,LEFT(A82,1)="7",LEFT(A82,1)="8"),"",IF(VLOOKUP(A82,ZADANIOWY!A$2:O$10710,4,0)="T",VLOOKUP(A82,ZADANIOWY!A$2:O$10710,13,0)-D82,"")) ->  | I82: =IF(OR(A82="",COUNTIF(A82,"* *")>0,LEFT(A82,1)="7",LEFT(A82,1)="8"),"",IF(VLOOKUP(A82,ZADANIOWY!A$2:O$10710,4,0)="T",VLOOKUP(A82,ZADANIOWY!A$2:O$10710,14,0),"")) ->  | J82: =IF(OR(A82="",COUNTIF(A82,"* *")>0,LEFT(A82,1)="7",LEFT(A82,1)="8"),"",IF(VLOOKUP(A82,ZADANIOWY!A$2:O$10710,4,0)="T",VLOOKUP(A82,ZADANIOWY!A$2:O$10710,15,0),"")) ->  | K82: nie
B83: OPIS | E83: nie | G83: =IF(OR(A83="",COUNTIF(A83,"* *")>0,LEFT(A83,1)="7",LEFT(A83,1)="8"),"",IF(VLOOKUP(A83,ZADANIOWY!A$2:O$10710,4,0)="T",VLOOKUP(A83,ZADANIOWY!A$2:O$10710,12,0)-C83,"")) ->  | H83: =IF(OR(A83="",COUNTIF(A83,"* *")>0,LEFT(A83,1)="7",LEFT(A83,1)="8"),"",IF(VLOOKUP(A83,ZADANIOWY!A$2:O$10710,4,0)="T",VLOOKUP(A83,ZADANIOWY!A$2:O$10710,13,0)-D83,"")) ->  | I83: =IF(OR(A83="",COUNTIF(A83,"* *")>0,LEFT(A83,1)="7",LEFT(A83,1)="8"),"",IF(VLOOKUP(A83,ZADANIOWY!A$2:O$10710,4,0)="T",VLOOKUP(A83,ZADANIOWY!A$2:O$10710,14,0),"")) ->  | J83: =IF(OR(A83="",COUNTIF(A83,"* *")>0,LEFT(A83,1)="7",LEFT(A83,1)="8"),"",IF(VLOOKUP(A83,ZADANIOWY!A$2:O$10710,4,0)="T",VLOOKUP(A83,ZADANIOWY!A$2:O$10710,15,0),"")) ->  | K83: nie
E84: nie | G84: =IF(OR(A84="",COUNTIF(A84,"* *")>0,LEFT(A84,1)="7",LEFT(A84,1)="8"),"",IF(VLOOKUP(A84,ZADANIOWY!A$2:O$10710,4,0)="T",VLOOKUP(A84,ZADANIOWY!A$2:O$10710,12,0)-C84,"")) ->  | H84: =IF(OR(A84="",COUNTIF(A84,"* *")>0,LEFT(A84,1)="7",LEFT(A84,1)="8"),"",IF(VLOOKUP(A84,ZADANIOWY!A$2:O$10710,4,0)="T",VLOOKUP(A84,ZADANIOWY!A$2:O$10710,13,0)-D84,"")) ->  | I84: =IF(OR(A84="",COUNTIF(A84,"* *")>0,LEFT(A84,1)="7",LEFT(A84,1)="8"),"",IF(VLOOKUP(A84,ZADANIOWY!A$2:O$10710,4,0)="T",VLOOKUP(A84,ZADANIOWY!A$2:O$10710,14,0),"")) ->  | J84: =IF(OR(A84="",COUNTIF(A84,"* *")>0,LEFT(A84,1)="7",LEFT(A84,1)="8"),"",IF(VLOOKUP(A84,ZADANIOWY!A$2:O$10710,4,0)="T",VLOOKUP(A84,ZADANIOWY!A$2:O$10710,15,0),"")) ->  | K84: nie
B85: Dysponent 2: Wydział Prawny | E85: nie | G85: =IF(OR(A85="",COUNTIF(A85,"* *")>0,LEFT(A85,1)="7",LEFT(A85,1)="8"),"",IF(VLOOKUP(A85,ZADANIOWY!A$2:O$10710,4,0)="T",VLOOKUP(A85,ZADANIOWY!A$2:O$10710,12,0)-C85,"")) ->  | H85: =IF(OR(A85="",COUNTIF(A85,"* *")>0,LEFT(A85,1)="7",LEFT(A85,1)="8"),"",IF(VLOOKUP(A85,ZADANIOWY!A$2:O$10710,4,0)="T",VLOOKUP(A85,ZADANIOWY!A$2:O$10710,13,0)-D85,"")) ->  | I85: =IF(OR(A85="",COUNTIF(A85,"* *")>0,LEFT(A85,1)="7",LEFT(A85,1)="8"),"",IF(VLOOKUP(A85,ZADANIOWY!A$2:O$10710,4,0)="T",VLOOKUP(A85,ZADANIOWY!A$2:O$10710,14,0),"")) ->  | J85: =IF(OR(A85="",COUNTIF(A85,"* *")>0,LEFT(A85,1)="7",LEFT(A85,1)="8"),"",IF(VLOOKUP(A85,ZADANIOWY!A$2:O$10710,4,0)="T",VLOOKUP(A85,ZADANIOWY!A$2:O$10710,15,0),"")) ->  | K85: nie
E86: nie | G86: =IF(OR(A86="",COUNTIF(A86,"* *")>0,LEFT(A86,1)="7",LEFT(A86,1)="8"),"",IF(VLOOKUP(A86,ZADANIOWY!A$2:O$10710,4,0)="T",VLOOKUP(A86,ZADANIOWY!A$2:O$10710,12,0)-C86,"")) ->  | H86: =IF(OR(A86="",COUNTIF(A86,"* *")>0,LEFT(A86,1)="7",LEFT(A86,1)="8"),"",IF(VLOOKUP(A86,ZADANIOWY!A$2:O$10710,4,0)="T",VLOOKUP(A86,ZADANIOWY!A$2:O$10710,13,0)-D86,"")) ->  | I86: =IF(OR(A86="",COUNTIF(A86,"* *")>0,LEFT(A86,1)="7",LEFT(A86,1)="8"),"",IF(VLOOKUP(A86,ZADANIOWY!A$2:O$10710,4,0)="T",VLOOKUP(A86,ZADANIOWY!A$2:O$10710,14,0),"")) ->  | J86: =IF(OR(A86="",COUNTIF(A86,"* *")>0,LEFT(A86,1)="7",LEFT(A86,1)="8"),"",IF(VLOOKUP(A86,ZADANIOWY!A$2:O$10710,4,0)="T",VLOOKUP(A86,ZADANIOWY!A$2:O$10710,15,0),"")) ->  | K86: nie
B87: Klasyfikacja: rozdział: 70007 | E87: nie | G87: =IF(OR(A87="",COUNTIF(A87,"* *")>0,LEFT(A87,1)="7",LEFT(A87,1)="8"),"",IF(VLOOKUP(A87,ZADANIOWY!A$2:O$10710,4,0)="T",VLOOKUP(A87,ZADANIOWY!A$2:O$10710,12,0)-C87,"")) ->  | H87: =IF(OR(A87="",COUNTIF(A87,"* *")>0,LEFT(A87,1)="7",LEFT(A87,1)="8"),"",IF(VLOOKUP(A87,ZADANIOWY!A$2:O$10710,4,0)="T",VLOOKUP(A87,ZADANIOWY!A$2:O$10710,13,0)-D87,"")) ->  | I87: =IF(OR(A87="",COUNTIF(A87,"* *")>0,LEFT(A87,1)="7",LEFT(A87,1)="8"),"",IF(VLOOKUP(A87,ZADANIOWY!A$2:O$10710,4,0)="T",VLOOKUP(A87,ZADANIOWY!A$2:O$10710,14,0),"")) ->  | J87: =IF(OR(A87="",COUNTIF(A87,"* *")>0,LEFT(A87,1)="7",LEFT(A87,1)="8"),"",IF(VLOOKUP(A87,ZADANIOWY!A$2:O$10710,4,0)="T",VLOOKUP(A87,ZADANIOWY!A$2:O$10710,15,0),"")) ->  | K87: nie
E88: nie | G88: =IF(OR(A88="",COUNTIF(A88,"* *")>0,LEFT(A88,1)="7",LEFT(A88,1)="8"),"",IF(VLOOKUP(A88,ZADANIOWY!A$2:O$10710,4,0)="T",VLOOKUP(A88,ZADANIOWY!A$2:O$10710,12,0)-C88,"")) ->  | H88: =IF(OR(A88="",COUNTIF(A88,"* *")>0,LEFT(A88,1)="7",LEFT(A88,1)="8"),"",IF(VLOOKUP(A88,ZADANIOWY!A$2:O$10710,4,0)="T",VLOOKUP(A88,ZADANIOWY!A$2:O$10710,13,0)-D88,"")) ->  | I88: =IF(OR(A88="",COUNTIF(A88,"* *")>0,LEFT(A88,1)="7",LEFT(A88,1)="8"),"",IF(VLOOKUP(A88,ZADANIOWY!A$2:O$10710,4,0)="T",VLOOKUP(A88,ZADANIOWY!A$2:O$10710,14,0),"")) ->  | J88: =IF(OR(A88="",COUNTIF(A88,"* *")>0,LEFT(A88,1)="7",LEFT(A88,1)="8"),"",IF(VLOOKUP(A88,ZADANIOWY!A$2:O$10710,4,0)="T",VLOOKUP(A88,ZADANIOWY!A$2:O$10710,15,0),"")) ->  | K88: nie
B89: OPIS | E89: nie | G89: =IF(OR(A89="",COUNTIF(A89,"* *")>0,LEFT(A89,1)="7",LEFT(A89,1)="8"),"",IF(VLOOKUP(A89,ZADANIOWY!A$2:O$10710,4,0)="T",VLOOKUP(A89,ZADANIOWY!A$2:O$10710,12,0)-C89,"")) ->  | H89: =IF(OR(A89="",COUNTIF(A89,"* *")>0,LEFT(A89,1)="7",LEFT(A89,1)="8"),"",IF(VLOOKUP(A89,ZADANIOWY!A$2:O$10710,4,0)="T",VLOOKUP(A89,ZADANIOWY!A$2:O$10710,13,0)-D89,"")) ->  | I89: =IF(OR(A89="",COUNTIF(A89,"* *")>0,LEFT(A89,1)="7",LEFT(A89,1)="8"),"",IF(VLOOKUP(A89,ZADANIOWY!A$2:O$10710,4,0)="T",VLOOKUP(A89,ZADANIOWY!A$2:O$10710,14,0),"")) ->  | J89: =IF(OR(A89="",COUNTIF(A89,"* *")>0,LEFT(A89,1)="7",LEFT(A89,1)="8"),"",IF(VLOOKUP(A89,ZADANIOWY!A$2:O$10710,4,0)="T",VLOOKUP(A89,ZADANIOWY!A$2:O$10710,15,0),"")) ->  | K89: nie
E90: nie | G90: =IF(OR(A90="",COUNTIF(A90,"* *")>0,LEFT(A90,1)="7",LEFT(A90,1)="8"),"",IF(VLOOKUP(A90,ZADANIOWY!A$2:O$10710,4,0)="T",VLOOKUP(A90,ZADANIOWY!A$2:O$10710,12,0)-C90,"")) ->  | H90: =IF(OR(A90="",COUNTIF(A90,"* *")>0,LEFT(A90,1)="7",LEFT(A90,1)="8"),"",IF(VLOOKUP(A90,ZADANIOWY!A$2:O$10710,4,0)="T",VLOOKUP(A90,ZADANIOWY!A$2:O$10710,13,0)-D90,"")) ->  | I90: =IF(OR(A90="",COUNTIF(A90,"* *")>0,LEFT(A90,1)="7",LEFT(A90,1)="8"),"",IF(VLOOKUP(A90,ZADANIOWY!A$2:O$10710,4,0)="T",VLOOKUP(A90,ZADANIOWY!A$2:O$10710,14,0),"")) ->  | J90: =IF(OR(A90="",COUNTIF(A90,"* *")>0,LEFT(A90,1)="7",LEFT(A90,1)="8"),"",IF(VLOOKUP(A90,ZADANIOWY!A$2:O$10710,4,0)="T",VLOOKUP(A90,ZADANIOWY!A$2:O$10710,15,0),"")) ->  | K90: nie
A91: B/II/3/2 | B91: Remonty mieszkaniowego zasobu komunalnego - zadanie 2 | E91: nie | G91: =IF(OR(A91="",COUNTIF(A91,"* *")>0,LEFT(A91,1)="7",LEFT(A91,1)="8"),"",IF(VLOOKUP(A91,ZADANIOWY!A$2:O$10710,4,0)="T",VLOOKUP(A91,ZADANIOWY!A$2:O$10710,12,0)-C91,"")) -> 0 | H91: =IF(OR(A91="",COUNTIF(A91,"* *")>0,LEFT(A91,1)="7",LEFT(A91,1)="8"),"",IF(VLOOKUP(A91,ZADANIOWY!A$2:O$10710,4,0)="T",VLOOKUP(A91,ZADANIOWY!A$2:O$10710,13,0)-D91,"")) -> 0 | I91: =IF(OR(A91="",COUNTIF(A91,"* *")>0,LEFT(A91,1)="7",LEFT(A91,1)="8"),"",IF(VLOOKUP(A91,ZADANIOWY!A$2:O$10710,4,0)="T",VLOOKUP(A91,ZADANIOWY!A$2:O$10710,14,0),"")) -> 0 | J91: =IF(OR(A91="",COUNTIF(A91,"* *")>0,LEFT(A91,1)="7",LEFT(A91,1)="8"),"",IF(VLOOKUP(A91,ZADANIOWY!A$2:O$10710,4,0)="T",VLOOKUP(A91,ZADANIOWY!A$2:O$10710,15,0),"")) -> 0 | K91: nie
E92: nie | G92: =IF(OR(A92="",COUNTIF(A92,"* *")>0,LEFT(A92,1)="7",LEFT(A92,1)="8"),"",IF(VLOOKUP(A92,ZADANIOWY!A$2:O$10710,4,0)="T",VLOOKUP(A92,ZADANIOWY!A$2:O$10710,12,0)-C92,"")) ->  | H92: =IF(OR(A92="",COUNTIF(A92,"* *")>0,LEFT(A92,1)="7",LEFT(A92,1)="8"),"",IF(VLOOKUP(A92,ZADANIOWY!A$2:O$10710,4,0)="T",VLOOKUP(A92,ZADANIOWY!A$2:O$10710,13,0)-D92,"")) ->  | I92: =IF(OR(A92="",COUNTIF(A92,"* *")>0,LEFT(A92,1)="7",LEFT(A92,1)="8"),"",IF(VLOOKUP(A92,ZADANIOWY!A$2:O$10710,4,0)="T",VLOOKUP(A92,ZADANIOWY!A$2:O$10710,14,0),"")) ->  | J92: =IF(OR(A92="",COUNTIF(A92,"* *")>0,LEFT(A92,1)="7",LEFT(A92,1)="8"),"",IF(VLOOKUP(A92,ZADANIOWY!A$2:O$10710,4,0)="T",VLOOKUP(A92,ZADANIOWY!A$2:O$10710,15,0),"")) ->  | K92: nie
B93: Dysponent: Wydział Zasobów Lokalowych | E93: nie | G93: =IF(OR(A93="",COUNTIF(A93,"* *")>0,LEFT(A93,1)="7",LEFT(A93,1)="8"),"",IF(VLOOKUP(A93,ZADANIOWY!A$2:O$10710,4,0)="T",VLOOKUP(A93,ZADANIOWY!A$2:O$10710,12,0)-C93,"")) ->  | H93: =IF(OR(A93="",COUNTIF(A93,"* *")>0,LEFT(A93,1)="7",LEFT(A93,1)="8"),"",IF(VLOOKUP(A93,ZADANIOWY!A$2:O$10710,4,0)="T",VLOOKUP(A93,ZADANIOWY!A$2:O$10710,13,0)-D93,"")) ->  | I93: =IF(OR(A93="",COUNTIF(A93,"* *")>0,LEFT(A93,1)="7",LEFT(A93,1)="8"),"",IF(VLOOKUP(A93,ZADANIOWY!A$2:O$10710,4,0)="T",VLOOKUP(A93,ZADANIOWY!A$2:O$10710,14,0),"")) ->  | J93: =IF(OR(A93="",COUNTIF(A93,"* *")>0,LEFT(A93,1)="7",LEFT(A93,1)="8"),"",IF(VLOOKUP(A93,ZADANIOWY!A$2:O$10710,4,0)="T",VLOOKUP(A93,ZADANIOWY!A$2:O$10710,15,0),"")) ->  | K93: nie
E94: nie | G94: =IF(OR(A94="",COUNTIF(A94,"* *")>0,LEFT(A94,1)="7",LEFT(A94,1)="8"),"",IF(VLOOKUP(A94,ZADANIOWY!A$2:O$10710,4,0)="T",VLOOKUP(A94,ZADANIOWY!A$2:O$10710,12,0)-C94,"")) ->  | H94: =IF(OR(A94="",COUNTIF(A94,"* *")>0,LEFT(A94,1)="7",LEFT(A94,1)="8"),"",IF(VLOOKUP(A94,ZADANIOWY!A$2:O$10710,4,0)="T",VLOOKUP(A94,ZADANIOWY!A$2:O$10710,13,0)-D94,"")) ->  | I94: =IF(OR(A94="",COUNTIF(A94,"* *")>0,LEFT(A94,1)="7",LEFT(A94,1)="8"),"",IF(VLOOKUP(A94,ZADANIOWY!A$2:O$10710,4,0)="T",VLOOKUP(A94,ZADANIOWY!A$2:O$10710,14,0),"")) ->  | J94: =IF(OR(A94="",COUNTIF(A94,"* *")>0,LEFT(A94,1)="7",LEFT(A94,1)="8"),"",IF(VLOOKUP(A94,ZADANIOWY!A$2:O$10710,4,0)="T",VLOOKUP(A94,ZADANIOWY!A$2:O$10710,15,0),"")) ->  | K94: nie
B95: Klasyfikacja: rozdział: 70007 | E95: nie | G95: =IF(OR(A95="",COUNTIF(A95,"* *")>0,LEFT(A95,1)="7",LEFT(A95,1)="8"),"",IF(VLOOKUP(A95,ZADANIOWY!A$2:O$10710,4,0)="T",VLOOKUP(A95,ZADANIOWY!A$2:O$10710,12,0)-C95,"")) ->  | H95: =IF(OR(A95="",COUNTIF(A95,"* *")>0,LEFT(A95,1)="7",LEFT(A95,1)="8"),"",IF(VLOOKUP(A95,ZADANIOWY!A$2:O$10710,4,0)="T",VLOOKUP(A95,ZADANIOWY!A$2:O$10710,13,0)-D95,"")) ->  | I95: =IF(OR(A95="",COUNTIF(A95,"* *")>0,LEFT(A95,1)="7",LEFT(A95,1)="8"),"",IF(VLOOKUP(A95,ZADANIOWY!A$2:O$10710,4,0)="T",VLOOKUP(A95,ZADANIOWY!A$2:O$10710,14,0),"")) ->  | J95: =IF(OR(A95="",COUNTIF(A95,"* *")>0,LEFT(A95,1)="7",LEFT(A95,1)="8"),"",IF(VLOOKUP(A95,ZADANIOWY!A$2:O$10710,4,0)="T",VLOOKUP(A95,ZADANIOWY!A$2:O$10710,15,0),"")) ->  | K95: nie
E96: nie | G96: =IF(OR(A96="",COUNTIF(A96,"* *")>0,LEFT(A96,1)="7",LEFT(A96,1)="8"),"",IF(VLOOKUP(A96,ZADANIOWY!A$2:O$10710,4,0)="T",VLOOKUP(A96,ZADANIOWY!A$2:O$10710,12,0)-C96,"")) ->  | H96: =IF(OR(A96="",COUNTIF(A96,"* *")>0,LEFT(A96,1)="7",LEFT(A96,1)="8"),"",IF(VLOOKUP(A96,ZADANIOWY!A$2:O$10710,4,0)="T",VLOOKUP(A96,ZADANIOWY!A$2:O$10710,13,0)-D96,"")) ->  | I96: =IF(OR(A96="",COUNTIF(A96,"* *")>0,LEFT(A96,1)="7",LEFT(A96,1)="8"),"",IF(VLOOKUP(A96,ZADANIOWY!A$2:O$10710,4,0)="T",VLOOKUP(A96,ZADANIOWY!A$2:O$10710,14,0),"")) ->  | J96: =IF(OR(A96="",COUNTIF(A96,"* *")>0,LEFT(A96,1)="7",LEFT(A96,1)="8"),"",IF(VLOOKUP(A96,ZADANIOWY!A$2:O$10710,4,0)="T",VLOOKUP(A96,ZADANIOWY!A$2:O$10710,15,0),"")) ->  | K96: nie
B97: OPIS | E97: nie | G97: =IF(OR(A97="",COUNTIF(A97,"* *")>0,LEFT(A97,1)="7",LEFT(A97,1)="8"),"",IF(VLOOKUP(A97,ZADANIOWY!A$2:O$10710,4,0)="T",VLOOKUP(A97,ZADANIOWY!A$2:O$10710,12,0)-C97,"")) ->  | H97: =IF(OR(A97="",COUNTIF(A97,"* *")>0,LEFT(A97,1)="7",LEFT(A97,1)="8"),"",IF(VLOOKUP(A97,ZADANIOWY!A$2:O$10710,4,0)="T",VLOOKUP(A97,ZADANIOWY!A$2:O$10710,13,0)-D97,"")) ->  | I97: =IF(OR(A97="",COUNTIF(A97,"* *")>0,LEFT(A97,1)="7",LEFT(A97,1)="8"),"",IF(VLOOKUP(A97,ZADANIOWY!A$2:O$10710,4,0)="T",VLOOKUP(A97,ZADANIOWY!A$2:O$10710,14,0),"")) ->  | J97: =IF(OR(A97="",COUNTIF(A97,"* *")>0,LEFT(A97,1)="7",LEFT(A97,1)="8"),"",IF(VLOOKUP(A97,ZADANIOWY!A$2:O$10710,4,0)="T",VLOOKUP(A97,ZADANIOWY!A$2:O$10710,15,0),"")) ->  | K97: nie
E98: nie | G98: =IF(OR(A98="",COUNTIF(A98,"* *")>0,LEFT(A98,1)="7",LEFT(A98,1)="8"),"",IF(VLOOKUP(A98,ZADANIOWY!A$2:O$10710,4,0)="T",VLOOKUP(A98,ZADANIOWY!A$2:O$10710,12,0)-C98,"")) ->  | H98: =IF(OR(A98="",COUNTIF(A98,"* *")>0,LEFT(A98,1)="7",LEFT(A98,1)="8"),"",IF(VLOOKUP(A98,ZADANIOWY!A$2:O$10710,4,0)="T",VLOOKUP(A98,ZADANIOWY!A$2:O$10710,13,0)-D98,"")) ->  | I98: =IF(OR(A98="",COUNTIF(A98,"* *")>0,LEFT(A98,1)="7",LEFT(A98,1)="8"),"",IF(VLOOKUP(A98,ZADANIOWY!A$2:O$10710,4,0)="T",VLOOKUP(A98,ZADANIOWY!A$2:O$10710,14,0),"")) ->  | J98: =IF(OR(A98="",COUNTIF(A98,"* *")>0,LEFT(A98,1)="7",LEFT(A98,1)="8"),"",IF(VLOOKUP(A98,ZADANIOWY!A$2:O$10710,4,0)="T",VLOOKUP(A98,ZADANIOWY!A$2:O$10710,15,0),"")) ->  | K98: nie
A99: B/II/3/4 | B99: Rozliczenia ze wspólnotami mieszkaniowymi - zadanie 4 | E99: nie | G99: =IF(OR(A99="",COUNTIF(A99,"* *")>0,LEFT(A99,1)="7",LEFT(A99,1)="8"),"",IF(VLOOKUP(A99,ZADANIOWY!A$2:O$10710,4,0)="T",VLOOKUP(A99,ZADANIOWY!A$2:O$10710,12,0)-C99,"")) -> 0 | H99: =IF(OR(A99="",COUNTIF(A99,"* *")>0,LEFT(A99,1)="7",LEFT(A99,1)="8"),"",IF(VLOOKUP(A99,ZADANIOWY!A$2:O$10710,4,0)="T",VLOOKUP(A99,ZADANIOWY!A$2:O$10710,13,0)-D99,"")) -> 0 | I99: =IF(OR(A99="",COUNTIF(A99,"* *")>0,LEFT(A99,1)="7",LEFT(A99,1)="8"),"",IF(VLOOKUP(A99,ZADANIOWY!A$2:O$10710,4,0)="T",VLOOKUP(A99,ZADANIOWY!A$2:O$10710,14,0),"")) -> 0 | J99: =IF(OR(A99="",COUNTIF(A99,"* *")>0,LEFT(A99,1)="7",LEFT(A99,1)="8"),"",IF(VLOOKUP(A99,ZADANIOWY!A$2:O$10710,4,0)="T",VLOOKUP(A99,ZADANIOWY!A$2:O$10710,15,0),"")) -> 0 | K99: nie
E100: nie | G100: =IF(OR(A100="",COUNTIF(A100,"* *")>0,LEFT(A100,1)="7",LEFT(A100,1)="8"),"",IF(VLOOKUP(A100,ZADANIOWY!A$2:O$10710,4,0)="T",VLOOKUP(A100,ZADANIOWY!A$2:O$10710,12,0)-C100,"")) ->  | H100: =IF(OR(A100="",COUNTIF(A100,"* *")>0,LEFT(A100,1)="7",LEFT(A100,1)="8"),"",IF(VLOOKUP(A100,ZADANIOWY!A$2:O$10710,4,0)="T",VLOOKUP(A100,ZADANIOWY!A$2:O$10710,13,0)-D100,"")) ->  | I100: =IF(OR(A100="",COUNTIF(A100,"* *")>0,LEFT(A100,1)="7",LEFT(A100,1)="8"),"",IF(VLOOKUP(A100,ZADANIOWY!A$2:O$10710,4,0)="T",VLOOKUP(A100,ZADANIOWY!A$2:O$10710,14,0),"")) ->  | J100: =IF(OR(A100="",COUNTIF(A100,"* *")>0,LEFT(A100,1)="7",LEFT(A100,1)="8"),"",IF(VLOOKUP(A100,ZADANIOWY!A$2:O$10710,4,0)="T",VLOOKUP(A100,ZADANIOWY!A$2:O$10710,15,0),"")) ->  | K100: nie
B101: Dysponent: Wydział Zasobów Lokalowych | E101: nie | G101: =IF(OR(A101="",COUNTIF(A101,"* *")>0,LEFT(A101,1)="7",LEFT(A101,1)="8"),"",IF(VLOOKUP(A101,ZADANIOWY!A$2:O$10710,4,0)="T",VLOOKUP(A101,ZADANIOWY!A$2:O$10710,12,0)-C101,"")) ->  | H101: =IF(OR(A101="",COUNTIF(A101,"* *")>0,LEFT(A101,1)="7",LEFT(A101,1)="8"),"",IF(VLOOKUP(A101,ZADANIOWY!A$2:O$10710,4,0)="T",VLOOKUP(A101,ZADANIOWY!A$2:O$10710,13,0)-D101,"")) ->  | I101: =IF(OR(A101="",COUNTIF(A101,"* *")>0,LEFT(A101,1)="7",LEFT(A101,1)="8"),"",IF(VLOOKUP(A101,ZADANIOWY!A$2:O$10710,4,0)="T",VLOOKUP(A101,ZADANIOWY!A$2:O$10710,14,0),"")) ->  | J101: =IF(OR(A101="",COUNTIF(A101,"* *")>0,LEFT(A101,1)="7",LEFT(A101,1)="8"),"",IF(VLOOKUP(A101,ZADANIOWY!A$2:O$10710,4,0)="T",VLOOKUP(A101,ZADANIOWY!A$2:O$10710,15,0),"")) ->  | K101: nie
E102: nie | G102: =IF(OR(A102="",COUNTIF(A102,"* *")>0,LEFT(A102,1)="7",LEFT(A102,1)="8"),"",IF(VLOOKUP(A102,ZADANIOWY!A$2:O$10710,4,0)="T",VLOOKUP(A102,ZADANIOWY!A$2:O$10710,12,0)-C102,"")) ->  | H102: =IF(OR(A102="",COUNTIF(A102,"* *")>0,LEFT(A102,1)="7",LEFT(A102,1)="8"),"",IF(VLOOKUP(A102,ZADANIOWY!A$2:O$10710,4,0)="T",VLOOKUP(A102,ZADANIOWY!A$2:O$10710,13,0)-D102,"")) ->  | I102: =IF(OR(A102="",COUNTIF(A102,"* *")>0,LEFT(A102,1)="7",LEFT(A102,1)="8"),"",IF(VLOOKUP(A102,ZADANIOWY!A$2:O$10710,4,0)="T",VLOOKUP(A102,ZADANIOWY!A$2:O$10710,14,0),"")) ->  | J102: =IF(OR(A102="",COUNTIF(A102,"* *")>0,LEFT(A102,1)="7",LEFT(A102,1)="8"),"",IF(VLOOKUP(A102,ZADANIOWY!A$2:O$10710,4,0)="T",VLOOKUP(A102,ZADANIOWY!A$2:O$10710,15,0),"")) ->  | K102: nie
B103: Klasyfikacja: rozdział: 70007 | E103: nie | G103: =IF(OR(A103="",COUNTIF(A103,"* *")>0,LEFT(A103,1)="7",LEFT(A103,1)="8"),"",IF(VLOOKUP(A103,ZADANIOWY!A$2:O$10710,4,0)="T",VLOOKUP(A103,ZADANIOWY!A$2:O$10710,12,0)-C103,"")) ->  | H103: =IF(OR(A103="",COUNTIF(A103,"* *")>0,LEFT(A103,1)="7",LEFT(A103,1)="8"),"",IF(VLOOKUP(A103,ZADANIOWY!A$2:O$10710,4,0)="T",VLOOKUP(A103,ZADANIOWY!A$2:O$10710,13,0)-D103,"")) ->  | I103: =IF(OR(A103="",COUNTIF(A103,"* *")>0,LEFT(A103,1)="7",LEFT(A103,1)="8"),"",IF(VLOOKUP(A103,ZADANIOWY!A$2:O$10710,4,0)="T",VLOOKUP(A103,ZADANIOWY!A$2:O$10710,14,0),"")) ->  | J103: =IF(OR(A103="",COUNTIF(A103,"* *")>0,LEFT(A103,1)="7",LEFT(A103,1)="8"),"",IF(VLOOKUP(A103,ZADANIOWY!A$2:O$10710,4,0)="T",VLOOKUP(A103,ZADANIOWY!A$2:O$10710,15,0),"")) ->  | K103: nie
E104: nie | G104: =IF(OR(A104="",COUNTIF(A104,"* *")>0,LEFT(A104,1)="7",LEFT(A104,1)="8"),"",IF(VLOOKUP(A104,ZADANIOWY!A$2:O$10710,4,0)="T",VLOOKUP(A104,ZADANIOWY!A$2:O$10710,12,0)-C104,"")) ->  | H104: =IF(OR(A104="",COUNTIF(A104,"* *")>0,LEFT(A104,1)="7",LEFT(A104,1)="8"),"",IF(VLOOKUP(A104,ZADANIOWY!A$2:O$10710,4,0)="T",VLOOKUP(A104,ZADANIOWY!A$2:O$10710,13,0)-D104,"")) ->  | I104: =IF(OR(A104="",COUNTIF(A104,"* *")>0,LEFT(A104,1)="7",LEFT(A104,1)="8"),"",IF(VLOOKUP(A104,ZADANIOWY!A$2:O$10710,4,0)="T",VLOOKUP(A104,ZADANIOWY!A$2:O$10710,14,0),"")) ->  | J104: =IF(OR(A104="",COUNTIF(A104,"* *")>0,LEFT(A104,1)="7",LEFT(A104,1)="8"),"",IF(VLOOKUP(A104,ZADANIOWY!A$2:O$10710,4,0)="T",VLOOKUP(A104,ZADANIOWY!A$2:O$10710,15,0),"")) ->  | K104: nie
B105: OPIS | E105: nie | G105: =IF(OR(A105="",COUNTIF(A105,"* *")>0,LEFT(A105,1)="7",LEFT(A105,1)="8"),"",IF(VLOOKUP(A105,ZADANIOWY!A$2:O$10710,4,0)="T",VLOOKUP(A105,ZADANIOWY!A$2:O$10710,12,0)-C105,"")) ->  | H105: =IF(OR(A105="",COUNTIF(A105,"* *")>0,LEFT(A105,1)="7",LEFT(A105,1)="8"),"",IF(VLOOKUP(A105,ZADANIOWY!A$2:O$10710,4,0)="T",VLOOKUP(A105,ZADANIOWY!A$2:O$10710,13,0)-D105,"")) ->  | I105: =IF(OR(A105="",COUNTIF(A105,"* *")>0,LEFT(A105,1)="7",LEFT(A105,1)="8"),"",IF(VLOOKUP(A105,ZADANIOWY!A$2:O$10710,4,0)="T",VLOOKUP(A105,ZADANIOWY!A$2:O$10710,14,0),"")) ->  | J105: =IF(OR(A105="",COUNTIF(A105,"* *")>0,LEFT(A105,1)="7",LEFT(A105,1)="8"),"",IF(VLOOKUP(A105,ZADANIOWY!A$2:O$10710,4,0)="T",VLOOKUP(A105,ZADANIOWY!A$2:O$10710,15,0),"")) ->  | K105: nie
E106: nie | G106: =IF(OR(A106="",COUNTIF(A106,"* *")>0,LEFT(A106,1)="7",LEFT(A106,1)="8"),"",IF(VLOOKUP(A106,ZADANIOWY!A$2:O$10710,4,0)="T",VLOOKUP(A106,ZADANIOWY!A$2:O$10710,12,0)-C106,"")) ->  | H106: =IF(OR(A106="",COUNTIF(A106,"* *")>0,LEFT(A106,1)="7",LEFT(A106,1)="8"),"",IF(VLOOKUP(A106,ZADANIOWY!A$2:O$10710,4,0)="T",VLOOKUP(A106,ZADANIOWY!A$2:O$10710,13,0)-D106,"")) ->  | I106: =IF(OR(A106="",COUNTIF(A106,"* *")>0,LEFT(A106,1)="7",LEFT(A106,1)="8"),"",IF(VLOOKUP(A106,ZADANIOWY!A$2:O$10710,4,0)="T",VLOOKUP(A106,ZADANIOWY!A$2:O$10710,14,0),"")) ->  | J106: =IF(OR(A106="",COUNTIF(A106,"* *")>0,LEFT(A106,1)="7",LEFT(A106,1)="8"),"",IF(VLOOKUP(A106,ZADANIOWY!A$2:O$10710,4,0)="T",VLOOKUP(A106,ZADANIOWY!A$2:O$10710,15,0),"")) ->  | K106: nie
A107: B/II/3/5 | B107: Opracowania i analizy związane z zarządzaniem zasobem komunalnym - zadanie 5 | E107: nie | G107: =IF(OR(A107="",COUNTIF(A107,"* *")>0,LEFT(A107,1)="7",LEFT(A107,1)="8"),"",IF(VLOOKUP(A107,ZADANIOWY!A$2:O$10710,4,0)="T",VLOOKUP(A107,ZADANIOWY!A$2:O$10710,12,0)-C107,"")) -> 0 | H107: =IF(OR(A107="",COUNTIF(A107,"* *")>0,LEFT(A107,1)="7",LEFT(A107,1)="8"),"",IF(VLOOKUP(A107,ZADANIOWY!A$2:O$10710,4,0)="T",VLOOKUP(A107,ZADANIOWY!A$2:O$10710,13,0)-D107,"")) -> 0 | I107: =IF(OR(A107="",COUNTIF(A107,"* *")>0,LEFT(A107,1)="7",LEFT(A107,1)="8"),"",IF(VLOOKUP(A107,ZADANIOWY!A$2:O$10710,4,0)="T",VLOOKUP(A107,ZADANIOWY!A$2:O$10710,14,0),"")) -> 0 | J107: =IF(OR(A107="",COUNTIF(A107,"* *")>0,LEFT(A107,1)="7",LEFT(A107,1)="8"),"",IF(VLOOKUP(A107,ZADANIOWY!A$2:O$10710,4,0)="T",VLOOKUP(A107,ZADANIOWY!A$2:O$10710,15,0),"")) -> 0 | K107: nie
E108: nie | G108: =IF(OR(A108="",COUNTIF(A108,"* *")>0,LEFT(A108,1)="7",LEFT(A108,1)="8"),"",IF(VLOOKUP(A108,ZADANIOWY!A$2:O$10710,4,0)="T",VLOOKUP(A108,ZADANIOWY!A$2:O$10710,12,0)-C108,"")) ->  | H108: =IF(OR(A108="",COUNTIF(A108,"* *")>0,LEFT(A108,1)="7",LEFT(A108,1)="8"),"",IF(VLOOKUP(A108,ZADANIOWY!A$2:O$10710,4,0)="T",VLOOKUP(A108,ZADANIOWY!A$2:O$10710,13,0)-D108,"")) ->  | I108: =IF(OR(A108="",COUNTIF(A108,"* *")>0,LEFT(A108,1)="7",LEFT(A108,1)="8"),"",IF(VLOOKUP(A108,ZADANIOWY!A$2:O$10710,4,0)="T",VLOOKUP(A108,ZADANIOWY!A$2:O$10710,14,0),"")) ->  | J108: =IF(OR(A108="",COUNTIF(A108,"* *")>0,LEFT(A108,1)="7",LEFT(A108,1)="8"),"",IF(VLOOKUP(A108,ZADANIOWY!A$2:O$10710,4,0)="T",VLOOKUP(A108,ZADANIOWY!A$2:O$10710,15,0),"")) ->  | K108: nie
B109: Dysponent: Wydział Zasobów Lokalowych | E109: nie | G109: =IF(OR(A109="",COUNTIF(A109,"* *")>0,LEFT(A109,1)="7",LEFT(A109,1)="8"),"",IF(VLOOKUP(A109,ZADANIOWY!A$2:O$10710,4,0)="T",VLOOKUP(A109,ZADANIOWY!A$2:O$10710,12,0)-C109,"")) ->  | H109: =IF(OR(A109="",COUNTIF(A109,"* *")>0,LEFT(A109,1)="7",LEFT(A109,1)="8"),"",IF(VLOOKUP(A109,ZADANIOWY!A$2:O$10710,4,0)="T",VLOOKUP(A109,ZADANIOWY!A$2:O$10710,13,0)-D109,"")) ->  | I109: =IF(OR(A109="",COUNTIF(A109,"* *")>0,LEFT(A109,1)="7",LEFT(A109,1)="8"),"",IF(VLOOKUP(A109,ZADANIOWY!A$2:O$10710,4,0)="T",VLOOKUP(A109,ZADANIOWY!A$2:O$10710,14,0),"")) ->  | J109: =IF(OR(A109="",COUNTIF(A109,"* *")>0,LEFT(A109,1)="7",LEFT(A109,1)="8"),"",IF(VLOOKUP(A109,ZADANIOWY!A$2:O$10710,4,0)="T",VLOOKUP(A109,ZADANIOWY!A$2:O$10710,15,0),"")) ->  | K109: nie
E110: nie | G110: =IF(OR(A110="",COUNTIF(A110,"* *")>0,LEFT(A110,1)="7",LEFT(A110,1)="8"),"",IF(VLOOKUP(A110,ZADANIOWY!A$2:O$10710,4,0)="T",VLOOKUP(A110,ZADANIOWY!A$2:O$10710,12,0)-C110,"")) ->  | H110: =IF(OR(A110="",COUNTIF(A110,"* *")>0,LEFT(A110,1)="7",LEFT(A110,1)="8"),"",IF(VLOOKUP(A110,ZADANIOWY!A$2:O$10710,4,0)="T",VLOOKUP(A110,ZADANIOWY!A$2:O$10710,13,0)-D110,"")) ->  | I110: =IF(OR(A110="",COUNTIF(A110,"* *")>0,LEFT(A110,1)="7",LEFT(A110,1)="8"),"",IF(VLOOKUP(A110,ZADANIOWY!A$2:O$10710,4,0)="T",VLOOKUP(A110,ZADANIOWY!A$2:O$10710,14,0),"")) ->  | J110: =IF(OR(A110="",COUNTIF(A110,"* *")>0,LEFT(A110,1)="7",LEFT(A110,1)="8"),"",IF(VLOOKUP(A110,ZADANIOWY!A$2:O$10710,4,0)="T",VLOOKUP(A110,ZADANIOWY!A$2:O$10710,15,0),"")) ->  | K110: nie
B111: Klasyfikacja: rozdział: 70007 | E111: nie | G111: =IF(OR(A111="",COUNTIF(A111,"* *")>0,LEFT(A111,1)="7",LEFT(A111,1)="8"),"",IF(VLOOKUP(A111,ZADANIOWY!A$2:O$10710,4,0)="T",VLOOKUP(A111,ZADANIOWY!A$2:O$10710,12,0)-C111,"")) ->  | H111: =IF(OR(A111="",COUNTIF(A111,"* *")>0,LEFT(A111,1)="7",LEFT(A111,1)="8"),"",IF(VLOOKUP(A111,ZADANIOWY!A$2:O$10710,4,0)="T",VLOOKUP(A111,ZADANIOWY!A$2:O$10710,13,0)-D111,"")) ->  | I111: =IF(OR(A111="",COUNTIF(A111,"* *")>0,LEFT(A111,1)="7",LEFT(A111,1)="8"),"",IF(VLOOKUP(A111,ZADANIOWY!A$2:O$10710,4,0)="T",VLOOKUP(A111,ZADANIOWY!A$2:O$10710,14,0),"")) ->  | J111: =IF(OR(A111="",COUNTIF(A111,"* *")>0,LEFT(A111,1)="7",LEFT(A111,1)="8"),"",IF(VLOOKUP(A111,ZADANIOWY!A$2:O$10710,4,0)="T",VLOOKUP(A111,ZADANIOWY!A$2:O$10710,15,0),"")) ->  | K111: nie
E112: nie | G112: =IF(OR(A112="",COUNTIF(A112,"* *")>0,LEFT(A112,1)="7",LEFT(A112,1)="8"),"",IF(VLOOKUP(A112,ZADANIOWY!A$2:O$10710,4,0)="T",VLOOKUP(A112,ZADANIOWY!A$2:O$10710,12,0)-C112,"")) ->  | H112: =IF(OR(A112="",COUNTIF(A112,"* *")>0,LEFT(A112,1)="7",LEFT(A112,1)="8"),"",IF(VLOOKUP(A112,ZADANIOWY!A$2:O$10710,4,0)="T",VLOOKUP(A112,ZADANIOWY!A$2:O$10710,13,0)-D112,"")) ->  | I112: =IF(OR(A112="",COUNTIF(A112,"* *")>0,LEFT(A112,1)="7",LEFT(A112,1)="8"),"",IF(VLOOKUP(A112,ZADANIOWY!A$2:O$10710,4,0)="T",VLOOKUP(A112,ZADANIOWY!A$2:O$10710,14,0),"")) ->  | J112: =IF(OR(A112="",COUNTIF(A112,"* *")>0,LEFT(A112,1)="7",LEFT(A112,1)="8"),"",IF(VLOOKUP(A112,ZADANIOWY!A$2:O$10710,4,0)="T",VLOOKUP(A112,ZADANIOWY!A$2:O$10710,15,0),"")) ->  | K112: nie
B113: OPIS | E113: nie | G113: =IF(OR(A113="",COUNTIF(A113,"* *")>0,LEFT(A113,1)="7",LEFT(A113,1)="8"),"",IF(VLOOKUP(A113,ZADANIOWY!A$2:O$10710,4,0)="T",VLOOKUP(A113,ZADANIOWY!A$2:O$10710,12,0)-C113,"")) ->  | H113: =IF(OR(A113="",COUNTIF(A113,"* *")>0,LEFT(A113,1)="7",LEFT(A113,1)="8"),"",IF(VLOOKUP(A113,ZADANIOWY!A$2:O$10710,4,0)="T",VLOOKUP(A113,ZADANIOWY!A$2:O$10710,13,0)-D113,"")) ->  | I113: =IF(OR(A113="",COUNTIF(A113,"* *")>0,LEFT(A113,1)="7",LEFT(A113,1)="8"),"",IF(VLOOKUP(A113,ZADANIOWY!A$2:O$10710,4,0)="T",VLOOKUP(A113,ZADANIOWY!A$2:O$10710,14,0),"")) ->  | J113: =IF(OR(A113="",COUNTIF(A113,"* *")>0,LEFT(A113,1)="7",LEFT(A113,1)="8"),"",IF(VLOOKUP(A113,ZADANIOWY!A$2:O$10710,4,0)="T",VLOOKUP(A113,ZADANIOWY!A$2:O$10710,15,0),"")) ->  | K113: nie
E114: nie | G114: =IF(OR(A114="",COUNTIF(A114,"* *")>0,LEFT(A114,1)="7",LEFT(A114,1)="8"),"",IF(VLOOKUP(A114,ZADANIOWY!A$2:O$10710,4,0)="T",VLOOKUP(A114,ZADANIOWY!A$2:O$10710,12,0)-C114,"")) ->  | H114: =IF(OR(A114="",COUNTIF(A114,"* *")>0,LEFT(A114,1)="7",LEFT(A114,1)="8"),"",IF(VLOOKUP(A114,ZADANIOWY!A$2:O$10710,4,0)="T",VLOOKUP(A114,ZADANIOWY!A$2:O$10710,13,0)-D114,"")) ->  | I114: =IF(OR(A114="",COUNTIF(A114,"* *")>0,LEFT(A114,1)="7",LEFT(A114,1)="8"),"",IF(VLOOKUP(A114,ZADANIOWY!A$2:O$10710,4,0)="T",VLOOKUP(A114,ZADANIOWY!A$2:O$10710,14,0),"")) ->  | J114: =IF(OR(A114="",COUNTIF(A114,"* *")>0,LEFT(A114,1)="7",LEFT(A114,1)="8"),"",IF(VLOOKUP(A114,ZADANIOWY!A$2:O$10710,4,0)="T",VLOOKUP(A114,ZADANIOWY!A$2:O$10710,15,0),"")) ->  | K114: nie
A115: B/II/3/6 | B115: Rozliczenia za lokale z właścicielami innymi niż m.st. Warszawa - zadanie 6 | C115: =C117+C123 -> 0 | D115: =D117+D123 -> 0 | E115: nie | G115: =IF(OR(A115="",COUNTIF(A115,"* *")>0,LEFT(A115,1)="7",LEFT(A115,1)="8"),"",IF(VLOOKUP(A115,ZADANIOWY!A$2:O$10710,4,0)="T",VLOOKUP(A115,ZADANIOWY!A$2:O$10710,12,0)-C115,"")) -> 0 | H115: =IF(OR(A115="",COUNTIF(A115,"* *")>0,LEFT(A115,1)="7",LEFT(A115,1)="8"),"",IF(VLOOKUP(A115,ZADANIOWY!A$2:O$10710,4,0)="T",VLOOKUP(A115,ZADANIOWY!A$2:O$10710,13,0)-D115,"")) -> 0 | I115: =IF(OR(A115="",COUNTIF(A115,"* *")>0,LEFT(A115,1)="7",LEFT(A115,1)="8"),"",IF(VLOOKUP(A115,ZADANIOWY!A$2:O$10710,4,0)="T",VLOOKUP(A115,ZADANIOWY!A$2:O$10710,14,0),"")) -> 0 | J115: =IF(OR(A115="",COUNTIF(A115,"* *")>0,LEFT(A115,1)="7",LEFT(A115,1)="8"),"",IF(VLOOKUP(A115,ZADANIOWY!A$2:O$10710,4,0)="T",VLOOKUP(A115,ZADANIOWY!A$2:O$10710,15,0),"")) -> 0 | K115: nie
E116: nie | G116: =IF(OR(A116="",COUNTIF(A116,"* *")>0,LEFT(A116,1)="7",LEFT(A116,1)="8"),"",IF(VLOOKUP(A116,ZADANIOWY!A$2:O$10710,4,0)="T",VLOOKUP(A116,ZADANIOWY!A$2:O$10710,12,0)-C116,"")) ->  | H116: =IF(OR(A116="",COUNTIF(A116,"* *")>0,LEFT(A116,1)="7",LEFT(A116,1)="8"),"",IF(VLOOKUP(A116,ZADANIOWY!A$2:O$10710,4,0)="T",VLOOKUP(A116,ZADANIOWY!A$2:O$10710,13,0)-D116,"")) ->  | I116: =IF(OR(A116="",COUNTIF(A116,"* *")>0,LEFT(A116,1)="7",LEFT(A116,1)="8"),"",IF(VLOOKUP(A116,ZADANIOWY!A$2:O$10710,4,0)="T",VLOOKUP(A116,ZADANIOWY!A$2:O$10710,14,0),"")) ->  | J116: =IF(OR(A116="",COUNTIF(A116,"* *")>0,LEFT(A116,1)="7",LEFT(A116,1)="8"),"",IF(VLOOKUP(A116,ZADANIOWY!A$2:O$10710,4,0)="T",VLOOKUP(A116,ZADANIOWY!A$2:O$10710,15,0),"")) ->  | K116: nie
B117: Dysponent 1: Wydział Zasobów Lokalowych | E117: nie | G117: =IF(OR(A117="",COUNTIF(A117,"* *")>0,LEFT(A117,1)="7",LEFT(A117,1)="8"),"",IF(VLOOKUP(A117,ZADANIOWY!A$2:O$10710,4,0)="T",VLOOKUP(A117,ZADANIOWY!A$2:O$10710,12,0)-C117,"")) ->  | H117: =IF(OR(A117="",COUNTIF(A117,"* *")>0,LEFT(A117,1)="7",LEFT(A117,1)="8"),"",IF(VLOOKUP(A117,ZADANIOWY!A$2:O$10710,4,0)="T",VLOOKUP(A117,ZADANIOWY!A$2:O$10710,13,0)-D117,"")) ->  | I117: =IF(OR(A117="",COUNTIF(A117,"* *")>0,LEFT(A117,1)="7",LEFT(A117,1)="8"),"",IF(VLOOKUP(A117,ZADANIOWY!A$2:O$10710,4,0)="T",VLOOKUP(A117,ZADANIOWY!A$2:O$10710,14,0),"")) ->  | J117: =IF(OR(A117="",COUNTIF(A117,"* *")>0,LEFT(A117,1)="7",LEFT(A117,1)="8"),"",IF(VLOOKUP(A117,ZADANIOWY!A$2:O$10710,4,0)="T",VLOOKUP(A117,ZADANIOWY!A$2:O$10710,15,0),"")) ->  | K117: nie
E118: nie | G118: =IF(OR(A118="",COUNTIF(A118,"* *")>0,LEFT(A118,1)="7",LEFT(A118,1)="8"),"",IF(VLOOKUP(A118,ZADANIOWY!A$2:O$10710,4,0)="T",VLOOKUP(A118,ZADANIOWY!A$2:O$10710,12,0)-C118,"")) ->  | H118: =IF(OR(A118="",COUNTIF(A118,"* *")>0,LEFT(A118,1)="7",LEFT(A118,1)="8"),"",IF(VLOOKUP(A118,ZADANIOWY!A$2:O$10710,4,0)="T",VLOOKUP(A118,ZADANIOWY!A$2:O$10710,13,0)-D118,"")) ->  | I118: =IF(OR(A118="",COUNTIF(A118,"* *")>0,LEFT(A118,1)="7",LEFT(A118,1)="8"),"",IF(VLOOKUP(A118,ZADANIOWY!A$2:O$10710,4,0)="T",VLOOKUP(A118,ZADANIOWY!A$2:O$10710,14,0),"")) ->  | J118: =IF(OR(A118="",COUNTIF(A118,"* *")>0,LEFT(A118,1)="7",LEFT(A118,1)="8"),"",IF(VLOOKUP(A118,ZADANIOWY!A$2:O$10710,4,0)="T",VLOOKUP(A118,ZADANIOWY!A$2:O$10710,15,0),"")) ->  | K118: nie
B119: Klasyfikacja: rozdział: 70005 | E119: nie | G119: =IF(OR(A119="",COUNTIF(A119,"* *")>0,LEFT(A119,1)="7",LEFT(A119,1)="8"),"",IF(VLOOKUP(A119,ZADANIOWY!A$2:O$10710,4,0)="T",VLOOKUP(A119,ZADANIOWY!A$2:O$10710,12,0)-C119,"")) ->  | H119: =IF(OR(A119="",COUNTIF(A119,"* *")>0,LEFT(A119,1)="7",LEFT(A119,1)="8"),"",IF(VLOOKUP(A119,ZADANIOWY!A$2:O$10710,4,0)="T",VLOOKUP(A119,ZADANIOWY!A$2:O$10710,13,0)-D119,"")) ->  | I119: =IF(OR(A119="",COUNTIF(A119,"* *")>0,LEFT(A119,1)="7",LEFT(A119,1)="8"),"",IF(VLOOKUP(A119,ZADANIOWY!A$2:O$10710,4,0)="T",VLOOKUP(A119,ZADANIOWY!A$2:O$10710,14,0),"")) ->  | J119: =IF(OR(A119="",COUNTIF(A119,"* *")>0,LEFT(A119,1)="7",LEFT(A119,1)="8"),"",IF(VLOOKUP(A119,ZADANIOWY!A$2:O$10710,4,0)="T",VLOOKUP(A119,ZADANIOWY!A$2:O$10710,15,0),"")) ->  | K119: nie
E120: nie | G120: =IF(OR(A120="",COUNTIF(A120,"* *")>0,LEFT(A120,1)="7",LEFT(A120,1)="8"),"",IF(VLOOKUP(A120,ZADANIOWY!A$2:O$10710,4,0)="T",VLOOKUP(A120,ZADANIOWY!A$2:O$10710,12,0)-C120,"")) ->  | H120: =IF(OR(A120="",COUNTIF(A120,"* *")>0,LEFT(A120,1)="7",LEFT(A120,1)="8"),"",IF(VLOOKUP(A120,ZADANIOWY!A$2:O$10710,4,0)="T",VLOOKUP(A120,ZADANIOWY!A$2:O$10710,13,0)-D120,"")) ->  | I120: =IF(OR(A120="",COUNTIF(A120,"* *")>0,LEFT(A120,1)="7",LEFT(A120,1)="8"),"",IF(VLOOKUP(A120,ZADANIOWY!A$2:O$10710,4,0)="T",VLOOKUP(A120,ZADANIOWY!A$2:O$10710,14,0),"")) ->  | J120: =IF(OR(A120="",COUNTIF(A120,"* *")>0,LEFT(A120,1)="7",LEFT(A120,1)="8"),"",IF(VLOOKUP(A120,ZADANIOWY!A$2:O$10710,4,0)="T",VLOOKUP(A120,ZADANIOWY!A$2:O$10710,15,0),"")) ->  | K120: nie
B121: OPIS | E121: nie | G121: =IF(OR(A121="",COUNTIF(A121,"* *")>0,LEFT(A121,1)="7",LEFT(A121,1)="8"),"",IF(VLOOKUP(A121,ZADANIOWY!A$2:O$10710,4,0)="T",VLOOKUP(A121,ZADANIOWY!A$2:O$10710,12,0)-C121,"")) ->  | H121: =IF(OR(A121="",COUNTIF(A121,"* *")>0,LEFT(A121,1)="7",LEFT(A121,1)="8"),"",IF(VLOOKUP(A121,ZADANIOWY!A$2:O$10710,4,0)="T",VLOOKUP(A121,ZADANIOWY!A$2:O$10710,13,0)-D121,"")) ->  | I121: =IF(OR(A121="",COUNTIF(A121,"* *")>0,LEFT(A121,1)="7",LEFT(A121,1)="8"),"",IF(VLOOKUP(A121,ZADANIOWY!A$2:O$10710,4,0)="T",VLOOKUP(A121,ZADANIOWY!A$2:O$10710,14,0),"")) ->  | J121: =IF(OR(A121="",COUNTIF(A121,"* *")>0,LEFT(A121,1)="7",LEFT(A121,1)="8"),"",IF(VLOOKUP(A121,ZADANIOWY!A$2:O$10710,4,0)="T",VLOOKUP(A121,ZADANIOWY!A$2:O$10710,15,0),"")) ->  | K121: nie
E122: nie | G122: =IF(OR(A122="",COUNTIF(A122,"* *")>0,LEFT(A122,1)="7",LEFT(A122,1)="8"),"",IF(VLOOKUP(A122,ZADANIOWY!A$2:O$10710,4,0)="T",VLOOKUP(A122,ZADANIOWY!A$2:O$10710,12,0)-C122,"")) ->  | H122: =IF(OR(A122="",COUNTIF(A122,"* *")>0,LEFT(A122,1)="7",LEFT(A122,1)="8"),"",IF(VLOOKUP(A122,ZADANIOWY!A$2:O$10710,4,0)="T",VLOOKUP(A122,ZADANIOWY!A$2:O$10710,13,0)-D122,"")) ->  | I122: =IF(OR(A122="",COUNTIF(A122,"* *")>0,LEFT(A122,1)="7",LEFT(A122,1)="8"),"",IF(VLOOKUP(A122,ZADANIOWY!A$2:O$10710,4,0)="T",VLOOKUP(A122,ZADANIOWY!A$2:O$10710,14,0),"")) ->  | J122: =IF(OR(A122="",COUNTIF(A122,"* *")>0,LEFT(A122,1)="7",LEFT(A122,1)="8"),"",IF(VLOOKUP(A122,ZADANIOWY!A$2:O$10710,4,0)="T",VLOOKUP(A122,ZADANIOWY!A$2:O$10710,15,0),"")) ->  | K122: nie
B123: Dysponent 2: Wydział Prawny | E123: nie | G123: =IF(OR(A123="",COUNTIF(A123,"* *")>0,LEFT(A123,1)="7",LEFT(A123,1)="8"),"",IF(VLOOKUP(A123,ZADANIOWY!A$2:O$10710,4,0)="T",VLOOKUP(A123,ZADANIOWY!A$2:O$10710,12,0)-C123,"")) ->  | H123: =IF(OR(A123="",COUNTIF(A123,"* *")>0,LEFT(A123,1)="7",LEFT(A123,1)="8"),"",IF(VLOOKUP(A123,ZADANIOWY!A$2:O$10710,4,0)="T",VLOOKUP(A123,ZADANIOWY!A$2:O$10710,13,0)-D123,"")) ->  | I123: =IF(OR(A123="",COUNTIF(A123,"* *")>0,LEFT(A123,1)="7",LEFT(A123,1)="8"),"",IF(VLOOKUP(A123,ZADANIOWY!A$2:O$10710,4,0)="T",VLOOKUP(A123,ZADANIOWY!A$2:O$10710,14,0),"")) ->  | J123: =IF(OR(A123="",COUNTIF(A123,"* *")>0,LEFT(A123,1)="7",LEFT(A123,1)="8"),"",IF(VLOOKUP(A123,ZADANIOWY!A$2:O$10710,4,0)="T",VLOOKUP(A123,ZADANIOWY!A$2:O$10710,15,0),"")) ->  | K123: nie
E124: nie | G124: =IF(OR(A124="",COUNTIF(A124,"* *")>0,LEFT(A124,1)="7",LEFT(A124,1)="8"),"",IF(VLOOKUP(A124,ZADANIOWY!A$2:O$10710,4,0)="T",VLOOKUP(A124,ZADANIOWY!A$2:O$10710,12,0)-C124,"")) ->  | H124: =IF(OR(A124="",COUNTIF(A124,"* *")>0,LEFT(A124,1)="7",LEFT(A124,1)="8"),"",IF(VLOOKUP(A124,ZADANIOWY!A$2:O$10710,4,0)="T",VLOOKUP(A124,ZADANIOWY!A$2:O$10710,13,0)-D124,"")) ->  | I124: =IF(OR(A124="",COUNTIF(A124,"* *")>0,LEFT(A124,1)="7",LEFT(A124,1)="8"),"",IF(VLOOKUP(A124,ZADANIOWY!A$2:O$10710,4,0)="T",VLOOKUP(A124,ZADANIOWY!A$2:O$10710,14,0),"")) ->  | J124: =IF(OR(A124="",COUNTIF(A124,"* *")>0,LEFT(A124,1)="7",LEFT(A124,1)="8"),"",IF(VLOOKUP(A124,ZADANIOWY!A$2:O$10710,4,0)="T",VLOOKUP(A124,ZADANIOWY!A$2:O$10710,15,0),"")) ->  | K124: nie
B125: Klasyfikacja: rozdział: 70005 | E125: nie | G125: =IF(OR(A125="",COUNTIF(A125,"* *")>0,LEFT(A125,1)="7",LEFT(A125,1)="8"),"",IF(VLOOKUP(A125,ZADANIOWY!A$2:O$10710,4,0)="T",VLOOKUP(A125,ZADANIOWY!A$2:O$10710,12,0)-C125,"")) ->  | H125: =IF(OR(A125="",COUNTIF(A125,"* *")>0,LEFT(A125,1)="7",LEFT(A125,1)="8"),"",IF(VLOOKUP(A125,ZADANIOWY!A$2:O$10710,4,0)="T",VLOOKUP(A125,ZADANIOWY!A$2:O$10710,13,0)-D125,"")) ->  | I125: =IF(OR(A125="",COUNTIF(A125,"* *")>0,LEFT(A125,1)="7",LEFT(A125,1)="8"),"",IF(VLOOKUP(A125,ZADANIOWY!A$2:O$10710,4,0)="T",VLOOKUP(A125,ZADANIOWY!A$2:O$10710,14,0),"")) ->  | J125: =IF(OR(A125="",COUNTIF(A125,"* *")>0,LEFT(A125,1)="7",LEFT(A125,1)="8"),"",IF(VLOOKUP(A125,ZADANIOWY!A$2:O$10710,4,0)="T",VLOOKUP(A125,ZADANIOWY!A$2:O$10710,15,0),"")) ->  | K125: nie
E126: nie | G126: =IF(OR(A126="",COUNTIF(A126,"* *")>0,LEFT(A126,1)="7",LEFT(A126,1)="8"),"",IF(VLOOKUP(A126,ZADANIOWY!A$2:O$10710,4,0)="T",VLOOKUP(A126,ZADANIOWY!A$2:O$10710,12,0)-C126,"")) ->  | H126: =IF(OR(A126="",COUNTIF(A126,"* *")>0,LEFT(A126,1)="7",LEFT(A126,1)="8"),"",IF(VLOOKUP(A126,ZADANIOWY!A$2:O$10710,4,0)="T",VLOOKUP(A126,ZADANIOWY!A$2:O$10710,13,0)-D126,"")) ->  | I126: =IF(OR(A126="",COUNTIF(A126,"* *")>0,LEFT(A126,1)="7",LEFT(A126,1)="8"),"",IF(VLOOKUP(A126,ZADANIOWY!A$2:O$10710,4,0)="T",VLOOKUP(A126,ZADANIOWY!A$2:O$10710,14,0),"")) ->  | J126: =IF(OR(A126="",COUNTIF(A126,"* *")>0,LEFT(A126,1)="7",LEFT(A126,1)="8"),"",IF(VLOOKUP(A126,ZADANIOWY!A$2:O$10710,4,0)="T",VLOOKUP(A126,ZADANIOWY!A$2:O$10710,15,0),"")) ->  | K126: nie
B127: OPIS | E127: nie | G127: =IF(OR(A127="",COUNTIF(A127,"* *")>0,LEFT(A127,1)="7",LEFT(A127,1)="8"),"",IF(VLOOKUP(A127,ZADANIOWY!A$2:O$10710,4,0)="T",VLOOKUP(A127,ZADANIOWY!A$2:O$10710,12,0)-C127,"")) ->  | H127: =IF(OR(A127="",COUNTIF(A127,"* *")>0,LEFT(A127,1)="7",LEFT(A127,1)="8"),"",IF(VLOOKUP(A127,ZADANIOWY!A$2:O$10710,4,0)="T",VLOOKUP(A127,ZADANIOWY!A$2:O$10710,13,0)-D127,"")) ->  | I127: =IF(OR(A127="",COUNTIF(A127,"* *")>0,LEFT(A127,1)="7",LEFT(A127,1)="8"),"",IF(VLOOKUP(A127,ZADANIOWY!A$2:O$10710,4,0)="T",VLOOKUP(A127,ZADANIOWY!A$2:O$10710,14,0),"")) ->  | J127: =IF(OR(A127="",COUNTIF(A127,"* *")>0,LEFT(A127,1)="7",LEFT(A127,1)="8"),"",IF(VLOOKUP(A127,ZADANIOWY!A$2:O$10710,4,0)="T",VLOOKUP(A127,ZADANIOWY!A$2:O$10710,15,0),"")) ->  | K127: nie
E128: nie | G128: =IF(OR(A128="",COUNTIF(A128,"* *")>0,LEFT(A128,1)="7",LEFT(A128,1)="8"),"",IF(VLOOKUP(A128,ZADANIOWY!A$2:O$10710,4,0)="T",VLOOKUP(A128,ZADANIOWY!A$2:O$10710,12,0)-C128,"")) ->  | H128: =IF(OR(A128="",COUNTIF(A128,"* *")>0,LEFT(A128,1)="7",LEFT(A128,1)="8"),"",IF(VLOOKUP(A128,ZADANIOWY!A$2:O$10710,4,0)="T",VLOOKUP(A128,ZADANIOWY!A$2:O$10710,13,0)-D128,"")) ->  | I128: =IF(OR(A128="",COUNTIF(A128,"* *")>0,LEFT(A128,1)="7",LEFT(A128,1)="8"),"",IF(VLOOKUP(A128,ZADANIOWY!A$2:O$10710,4,0)="T",VLOOKUP(A128,ZADANIOWY!A$2:O$10710,14,0),"")) ->  | J128: =IF(OR(A128="",COUNTIF(A128,"* *")>0,LEFT(A128,1)="7",LEFT(A128,1)="8"),"",IF(VLOOKUP(A128,ZADANIOWY!A$2:O$10710,4,0)="T",VLOOKUP(A128,ZADANIOWY!A$2:O$10710,15,0),"")) ->  | K128: nie
A129: II/4 | B129: Zadania związane z nabywaniem i sprzedażą nieruchomości - program 4 | C129: =C131+C145 -> 0 | D129: =D131+D145 -> 0 | E129: nie | G129: =IF(OR(A129="",COUNTIF(A129,"* *")>0,LEFT(A129,1)="7",LEFT(A129,1)="8"),"",IF(VLOOKUP(A129,ZADANIOWY!A$2:O$10710,4,0)="T",VLOOKUP(A129,ZADANIOWY!A$2:O$10710,12,0)-C129,"")) -> 0 | H129: =IF(OR(A129="",COUNTIF(A129,"* *")>0,LEFT(A129,1)="7",LEFT(A129,1)="8"),"",IF(VLOOKUP(A129,ZADANIOWY!A$2:O$10710,4,0)="T",VLOOKUP(A129,ZADANIOWY!A$2:O$10710,13,0)-D129,"")) -> 0 | I129: =IF(OR(A129="",COUNTIF(A129,"* *")>0,LEFT(A129,1)="7",LEFT(A129,1)="8"),"",IF(VLOOKUP(A129,ZADANIOWY!A$2:O$10710,4,0)="T",VLOOKUP(A129,ZADANIOWY!A$2:O$10710,14,0),"")) -> 0 | J129: =IF(OR(A129="",COUNTIF(A129,"* *")>0,LEFT(A129,1)="7",LEFT(A129,1)="8"),"",IF(VLOOKUP(A129,ZADANIOWY!A$2:O$10710,4,0)="T",VLOOKUP(A129,ZADANIOWY!A$2:O$10710,15,0),"")) -> 0 | K129: nie
E130: nie | G130: =IF(OR(A130="",COUNTIF(A130,"* *")>0,LEFT(A130,1)="7",LEFT(A130,1)="8"),"",IF(VLOOKUP(A130,ZADANIOWY!A$2:O$10710,4,0)="T",VLOOKUP(A130,ZADANIOWY!A$2:O$10710,12,0)-C130,"")) ->  | H130: =IF(OR(A130="",COUNTIF(A130,"* *")>0,LEFT(A130,1)="7",LEFT(A130,1)="8"),"",IF(VLOOKUP(A130,ZADANIOWY!A$2:O$10710,4,0)="T",VLOOKUP(A130,ZADANIOWY!A$2:O$10710,13,0)-D130,"")) ->  | I130: =IF(OR(A130="",COUNTIF(A130,"* *")>0,LEFT(A130,1)="7",LEFT(A130,1)="8"),"",IF(VLOOKUP(A130,ZADANIOWY!A$2:O$10710,4,0)="T",VLOOKUP(A130,ZADANIOWY!A$2:O$10710,14,0),"")) ->  | J130: =IF(OR(A130="",COUNTIF(A130,"* *")>0,LEFT(A130,1)="7",LEFT(A130,1)="8"),"",IF(VLOOKUP(A130,ZADANIOWY!A$2:O$10710,4,0)="T",VLOOKUP(A130,ZADANIOWY!A$2:O$10710,15,0),"")) ->  | K130: nie
A131: B/II/4/1 | B131: Przygotowanie nieruchomości komunalnych przeznaczonych m.in. do zbycia i zamiany - zadanie 1 | C131: =C133+C139 -> 0 | D131: =D133+D139 -> 0 | E131: nie | G131: =IF(OR(A131="",COUNTIF(A131,"* *")>0,LEFT(A131,1)="7",LEFT(A131,1)="8"),"",IF(VLOOKUP(A131,ZADANIOWY!A$2:O$10710,4,0)="T",VLOOKUP(A131,ZADANIOWY!A$2:O$10710,12,0)-C131,"")) -> 0 | H131: =IF(OR(A131="",COUNTIF(A131,"* *")>0,LEFT(A131,1)="7",LEFT(A131,1)="8"),"",IF(VLOOKUP(A131,ZADANIOWY!A$2:O$10710,4,0)="T",VLOOKUP(A131,ZADANIOWY!A$2:O$10710,13,0)-D131,"")) -> 0 | I131: =IF(OR(A131="",COUNTIF(A131,"* *")>0,LEFT(A131,1)="7",LEFT(A131,1)="8"),"",IF(VLOOKUP(A131,ZADANIOWY!A$2:O$10710,4,0)="T",VLOOKUP(A131,ZADANIOWY!A$2:O$10710,14,0),"")) -> 0 | J131: =IF(OR(A131="",COUNTIF(A131,"* *")>0,LEFT(A131,1)="7",LEFT(A131,1)="8"),"",IF(VLOOKUP(A131,ZADANIOWY!A$2:O$10710,4,0)="T",VLOOKUP(A131,ZADANIOWY!A$2:O$10710,15,0),"")) -> 0 | K131: nie
E132: nie | G132: =IF(OR(A132="",COUNTIF(A132,"* *")>0,LEFT(A132,1)="7",LEFT(A132,1)="8"),"",IF(VLOOKUP(A132,ZADANIOWY!A$2:O$10710,4,0)="T",VLOOKUP(A132,ZADANIOWY!A$2:O$10710,12,0)-C132,"")) ->  | H132: =IF(OR(A132="",COUNTIF(A132,"* *")>0,LEFT(A132,1)="7",LEFT(A132,1)="8"),"",IF(VLOOKUP(A132,ZADANIOWY!A$2:O$10710,4,0)="T",VLOOKUP(A132,ZADANIOWY!A$2:O$10710,13,0)-D132,"")) ->  | I132: =IF(OR(A132="",COUNTIF(A132,"* *")>0,LEFT(A132,1)="7",LEFT(A132,1)="8"),"",IF(VLOOKUP(A132,ZADANIOWY!A$2:O$10710,4,0)="T",VLOOKUP(A132,ZADANIOWY!A$2:O$10710,14,0),"")) ->  | J132: =IF(OR(A132="",COUNTIF(A132,"* *")>0,LEFT(A132,1)="7",LEFT(A132,1)="8"),"",IF(VLOOKUP(A132,ZADANIOWY!A$2:O$10710,4,0)="T",VLOOKUP(A132,ZADANIOWY!A$2:O$10710,15,0),"")) ->  | K132: nie
B133: Dysponent 1: Wydział Nieruchomości | E133: nie | G133: =IF(OR(A133="",COUNTIF(A133,"* *")>0,LEFT(A133,1)="7",LEFT(A133,1)="8"),"",IF(VLOOKUP(A133,ZADANIOWY!A$2:O$10710,4,0)="T",VLOOKUP(A133,ZADANIOWY!A$2:O$10710,12,0)-C133,"")) ->  | H133: =IF(OR(A133="",COUNTIF(A133,"* *")>0,LEFT(A133,1)="7",LEFT(A133,1)="8"),"",IF(VLOOKUP(A133,ZADANIOWY!A$2:O$10710,4,0)="T",VLOOKUP(A133,ZADANIOWY!A$2:O$10710,13,0)-D133,"")) ->  | I133: =IF(OR(A133="",COUNTIF(A133,"* *")>0,LEFT(A133,1)="7",LEFT(A133,1)="8"),"",IF(VLOOKUP(A133,ZADANIOWY!A$2:O$10710,4,0)="T",VLOOKUP(A133,ZADANIOWY!A$2:O$10710,14,0),"")) ->  | J133: =IF(OR(A133="",COUNTIF(A133,"* *")>0,LEFT(A133,1)="7",LEFT(A133,1)="8"),"",IF(VLOOKUP(A133,ZADANIOWY!A$2:O$10710,4,0)="T",VLOOKUP(A133,ZADANIOWY!A$2:O$10710,15,0),"")) ->  | K133: nie
E134: nie | G134: =IF(OR(A134="",COUNTIF(A134,"* *")>0,LEFT(A134,1)="7",LEFT(A134,1)="8"),"",IF(VLOOKUP(A134,ZADANIOWY!A$2:O$10710,4,0)="T",VLOOKUP(A134,ZADANIOWY!A$2:O$10710,12,0)-C134,"")) ->  | H134: =IF(OR(A134="",COUNTIF(A134,"* *")>0,LEFT(A134,1)="7",LEFT(A134,1)="8"),"",IF(VLOOKUP(A134,ZADANIOWY!A$2:O$10710,4,0)="T",VLOOKUP(A134,ZADANIOWY!A$2:O$10710,13,0)-D134,"")) ->  | I134: =IF(OR(A134="",COUNTIF(A134,"* *")>0,LEFT(A134,1)="7",LEFT(A134,1)="8"),"",IF(VLOOKUP(A134,ZADANIOWY!A$2:O$10710,4,0)="T",VLOOKUP(A134,ZADANIOWY!A$2:O$10710,14,0),"")) ->  | J134: =IF(OR(A134="",COUNTIF(A134,"* *")>0,LEFT(A134,1)="7",LEFT(A134,1)="8"),"",IF(VLOOKUP(A134,ZADANIOWY!A$2:O$10710,4,0)="T",VLOOKUP(A134,ZADANIOWY!A$2:O$10710,15,0),"")) ->  | K134: nie
B135: Klasyfikacja: rozdział: 70005 | E135: nie | G135: =IF(OR(A135="",COUNTIF(A135,"* *")>0,LEFT(A135,1)="7",LEFT(A135,1)="8"),"",IF(VLOOKUP(A135,ZADANIOWY!A$2:O$10710,4,0)="T",VLOOKUP(A135,ZADANIOWY!A$2:O$10710,12,0)-C135,"")) ->  | H135: =IF(OR(A135="",COUNTIF(A135,"* *")>0,LEFT(A135,1)="7",LEFT(A135,1)="8"),"",IF(VLOOKUP(A135,ZADANIOWY!A$2:O$10710,4,0)="T",VLOOKUP(A135,ZADANIOWY!A$2:O$10710,13,0)-D135,"")) ->  | I135: =IF(OR(A135="",COUNTIF(A135,"* *")>0,LEFT(A135,1)="7",LEFT(A135,1)="8"),"",IF(VLOOKUP(A135,ZADANIOWY!A$2:O$10710,4,0)="T",VLOOKUP(A135,ZADANIOWY!A$2:O$10710,14,0),"")) ->  | J135: =IF(OR(A135="",COUNTIF(A135,"* *")>0,LEFT(A135,1)="7",LEFT(A135,1)="8"),"",IF(VLOOKUP(A135,ZADANIOWY!A$2:O$10710,4,0)="T",VLOOKUP(A135,ZADANIOWY!A$2:O$10710,15,0),"")) ->  | K135: nie
E136: nie | G136: =IF(OR(A136="",COUNTIF(A136,"* *")>0,LEFT(A136,1)="7",LEFT(A136,1)="8"),"",IF(VLOOKUP(A136,ZADANIOWY!A$2:O$10710,4,0)="T",VLOOKUP(A136,ZADANIOWY!A$2:O$10710,12,0)-C136,"")) ->  | H136: =IF(OR(A136="",COUNTIF(A136,"* *")>0,LEFT(A136,1)="7",LEFT(A136,1)="8"),"",IF(VLOOKUP(A136,ZADANIOWY!A$2:O$10710,4,0)="T",VLOOKUP(A136,ZADANIOWY!A$2:O$10710,13,0)-D136,"")) ->  | I136: =IF(OR(A136="",COUNTIF(A136,"* *")>0,LEFT(A136,1)="7",LEFT(A136,1)="8"),"",IF(VLOOKUP(A136,ZADANIOWY!A$2:O$10710,4,0)="T",VLOOKUP(A136,ZADANIOWY!A$2:O$10710,14,0),"")) ->  | J136: =IF(OR(A136="",COUNTIF(A136,"* *")>0,LEFT(A136,1)="7",LEFT(A136,1)="8"),"",IF(VLOOKUP(A136,ZADANIOWY!A$2:O$10710,4,0)="T",VLOOKUP(A136,ZADANIOWY!A$2:O$10710,15,0),"")) ->  | K136: nie
B137: OPIS | E137: nie | G137: =IF(OR(A137="",COUNTIF(A137,"* *")>0,LEFT(A137,1)="7",LEFT(A137,1)="8"),"",IF(VLOOKUP(A137,ZADANIOWY!A$2:O$10710,4,0)="T",VLOOKUP(A137,ZADANIOWY!A$2:O$10710,12,0)-C137,"")) ->  | H137: =IF(OR(A137="",COUNTIF(A137,"* *")>0,LEFT(A137,1)="7",LEFT(A137,1)="8"),"",IF(VLOOKUP(A137,ZADANIOWY!A$2:O$10710,4,0)="T",VLOOKUP(A137,ZADANIOWY!A$2:O$10710,13,0)-D137,"")) ->  | I137: =IF(OR(A137="",COUNTIF(A137,"* *")>0,LEFT(A137,1)="7",LEFT(A137,1)="8"),"",IF(VLOOKUP(A137,ZADANIOWY!A$2:O$10710,4,0)="T",VLOOKUP(A137,ZADANIOWY!A$2:O$10710,14,0),"")) ->  | J137: =IF(OR(A137="",COUNTIF(A137,"* *")>0,LEFT(A137,1)="7",LEFT(A137,1)="8"),"",IF(VLOOKUP(A137,ZADANIOWY!A$2:O$10710,4,0)="T",VLOOKUP(A137,ZADANIOWY!A$2:O$10710,15,0),"")) ->  | K137: nie
E138: nie | G138: =IF(OR(A138="",COUNTIF(A138,"* *")>0,LEFT(A138,1)="7",LEFT(A138,1)="8"),"",IF(VLOOKUP(A138,ZADANIOWY!A$2:O$10710,4,0)="T",VLOOKUP(A138,ZADANIOWY!A$2:O$10710,12,0)-C138,"")) ->  | H138: =IF(OR(A138="",COUNTIF(A138,"* *")>0,LEFT(A138,1)="7",LEFT(A138,1)="8"),"",IF(VLOOKUP(A138,ZADANIOWY!A$2:O$10710,4,0)="T",VLOOKUP(A138,ZADANIOWY!A$2:O$10710,13,0)-D138,"")) ->  | I138: =IF(OR(A138="",COUNTIF(A138,"* *")>0,LEFT(A138,1)="7",LEFT(A138,1)="8"),"",IF(VLOOKUP(A138,ZADANIOWY!A$2:O$10710,4,0)="T",VLOOKUP(A138,ZADANIOWY!A$2:O$10710,14,0),"")) ->  | J138: =IF(OR(A138="",COUNTIF(A138,"* *")>0,LEFT(A138,1)="7",LEFT(A138,1)="8"),"",IF(VLOOKUP(A138,ZADANIOWY!A$2:O$10710,4,0)="T",VLOOKUP(A138,ZADANIOWY!A$2:O$10710,15,0),"")) ->  | K138: nie | M138: =IF(OR(A138="",COUNTIF(A138,"* *")>0,LEFT(A138,1)="7",LEFT(A138,1)="8"),OFFSET(M138,-1,0),IF(C138+D138>0,A138,"")) ->  | N138: =IF(AND(COUNTIF(B138,"Dysponen*")>0,NOT(M138="")),M138&MID(B138,FIND(":",B138),80),"") ->  | O138: =IF(N138="","",LEFT(N138,FIND(":",N138)-1)) ->  | P138: =IF(N138="","",MID(N138,FIND(":",N138)+2,80)) ->  | Q138: =IF(N138="","",RIGHT(N138,LEN(N138)-FIND(":",N138)-1)) -> 
B139: Dysponent 2: Wydział Administracyjno-Gospodarczy | E139: nie | G139: =IF(OR(A139="",COUNTIF(A139,"* *")>0,LEFT(A139,1)="7",LEFT(A139,1)="8"),"",IF(VLOOKUP(A139,ZADANIOWY!A$2:O$10710,4,0)="T",VLOOKUP(A139,ZADANIOWY!A$2:O$10710,12,0)-C139,"")) ->  | H139: =IF(OR(A139="",COUNTIF(A139,"* *")>0,LEFT(A139,1)="7",LEFT(A139,1)="8"),"",IF(VLOOKUP(A139,ZADANIOWY!A$2:O$10710,4,0)="T",VLOOKUP(A139,ZADANIOWY!A$2:O$10710,13,0)-D139,"")) ->  | I139: =IF(OR(A139="",COUNTIF(A139,"* *")>0,LEFT(A139,1)="7",LEFT(A139,1)="8"),"",IF(VLOOKUP(A139,ZADANIOWY!A$2:O$10710,4,0)="T",VLOOKUP(A139,ZADANIOWY!A$2:O$10710,14,0),"")) ->  | J139: =IF(OR(A139="",COUNTIF(A139,"* *")>0,LEFT(A139,1)="7",LEFT(A139,1)="8"),"",IF(VLOOKUP(A139,ZADANIOWY!A$2:O$10710,4,0)="T",VLOOKUP(A139,ZADANIOWY!A$2:O$10710,15,0),"")) ->  | K139: nie
E140: nie | G140: =IF(OR(A140="",COUNTIF(A140,"* *")>0,LEFT(A140,1)="7",LEFT(A140,1)="8"),"",IF(VLOOKUP(A140,ZADANIOWY!A$2:O$10710,4,0)="T",VLOOKUP(A140,ZADANIOWY!A$2:O$10710,12,0)-C140,"")) ->  | H140: =IF(OR(A140="",COUNTIF(A140,"* *")>0,LEFT(A140,1)="7",LEFT(A140,1)="8"),"",IF(VLOOKUP(A140,ZADANIOWY!A$2:O$10710,4,0)="T",VLOOKUP(A140,ZADANIOWY!A$2:O$10710,13,0)-D140,"")) ->  | I140: =IF(OR(A140="",COUNTIF(A140,"* *")>0,LEFT(A140,1)="7",LEFT(A140,1)="8"),"",IF(VLOOKUP(A140,ZADANIOWY!A$2:O$10710,4,0)="T",VLOOKUP(A140,ZADANIOWY!A$2:O$10710,14,0),"")) ->  | J140: =IF(OR(A140="",COUNTIF(A140,"* *")>0,LEFT(A140,1)="7",LEFT(A140,1)="8"),"",IF(VLOOKUP(A140,ZADANIOWY!A$2:O$10710,4,0)="T",VLOOKUP(A140,ZADANIOWY!A$2:O$10710,15,0),"")) ->  | K140: nie
B141: Klasyfikacja: rozdział: 70005 | E141: nie | G141: =IF(OR(A141="",COUNTIF(A141,"* *")>0,LEFT(A141,1)="7",LEFT(A141,1)="8"),"",IF(VLOOKUP(A141,ZADANIOWY!A$2:O$10710,4,0)="T",VLOOKUP(A141,ZADANIOWY!A$2:O$10710,12,0)-C141,"")) ->  | H141: =IF(OR(A141="",COUNTIF(A141,"* *")>0,LEFT(A141,1)="7",LEFT(A141,1)="8"),"",IF(VLOOKUP(A141,ZADANIOWY!A$2:O$10710,4,0)="T",VLOOKUP(A141,ZADANIOWY!A$2:O$10710,13,0)-D141,"")) ->  | I141: =IF(OR(A141="",COUNTIF(A141,"* *")>0,LEFT(A141,1)="7",LEFT(A141,1)="8"),"",IF(VLOOKUP(A141,ZADANIOWY!A$2:O$10710,4,0)="T",VLOOKUP(A141,ZADANIOWY!A$2:O$10710,14,0),"")) ->  | J141: =IF(OR(A141="",COUNTIF(A141,"* *")>0,LEFT(A141,1)="7",LEFT(A141,1)="8"),"",IF(VLOOKUP(A141,ZADANIOWY!A$2:O$10710,4,0)="T",VLOOKUP(A141,ZADANIOWY!A$2:O$10710,15,0),"")) ->  | K141: nie
E142: nie | G142: =IF(OR(A142="",COUNTIF(A142,"* *")>0,LEFT(A142,1)="7",LEFT(A142,1)="8"),"",IF(VLOOKUP(A142,ZADANIOWY!A$2:O$10710,4,0)="T",VLOOKUP(A142,ZADANIOWY!A$2:O$10710,12,0)-C142,"")) ->  | H142: =IF(OR(A142="",COUNTIF(A142,"* *")>0,LEFT(A142,1)="7",LEFT(A142,1)="8"),"",IF(VLOOKUP(A142,ZADANIOWY!A$2:O$10710,4,0)="T",VLOOKUP(A142,ZADANIOWY!A$2:O$10710,13,0)-D142,"")) ->  | I142: =IF(OR(A142="",COUNTIF(A142,"* *")>0,LEFT(A142,1)="7",LEFT(A142,1)="8"),"",IF(VLOOKUP(A142,ZADANIOWY!A$2:O$10710,4,0)="T",VLOOKUP(A142,ZADANIOWY!A$2:O$10710,14,0),"")) ->  | J142: =IF(OR(A142="",COUNTIF(A142,"* *")>0,LEFT(A142,1)="7",LEFT(A142,1)="8"),"",IF(VLOOKUP(A142,ZADANIOWY!A$2:O$10710,4,0)="T",VLOOKUP(A142,ZADANIOWY!A$2:O$10710,15,0),"")) ->  | K142: nie
B143: OPIS | E143: =IF(OR(A143="",COUNTIF(A143,"* *")>0),OFFSET(E143,-1,0),IF(C143+D143>0,"tak","nie")) -> nie | G143: =IF(OR(A143="",COUNTIF(A143,"* *")>0,LEFT(A143,1)="7",LEFT(A143,1)="8"),"",IF(VLOOKUP(A143,ZADANIOWY!A$2:O$10710,4,0)="T",VLOOKUP(A143,ZADANIOWY!A$2:O$10710,12,0)-C143,"")) ->  | H143: =IF(OR(A143="",COUNTIF(A143,"* *")>0,LEFT(A143,1)="7",LEFT(A143,1)="8"),"",IF(VLOOKUP(A143,ZADANIOWY!A$2:O$10710,4,0)="T",VLOOKUP(A143,ZADANIOWY!A$2:O$10710,13,0)-D143,"")) ->  | I143: =IF(OR(A143="",COUNTIF(A143,"* *")>0,LEFT(A143,1)="7",LEFT(A143,1)="8"),"",IF(VLOOKUP(A143,ZADANIOWY!A$2:O$10710,4,0)="T",VLOOKUP(A143,ZADANIOWY!A$2:O$10710,14,0),"")) ->  | J143: =IF(OR(A143="",COUNTIF(A143,"* *")>0,LEFT(A143,1)="7",LEFT(A143,1)="8"),"",IF(VLOOKUP(A143,ZADANIOWY!A$2:O$10710,4,0)="T",VLOOKUP(A143,ZADANIOWY!A$2:O$10710,15,0),"")) ->  | K143: =IF(OR(A143="",COUNTIF(A143,"* *")>0,LEFT(A143,1)="7",LEFT(A143,1)="8"),OFFSET(K143,-1,0),IF(G143+H143>0,"tak","nie")) -> nie
E144: nie | G144: =IF(OR(A144="",COUNTIF(A144,"* *")>0,LEFT(A144,1)="7",LEFT(A144,1)="8"),"",IF(VLOOKUP(A144,ZADANIOWY!A$2:O$10710,4,0)="T",VLOOKUP(A144,ZADANIOWY!A$2:O$10710,12,0)-C144,"")) ->  | H144: =IF(OR(A144="",COUNTIF(A144,"* *")>0,LEFT(A144,1)="7",LEFT(A144,1)="8"),"",IF(VLOOKUP(A144,ZADANIOWY!A$2:O$10710,4,0)="T",VLOOKUP(A144,ZADANIOWY!A$2:O$10710,13,0)-D144,"")) ->  | I144: =IF(OR(A144="",COUNTIF(A144,"* *")>0,LEFT(A144,1)="7",LEFT(A144,1)="8"),"",IF(VLOOKUP(A144,ZADANIOWY!A$2:O$10710,4,0)="T",VLOOKUP(A144,ZADANIOWY!A$2:O$10710,14,0),"")) ->  | J144: =IF(OR(A144="",COUNTIF(A144,"* *")>0,LEFT(A144,1)="7",LEFT(A144,1)="8"),"",IF(VLOOKUP(A144,ZADANIOWY!A$2:O$10710,4,0)="T",VLOOKUP(A144,ZADANIOWY!A$2:O$10710,15,0),"")) ->  | K144: nie
A145: B/II/4/2 | B145: Regulacja stanów prawnych nieruchomości, w tym odszkodowania - zadanie 2 | E145: nie | G145: =IF(OR(A145="",COUNTIF(A145,"* *")>0,LEFT(A145,1)="7",LEFT(A145,1)="8"),"",IF(VLOOKUP(A145,ZADANIOWY!A$2:O$10710,4,0)="T",VLOOKUP(A145,ZADANIOWY!A$2:O$10710,12,0)-C145,"")) -> 0 | H145: =IF(OR(A145="",COUNTIF(A145,"* *")>0,LEFT(A145,1)="7",LEFT(A145,1)="8"),"",IF(VLOOKUP(A145,ZADANIOWY!A$2:O$10710,4,0)="T",VLOOKUP(A145,ZADANIOWY!A$2:O$10710,13,0)-D145,"")) -> 0 | I145: =IF(OR(A145="",COUNTIF(A145,"* *")>0,LEFT(A145,1)="7",LEFT(A145,1)="8"),"",IF(VLOOKUP(A145,ZADANIOWY!A$2:O$10710,4,0)="T",VLOOKUP(A145,ZADANIOWY!A$2:O$10710,14,0),"")) -> 0 | J145: =IF(OR(A145="",COUNTIF(A145,"* *")>0,LEFT(A145,1)="7",LEFT(A145,1)="8"),"",IF(VLOOKUP(A145,ZADANIOWY!A$2:O$10710,4,0)="T",VLOOKUP(A145,ZADANIOWY!A$2:O$10710,15,0),"")) -> 0 | K145: nie
E146: nie | G146: =IF(OR(A146="",COUNTIF(A146,"* *")>0,LEFT(A146,1)="7",LEFT(A146,1)="8"),"",IF(VLOOKUP(A146,ZADANIOWY!A$2:O$10710,4,0)="T",VLOOKUP(A146,ZADANIOWY!A$2:O$10710,12,0)-C146,"")) ->  | H146: =IF(OR(A146="",COUNTIF(A146,"* *")>0,LEFT(A146,1)="7",LEFT(A146,1)="8"),"",IF(VLOOKUP(A146,ZADANIOWY!A$2:O$10710,4,0)="T",VLOOKUP(A146,ZADANIOWY!A$2:O$10710,13,0)-D146,"")) ->  | I146: =IF(OR(A146="",COUNTIF(A146,"* *")>0,LEFT(A146,1)="7",LEFT(A146,1)="8"),"",IF(VLOOKUP(A146,ZADANIOWY!A$2:O$10710,4,0)="T",VLOOKUP(A146,ZADANIOWY!A$2:O$10710,14,0),"")) ->  | J146: =IF(OR(A146="",COUNTIF(A146,"* *")>0,LEFT(A146,1)="7",LEFT(A146,1)="8"),"",IF(VLOOKUP(A146,ZADANIOWY!A$2:O$10710,4,0)="T",VLOOKUP(A146,ZADANIOWY!A$2:O$10710,15,0),"")) ->  | K146: nie
B147: Dysponent: Wydział Nieruchomości | E147: nie | G147: =IF(OR(A147="",COUNTIF(A147,"* *")>0,LEFT(A147,1)="7",LEFT(A147,1)="8"),"",IF(VLOOKUP(A147,ZADANIOWY!A$2:O$10710,4,0)="T",VLOOKUP(A147,ZADANIOWY!A$2:O$10710,12,0)-C147,"")) ->  | H147: =IF(OR(A147="",COUNTIF(A147,"* *")>0,LEFT(A147,1)="7",LEFT(A147,1)="8"),"",IF(VLOOKUP(A147,ZADANIOWY!A$2:O$10710,4,0)="T",VLOOKUP(A147,ZADANIOWY!A$2:O$10710,13,0)-D147,"")) ->  | I147: =IF(OR(A147="",COUNTIF(A147,"* *")>0,LEFT(A147,1)="7",LEFT(A147,1)="8"),"",IF(VLOOKUP(A147,ZADANIOWY!A$2:O$10710,4,0)="T",VLOOKUP(A147,ZADANIOWY!A$2:O$10710,14,0),"")) ->  | J147: =IF(OR(A147="",COUNTIF(A147,"* *")>0,LEFT(A147,1)="7",LEFT(A147,1)="8"),"",IF(VLOOKUP(A147,ZADANIOWY!A$2:O$10710,4,0)="T",VLOOKUP(A147,ZADANIOWY!A$2:O$10710,15,0),"")) ->  | K147: nie
E148: nie | G148: =IF(OR(A148="",COUNTIF(A148,"* *")>0,LEFT(A148,1)="7",LEFT(A148,1)="8"),"",IF(VLOOKUP(A148,ZADANIOWY!A$2:O$10710,4,0)="T",VLOOKUP(A148,ZADANIOWY!A$2:O$10710,12,0)-C148,"")) ->  | H148: =IF(OR(A148="",COUNTIF(A148,"* *")>0,LEFT(A148,1)="7",LEFT(A148,1)="8"),"",IF(VLOOKUP(A148,ZADANIOWY!A$2:O$10710,4,0)="T",VLOOKUP(A148,ZADANIOWY!A$2:O$10710,13,0)-D148,"")) ->  | I148: =IF(OR(A148="",COUNTIF(A148,"* *")>0,LEFT(A148,1)="7",LEFT(A148,1)="8"),"",IF(VLOOKUP(A148,ZADANIOWY!A$2:O$10710,4,0)="T",VLOOKUP(A148,ZADANIOWY!A$2:O$10710,14,0),"")) ->  | J148: =IF(OR(A148="",COUNTIF(A148,"* *")>0,LEFT(A148,1)="7",LEFT(A148,1)="8"),"",IF(VLOOKUP(A148,ZADANIOWY!A$2:O$10710,4,0)="T",VLOOKUP(A148,ZADANIOWY!A$2:O$10710,15,0),"")) ->  | K148: nie
B149: Klasyfikacja: rozdział: 70005 | E149: nie | G149: =IF(OR(A149="",COUNTIF(A149,"* *")>0,LEFT(A149,1)="7",LEFT(A149,1)="8"),"",IF(VLOOKUP(A149,ZADANIOWY!A$2:O$10710,4,0)="T",VLOOKUP(A149,ZADANIOWY!A$2:O$10710,12,0)-C149,"")) ->  | H149: =IF(OR(A149="",COUNTIF(A149,"* *")>0,LEFT(A149,1)="7",LEFT(A149,1)="8"),"",IF(VLOOKUP(A149,ZADANIOWY!A$2:O$10710,4,0)="T",VLOOKUP(A149,ZADANIOWY!A$2:O$10710,13,0)-D149,"")) ->  | I149: =IF(OR(A149="",COUNTIF(A149,"* *")>0,LEFT(A149,1)="7",LEFT(A149,1)="8"),"",IF(VLOOKUP(A149,ZADANIOWY!A$2:O$10710,4,0)="T",VLOOKUP(A149,ZADANIOWY!A$2:O$10710,14,0),"")) ->  | J149: =IF(OR(A149="",COUNTIF(A149,"* *")>0,LEFT(A149,1)="7",LEFT(A149,1)="8"),"",IF(VLOOKUP(A149,ZADANIOWY!A$2:O$10710,4,0)="T",VLOOKUP(A149,ZADANIOWY!A$2:O$10710,15,0),"")) ->  | K149: nie
E150: nie | G150: =IF(OR(A150="",COUNTIF(A150,"* *")>0,LEFT(A150,1)="7",LEFT(A150,1)="8"),"",IF(VLOOKUP(A150,ZADANIOWY!A$2:O$10710,4,0)="T",VLOOKUP(A150,ZADANIOWY!A$2:O$10710,12,0)-C150,"")) ->  | H150: =IF(OR(A150="",COUNTIF(A150,"* *")>0,LEFT(A150,1)="7",LEFT(A150,1)="8"),"",IF(VLOOKUP(A150,ZADANIOWY!A$2:O$10710,4,0)="T",VLOOKUP(A150,ZADANIOWY!A$2:O$10710,13,0)-D150,"")) ->  | I150: =IF(OR(A150="",COUNTIF(A150,"* *")>0,LEFT(A150,1)="7",LEFT(A150,1)="8"),"",IF(VLOOKUP(A150,ZADANIOWY!A$2:O$10710,4,0)="T",VLOOKUP(A150,ZADANIOWY!A$2:O$10710,14,0),"")) ->  | J150: =IF(OR(A150="",COUNTIF(A150,"* *")>0,LEFT(A150,1)="7",LEFT(A150,1)="8"),"",IF(VLOOKUP(A150,ZADANIOWY!A$2:O$10710,4,0)="T",VLOOKUP(A150,ZADANIOWY!A$2:O$10710,15,0),"")) ->  | K150: nie
B151: OPIS | E151: nie | G151: =IF(OR(A151="",COUNTIF(A151,"* *")>0,LEFT(A151,1)="7",LEFT(A151,1)="8"),"",IF(VLOOKUP(A151,ZADANIOWY!A$2:O$10710,4,0)="T",VLOOKUP(A151,ZADANIOWY!A$2:O$10710,12,0)-C151,"")) ->  | H151: =IF(OR(A151="",COUNTIF(A151,"* *")>0,LEFT(A151,1)="7",LEFT(A151,1)="8"),"",IF(VLOOKUP(A151,ZADANIOWY!A$2:O$10710,4,0)="T",VLOOKUP(A151,ZADANIOWY!A$2:O$10710,13,0)-D151,"")) ->  | I151: =IF(OR(A151="",COUNTIF(A151,"* *")>0,LEFT(A151,1)="7",LEFT(A151,1)="8"),"",IF(VLOOKUP(A151,ZADANIOWY!A$2:O$10710,4,0)="T",VLOOKUP(A151,ZADANIOWY!A$2:O$10710,14,0),"")) ->  | J151: =IF(OR(A151="",COUNTIF(A151,"* *")>0,LEFT(A151,1)="7",LEFT(A151,1)="8"),"",IF(VLOOKUP(A151,ZADANIOWY!A$2:O$10710,4,0)="T",VLOOKUP(A151,ZADANIOWY!A$2:O$10710,15,0),"")) ->  | K151: nie
E152: nie | G152: =IF(OR(A152="",COUNTIF(A152,"* *")>0,LEFT(A152,1)="7",LEFT(A152,1)="8"),"",IF(VLOOKUP(A152,ZADANIOWY!A$2:O$10710,4,0)="T",VLOOKUP(A152,ZADANIOWY!A$2:O$10710,12,0)-C152,"")) ->  | H152: =IF(OR(A152="",COUNTIF(A152,"* *")>0,LEFT(A152,1)="7",LEFT(A152,1)="8"),"",IF(VLOOKUP(A152,ZADANIOWY!A$2:O$10710,4,0)="T",VLOOKUP(A152,ZADANIOWY!A$2:O$10710,13,0)-D152,"")) ->  | I152: =IF(OR(A152="",COUNTIF(A152,"* *")>0,LEFT(A152,1)="7",LEFT(A152,1)="8"),"",IF(VLOOKUP(A152,ZADANIOWY!A$2:O$10710,4,0)="T",VLOOKUP(A152,ZADANIOWY!A$2:O$10710,14,0),"")) ->  | J152: =IF(OR(A152="",COUNTIF(A152,"* *")>0,LEFT(A152,1)="7",LEFT(A152,1)="8"),"",IF(VLOOKUP(A152,ZADANIOWY!A$2:O$10710,4,0)="T",VLOOKUP(A152,ZADANIOWY!A$2:O$10710,15,0),"")) ->  | K152: nie
A153: II/5 | B153: Pozostały zasób komunalny - program 5 | C153: =C155+C163 -> 0 | D153: =D155+D163 -> 0 | E153: nie | G153: =IF(OR(A153="",COUNTIF(A153,"* *")>0,LEFT(A153,1)="7",LEFT(A153,1)="8"),"",IF(VLOOKUP(A153,ZADANIOWY!A$2:O$10710,4,0)="T",VLOOKUP(A153,ZADANIOWY!A$2:O$10710,12,0)-C153,"")) -> 0 | H153: =IF(OR(A153="",COUNTIF(A153,"* *")>0,LEFT(A153,1)="7",LEFT(A153,1)="8"),"",IF(VLOOKUP(A153,ZADANIOWY!A$2:O$10710,4,0)="T",VLOOKUP(A153,ZADANIOWY!A$2:O$10710,13,0)-D153,"")) -> 0 | I153: =IF(OR(A153="",COUNTIF(A153,"* *")>0,LEFT(A153,1)="7",LEFT(A153,1)="8"),"",IF(VLOOKUP(A153,ZADANIOWY!A$2:O$10710,4,0)="T",VLOOKUP(A153,ZADANIOWY!A$2:O$10710,14,0),"")) -> 0 | J153: =IF(OR(A153="",COUNTIF(A153,"* *")>0,LEFT(A153,1)="7",LEFT(A153,1)="8"),"",IF(VLOOKUP(A153,ZADANIOWY!A$2:O$10710,4,0)="T",VLOOKUP(A153,ZADANIOWY!A$2:O$10710,15,0),"")) -> 0 | K153: nie
E154: nie | G154: =IF(OR(A154="",COUNTIF(A154,"* *")>0,LEFT(A154,1)="7",LEFT(A154,1)="8"),"",IF(VLOOKUP(A154,ZADANIOWY!A$2:O$10710,4,0)="T",VLOOKUP(A154,ZADANIOWY!A$2:O$10710,12,0)-C154,"")) ->  | H154: =IF(OR(A154="",COUNTIF(A154,"* *")>0,LEFT(A154,1)="7",LEFT(A154,1)="8"),"",IF(VLOOKUP(A154,ZADANIOWY!A$2:O$10710,4,0)="T",VLOOKUP(A154,ZADANIOWY!A$2:O$10710,13,0)-D154,"")) ->  | I154: =IF(OR(A154="",COUNTIF(A154,"* *")>0,LEFT(A154,1)="7",LEFT(A154,1)="8"),"",IF(VLOOKUP(A154,ZADANIOWY!A$2:O$10710,4,0)="T",VLOOKUP(A154,ZADANIOWY!A$2:O$10710,14,0),"")) ->  | J154: =IF(OR(A154="",COUNTIF(A154,"* *")>0,LEFT(A154,1)="7",LEFT(A154,1)="8"),"",IF(VLOOKUP(A154,ZADANIOWY!A$2:O$10710,4,0)="T",VLOOKUP(A154,ZADANIOWY!A$2:O$10710,15,0),"")) ->  | K154: nie
A155: B/II/5/1 | B155: Zarządzanie lokalami użytkowymi i ich eksploatacja - zadanie 1 | E155: nie | G155: =IF(OR(A155="",COUNTIF(A155,"* *")>0,LEFT(A155,1)="7",LEFT(A155,1)="8"),"",IF(VLOOKUP(A155,ZADANIOWY!A$2:O$10710,4,0)="T",VLOOKUP(A155,ZADANIOWY!A$2:O$10710,12,0)-C155,"")) -> 0 | H155: =IF(OR(A155="",COUNTIF(A155,"* *")>0,LEFT(A155,1)="7",LEFT(A155,1)="8"),"",IF(VLOOKUP(A155,ZADANIOWY!A$2:O$10710,4,0)="T",VLOOKUP(A155,ZADANIOWY!A$2:O$10710,13,0)-D155,"")) -> 0 | I155: =IF(OR(A155="",COUNTIF(A155,"* *")>0,LEFT(A155,1)="7",LEFT(A155,1)="8"),"",IF(VLOOKUP(A155,ZADANIOWY!A$2:O$10710,4,0)="T",VLOOKUP(A155,ZADANIOWY!A$2:O$10710,14,0),"")) -> 0 | J155: =IF(OR(A155="",COUNTIF(A155,"* *")>0,LEFT(A155,1)="7",LEFT(A155,1)="8"),"",IF(VLOOKUP(A155,ZADANIOWY!A$2:O$10710,4,0)="T",VLOOKUP(A155,ZADANIOWY!A$2:O$10710,15,0),"")) -> 0 | K155: nie
E156: nie | G156: =IF(OR(A156="",COUNTIF(A156,"* *")>0,LEFT(A156,1)="7",LEFT(A156,1)="8"),"",IF(VLOOKUP(A156,ZADANIOWY!A$2:O$10710,4,0)="T",VLOOKUP(A156,ZADANIOWY!A$2:O$10710,12,0)-C156,"")) ->  | H156: =IF(OR(A156="",COUNTIF(A156,"* *")>0,LEFT(A156,1)="7",LEFT(A156,1)="8"),"",IF(VLOOKUP(A156,ZADANIOWY!A$2:O$10710,4,0)="T",VLOOKUP(A156,ZADANIOWY!A$2:O$10710,13,0)-D156,"")) ->  | I156: =IF(OR(A156="",COUNTIF(A156,"* *")>0,LEFT(A156,1)="7",LEFT(A156,1)="8"),"",IF(VLOOKUP(A156,ZADANIOWY!A$2:O$10710,4,0)="T",VLOOKUP(A156,ZADANIOWY!A$2:O$10710,14,0),"")) ->  | J156: =IF(OR(A156="",COUNTIF(A156,"* *")>0,LEFT(A156,1)="7",LEFT(A156,1)="8"),"",IF(VLOOKUP(A156,ZADANIOWY!A$2:O$10710,4,0)="T",VLOOKUP(A156,ZADANIOWY!A$2:O$10710,15,0),"")) ->  | K156: nie
B157: Dysponent: Wydział Administracyjno-Gospodarczy | E157: nie | G157: =IF(OR(A157="",COUNTIF(A157,"* *")>0,LEFT(A157,1)="7",LEFT(A157,1)="8"),"",IF(VLOOKUP(A157,ZADANIOWY!A$2:O$10710,4,0)="T",VLOOKUP(A157,ZADANIOWY!A$2:O$10710,12,0)-C157,"")) ->  | H157: =IF(OR(A157="",COUNTIF(A157,"* *")>0,LEFT(A157,1)="7",LEFT(A157,1)="8"),"",IF(VLOOKUP(A157,ZADANIOWY!A$2:O$10710,4,0)="T",VLOOKUP(A157,ZADANIOWY!A$2:O$10710,13,0)-D157,"")) ->  | I157: =IF(OR(A157="",COUNTIF(A157,"* *")>0,LEFT(A157,1)="7",LEFT(A157,1)="8"),"",IF(VLOOKUP(A157,ZADANIOWY!A$2:O$10710,4,0)="T",VLOOKUP(A157,ZADANIOWY!A$2:O$10710,14,0),"")) ->  | J157: =IF(OR(A157="",COUNTIF(A157,"* *")>0,LEFT(A157,1)="7",LEFT(A157,1)="8"),"",IF(VLOOKUP(A157,ZADANIOWY!A$2:O$10710,4,0)="T",VLOOKUP(A157,ZADANIOWY!A$2:O$10710,15,0),"")) ->  | K157: nie
E158: nie | G158: =IF(OR(A158="",COUNTIF(A158,"* *")>0,LEFT(A158,1)="7",LEFT(A158,1)="8"),"",IF(VLOOKUP(A158,ZADANIOWY!A$2:O$10710,4,0)="T",VLOOKUP(A158,ZADANIOWY!A$2:O$10710,12,0)-C158,"")) ->  | H158: =IF(OR(A158="",COUNTIF(A158,"* *")>0,LEFT(A158,1)="7",LEFT(A158,1)="8"),"",IF(VLOOKUP(A158,ZADANIOWY!A$2:O$10710,4,0)="T",VLOOKUP(A158,ZADANIOWY!A$2:O$10710,13,0)-D158,"")) ->  | I158: =IF(OR(A158="",COUNTIF(A158,"* *")>0,LEFT(A158,1)="7",LEFT(A158,1)="8"),"",IF(VLOOKUP(A158,ZADANIOWY!A$2:O$10710,4,0)="T",VLOOKUP(A158,ZADANIOWY!A$2:O$10710,14,0),"")) ->  | J158: =IF(OR(A158="",COUNTIF(A158,"* *")>0,LEFT(A158,1)="7",LEFT(A158,1)="8"),"",IF(VLOOKUP(A158,ZADANIOWY!A$2:O$10710,4,0)="T",VLOOKUP(A158,ZADANIOWY!A$2:O$10710,15,0),"")) ->  | K158: nie
B159: Klasyfikacja: rozdział: 70005 | E159: nie | G159: =IF(OR(A159="",COUNTIF(A159,"* *")>0,LEFT(A159,1)="7",LEFT(A159,1)="8"),"",IF(VLOOKUP(A159,ZADANIOWY!A$2:O$10710,4,0)="T",VLOOKUP(A159,ZADANIOWY!A$2:O$10710,12,0)-C159,"")) ->  | H159: =IF(OR(A159="",COUNTIF(A159,"* *")>0,LEFT(A159,1)="7",LEFT(A159,1)="8"),"",IF(VLOOKUP(A159,ZADANIOWY!A$2:O$10710,4,0)="T",VLOOKUP(A159,ZADANIOWY!A$2:O$10710,13,0)-D159,"")) ->  | I159: =IF(OR(A159="",COUNTIF(A159,"* *")>0,LEFT(A159,1)="7",LEFT(A159,1)="8"),"",IF(VLOOKUP(A159,ZADANIOWY!A$2:O$10710,4,0)="T",VLOOKUP(A159,ZADANIOWY!A$2:O$10710,14,0),"")) ->  | J159: =IF(OR(A159="",COUNTIF(A159,"* *")>0,LEFT(A159,1)="7",LEFT(A159,1)="8"),"",IF(VLOOKUP(A159,ZADANIOWY!A$2:O$10710,4,0)="T",VLOOKUP(A159,ZADANIOWY!A$2:O$10710,15,0),"")) ->  | K159: nie
E160: nie | G160: =IF(OR(A160="",COUNTIF(A160,"* *")>0,LEFT(A160,1)="7",LEFT(A160,1)="8"),"",IF(VLOOKUP(A160,ZADANIOWY!A$2:O$10710,4,0)="T",VLOOKUP(A160,ZADANIOWY!A$2:O$10710,12,0)-C160,"")) ->  | H160: =IF(OR(A160="",COUNTIF(A160,"* *")>0,LEFT(A160,1)="7",LEFT(A160,1)="8"),"",IF(VLOOKUP(A160,ZADANIOWY!A$2:O$10710,4,0)="T",VLOOKUP(A160,ZADANIOWY!A$2:O$10710,13,0)-D160,"")) ->  | I160: =IF(OR(A160="",COUNTIF(A160,"* *")>0,LEFT(A160,1)="7",LEFT(A160,1)="8"),"",IF(VLOOKUP(A160,ZADANIOWY!A$2:O$10710,4,0)="T",VLOOKUP(A160,ZADANIOWY!A$2:O$10710,14,0),"")) ->  | J160: =IF(OR(A160="",COUNTIF(A160,"* *")>0,LEFT(A160,1)="7",LEFT(A160,1)="8"),"",IF(VLOOKUP(A160,ZADANIOWY!A$2:O$10710,4,0)="T",VLOOKUP(A160,ZADANIOWY!A$2:O$10710,15,0),"")) ->  | K160: nie
B161: OPIS | E161: nie | G161: =IF(OR(A161="",COUNTIF(A161,"* *")>0,LEFT(A161,1)="7",LEFT(A161,1)="8"),"",IF(VLOOKUP(A161,ZADANIOWY!A$2:O$10710,4,0)="T",VLOOKUP(A161,ZADANIOWY!A$2:O$10710,12,0)-C161,"")) ->  | H161: =IF(OR(A161="",COUNTIF(A161,"* *")>0,LEFT(A161,1)="7",LEFT(A161,1)="8"),"",IF(VLOOKUP(A161,ZADANIOWY!A$2:O$10710,4,0)="T",VLOOKUP(A161,ZADANIOWY!A$2:O$10710,13,0)-D161,"")) ->  | I161: =IF(OR(A161="",COUNTIF(A161,"* *")>0,LEFT(A161,1)="7",LEFT(A161,1)="8"),"",IF(VLOOKUP(A161,ZADANIOWY!A$2:O$10710,4,0)="T",VLOOKUP(A161,ZADANIOWY!A$2:O$10710,14,0),"")) ->  | J161: =IF(OR(A161="",COUNTIF(A161,"* *")>0,LEFT(A161,1)="7",LEFT(A161,1)="8"),"",IF(VLOOKUP(A161,ZADANIOWY!A$2:O$10710,4,0)="T",VLOOKUP(A161,ZADANIOWY!A$2:O$10710,15,0),"")) ->  | K161: nie
E162: nie | G162: =IF(OR(A162="",COUNTIF(A162,"* *")>0,LEFT(A162,1)="7",LEFT(A162,1)="8"),"",IF(VLOOKUP(A162,ZADANIOWY!A$2:O$10710,4,0)="T",VLOOKUP(A162,ZADANIOWY!A$2:O$10710,12,0)-C162,"")) ->  | H162: =IF(OR(A162="",COUNTIF(A162,"* *")>0,LEFT(A162,1)="7",LEFT(A162,1)="8"),"",IF(VLOOKUP(A162,ZADANIOWY!A$2:O$10710,4,0)="T",VLOOKUP(A162,ZADANIOWY!A$2:O$10710,13,0)-D162,"")) ->  | I162: =IF(OR(A162="",COUNTIF(A162,"* *")>0,LEFT(A162,1)="7",LEFT(A162,1)="8"),"",IF(VLOOKUP(A162,ZADANIOWY!A$2:O$10710,4,0)="T",VLOOKUP(A162,ZADANIOWY!A$2:O$10710,14,0),"")) ->  | J162: =IF(OR(A162="",COUNTIF(A162,"* *")>0,LEFT(A162,1)="7",LEFT(A162,1)="8"),"",IF(VLOOKUP(A162,ZADANIOWY!A$2:O$10710,4,0)="T",VLOOKUP(A162,ZADANIOWY!A$2:O$10710,15,0),"")) ->  | K162: nie
A163: B/II/5/6 | B163: Zarządzanie pozostałymi nieruchomościami - zadanie 6 | C163: =C165+C171+C177 -> 0 | D163: =D165+D171+D177 -> 0 | E163: nie | G163: =IF(OR(A163="",COUNTIF(A163,"* *")>0,LEFT(A163,1)="7",LEFT(A163,1)="8"),"",IF(VLOOKUP(A163,ZADANIOWY!A$2:O$10710,4,0)="T",VLOOKUP(A163,ZADANIOWY!A$2:O$10710,12,0)-C163,"")) -> 0 | H163: =IF(OR(A163="",COUNTIF(A163,"* *")>0,LEFT(A163,1)="7",LEFT(A163,1)="8"),"",IF(VLOOKUP(A163,ZADANIOWY!A$2:O$10710,4,0)="T",VLOOKUP(A163,ZADANIOWY!A$2:O$10710,13,0)-D163,"")) -> 0 | I163: =IF(OR(A163="",COUNTIF(A163,"* *")>0,LEFT(A163,1)="7",LEFT(A163,1)="8"),"",IF(VLOOKUP(A163,ZADANIOWY!A$2:O$10710,4,0)="T",VLOOKUP(A163,ZADANIOWY!A$2:O$10710,14,0),"")) -> 0 | J163: =IF(OR(A163="",COUNTIF(A163,"* *")>0,LEFT(A163,1)="7",LEFT(A163,1)="8"),"",IF(VLOOKUP(A163,ZADANIOWY!A$2:O$10710,4,0)="T",VLOOKUP(A163,ZADANIOWY!A$2:O$10710,15,0),"")) -> 0 | K163: nie
E164: nie | G164: =IF(OR(A164="",COUNTIF(A164,"* *")>0,LEFT(A164,1)="7",LEFT(A164,1)="8"),"",IF(VLOOKUP(A164,ZADANIOWY!A$2:O$10710,4,0)="T",VLOOKUP(A164,ZADANIOWY!A$2:O$10710,12,0)-C164,"")) ->  | H164: =IF(OR(A164="",COUNTIF(A164,"* *")>0,LEFT(A164,1)="7",LEFT(A164,1)="8"),"",IF(VLOOKUP(A164,ZADANIOWY!A$2:O$10710,4,0)="T",VLOOKUP(A164,ZADANIOWY!A$2:O$10710,13,0)-D164,"")) ->  | I164: =IF(OR(A164="",COUNTIF(A164,"* *")>0,LEFT(A164,1)="7",LEFT(A164,1)="8"),"",IF(VLOOKUP(A164,ZADANIOWY!A$2:O$10710,4,0)="T",VLOOKUP(A164,ZADANIOWY!A$2:O$10710,14,0),"")) ->  | J164: =IF(OR(A164="",COUNTIF(A164,"* *")>0,LEFT(A164,1)="7",LEFT(A164,1)="8"),"",IF(VLOOKUP(A164,ZADANIOWY!A$2:O$10710,4,0)="T",VLOOKUP(A164,ZADANIOWY!A$2:O$10710,15,0),"")) ->  | K164: nie
B165: Dysponent 1: Wydział Nieruchomości | E165: nie | G165: =IF(OR(A165="",COUNTIF(A165,"* *")>0,LEFT(A165,1)="7",LEFT(A165,1)="8"),"",IF(VLOOKUP(A165,ZADANIOWY!A$2:O$10710,4,0)="T",VLOOKUP(A165,ZADANIOWY!A$2:O$10710,12,0)-C165,"")) ->  | H165: =IF(OR(A165="",COUNTIF(A165,"* *")>0,LEFT(A165,1)="7",LEFT(A165,1)="8"),"",IF(VLOOKUP(A165,ZADANIOWY!A$2:O$10710,4,0)="T",VLOOKUP(A165,ZADANIOWY!A$2:O$10710,13,0)-D165,"")) ->  | I165: =IF(OR(A165="",COUNTIF(A165,"* *")>0,LEFT(A165,1)="7",LEFT(A165,1)="8"),"",IF(VLOOKUP(A165,ZADANIOWY!A$2:O$10710,4,0)="T",VLOOKUP(A165,ZADANIOWY!A$2:O$10710,14,0),"")) ->  | J165: =IF(OR(A165="",COUNTIF(A165,"* *")>0,LEFT(A165,1)="7",LEFT(A165,1)="8"),"",IF(VLOOKUP(A165,ZADANIOWY!A$2:O$10710,4,0)="T",VLOOKUP(A165,ZADANIOWY!A$2:O$10710,15,0),"")) ->  | K165: nie
E166: nie | G166: =IF(OR(A166="",COUNTIF(A166,"* *")>0,LEFT(A166,1)="7",LEFT(A166,1)="8"),"",IF(VLOOKUP(A166,ZADANIOWY!A$2:O$10710,4,0)="T",VLOOKUP(A166,ZADANIOWY!A$2:O$10710,12,0)-C166,"")) ->  | H166: =IF(OR(A166="",COUNTIF(A166,"* *")>0,LEFT(A166,1)="7",LEFT(A166,1)="8"),"",IF(VLOOKUP(A166,ZADANIOWY!A$2:O$10710,4,0)="T",VLOOKUP(A166,ZADANIOWY!A$2:O$10710,13,0)-D166,"")) ->  | I166: =IF(OR(A166="",COUNTIF(A166,"* *")>0,LEFT(A166,1)="7",LEFT(A166,1)="8"),"",IF(VLOOKUP(A166,ZADANIOWY!A$2:O$10710,4,0)="T",VLOOKUP(A166,ZADANIOWY!A$2:O$10710,14,0),"")) ->  | J166: =IF(OR(A166="",COUNTIF(A166,"* *")>0,LEFT(A166,1)="7",LEFT(A166,1)="8"),"",IF(VLOOKUP(A166,ZADANIOWY!A$2:O$10710,4,0)="T",VLOOKUP(A166,ZADANIOWY!A$2:O$10710,15,0),"")) ->  | K166: nie
B167: Klasyfikacja: rozdział: 70005 | E167: nie | G167: =IF(OR(A167="",COUNTIF(A167,"* *")>0,LEFT(A167,1)="7",LEFT(A167,1)="8"),"",IF(VLOOKUP(A167,ZADANIOWY!A$2:O$10710,4,0)="T",VLOOKUP(A167,ZADANIOWY!A$2:O$10710,12,0)-C167,"")) ->  | H167: =IF(OR(A167="",COUNTIF(A167,"* *")>0,LEFT(A167,1)="7",LEFT(A167,1)="8"),"",IF(VLOOKUP(A167,ZADANIOWY!A$2:O$10710,4,0)="T",VLOOKUP(A167,ZADANIOWY!A$2:O$10710,13,0)-D167,"")) ->  | I167: =IF(OR(A167="",COUNTIF(A167,"* *")>0,LEFT(A167,1)="7",LEFT(A167,1)="8"),"",IF(VLOOKUP(A167,ZADANIOWY!A$2:O$10710,4,0)="T",VLOOKUP(A167,ZADANIOWY!A$2:O$10710,14,0),"")) ->  | J167: =IF(OR(A167="",COUNTIF(A167,"* *")>0,LEFT(A167,1)="7",LEFT(A167,1)="8"),"",IF(VLOOKUP(A167,ZADANIOWY!A$2:O$10710,4,0)="T",VLOOKUP(A167,ZADANIOWY!A$2:O$10710,15,0),"")) ->  | K167: nie
E168: nie | G168: =IF(OR(A168="",COUNTIF(A168,"* *")>0,LEFT(A168,1)="7",LEFT(A168,1)="8"),"",IF(VLOOKUP(A168,ZADANIOWY!A$2:O$10710,4,0)="T",VLOOKUP(A168,ZADANIOWY!A$2:O$10710,12,0)-C168,"")) ->  | H168: =IF(OR(A168="",COUNTIF(A168,"* *")>0,LEFT(A168,1)="7",LEFT(A168,1)="8"),"",IF(VLOOKUP(A168,ZADANIOWY!A$2:O$10710,4,0)="T",VLOOKUP(A168,ZADANIOWY!A$2:O$10710,13,0)-D168,"")) ->  | I168: =IF(OR(A168="",COUNTIF(A168,"* *")>0,LEFT(A168,1)="7",LEFT(A168,1)="8"),"",IF(VLOOKUP(A168,ZADANIOWY!A$2:O$10710,4,0)="T",VLOOKUP(A168,ZADANIOWY!A$2:O$10710,14,0),"")) ->  | J168: =IF(OR(A168="",COUNTIF(A168,"* *")>0,LEFT(A168,1)="7",LEFT(A168,1)="8"),"",IF(VLOOKUP(A168,ZADANIOWY!A$2:O$10710,4,0)="T",VLOOKUP(A168,ZADANIOWY!A$2:O$10710,15,0),"")) ->  | K168: nie
B169: OPIS | E169: nie | G169: =IF(OR(A169="",COUNTIF(A169,"* *")>0,LEFT(A169,1)="7",LEFT(A169,1)="8"),"",IF(VLOOKUP(A169,ZADANIOWY!A$2:O$10710,4,0)="T",VLOOKUP(A169,ZADANIOWY!A$2:O$10710,12,0)-C169,"")) ->  | H169: =IF(OR(A169="",COUNTIF(A169,"* *")>0,LEFT(A169,1)="7",LEFT(A169,1)="8"),"",IF(VLOOKUP(A169,ZADANIOWY!A$2:O$10710,4,0)="T",VLOOKUP(A169,ZADANIOWY!A$2:O$10710,13,0)-D169,"")) ->  | I169: =IF(OR(A169="",COUNTIF(A169,"* *")>0,LEFT(A169,1)="7",LEFT(A169,1)="8"),"",IF(VLOOKUP(A169,ZADANIOWY!A$2:O$10710,4,0)="T",VLOOKUP(A169,ZADANIOWY!A$2:O$10710,14,0),"")) ->  | J169: =IF(OR(A169="",COUNTIF(A169,"* *")>0,LEFT(A169,1)="7",LEFT(A169,1)="8"),"",IF(VLOOKUP(A169,ZADANIOWY!A$2:O$10710,4,0)="T",VLOOKUP(A169,ZADANIOWY!A$2:O$10710,15,0),"")) ->  | K169: nie
E170: nie | G170: =IF(OR(A170="",COUNTIF(A170,"* *")>0,LEFT(A170,1)="7",LEFT(A170,1)="8"),"",IF(VLOOKUP(A170,ZADANIOWY!A$2:O$10710,4,0)="T",VLOOKUP(A170,ZADANIOWY!A$2:O$10710,12,0)-C170,"")) ->  | H170: =IF(OR(A170="",COUNTIF(A170,"* *")>0,LEFT(A170,1)="7",LEFT(A170,1)="8"),"",IF(VLOOKUP(A170,ZADANIOWY!A$2:O$10710,4,0)="T",VLOOKUP(A170,ZADANIOWY!A$2:O$10710,13,0)-D170,"")) ->  | I170: =IF(OR(A170="",COUNTIF(A170,"* *")>0,LEFT(A170,1)="7",LEFT(A170,1)="8"),"",IF(VLOOKUP(A170,ZADANIOWY!A$2:O$10710,4,0)="T",VLOOKUP(A170,ZADANIOWY!A$2:O$10710,14,0),"")) ->  | J170: =IF(OR(A170="",COUNTIF(A170,"* *")>0,LEFT(A170,1)="7",LEFT(A170,1)="8"),"",IF(VLOOKUP(A170,ZADANIOWY!A$2:O$10710,4,0)="T",VLOOKUP(A170,ZADANIOWY!A$2:O$10710,15,0),"")) ->  | K170: nie
B171: Dysponent 2: Wydział Prawny | E171: nie | G171: =IF(OR(A171="",COUNTIF(A171,"* *")>0,LEFT(A171,1)="7",LEFT(A171,1)="8"),"",IF(VLOOKUP(A171,ZADANIOWY!A$2:O$10710,4,0)="T",VLOOKUP(A171,ZADANIOWY!A$2:O$10710,12,0)-C171,"")) ->  | H171: =IF(OR(A171="",COUNTIF(A171,"* *")>0,LEFT(A171,1)="7",LEFT(A171,1)="8"),"",IF(VLOOKUP(A171,ZADANIOWY!A$2:O$10710,4,0)="T",VLOOKUP(A171,ZADANIOWY!A$2:O$10710,13,0)-D171,"")) ->  | I171: =IF(OR(A171="",COUNTIF(A171,"* *")>0,LEFT(A171,1)="7",LEFT(A171,1)="8"),"",IF(VLOOKUP(A171,ZADANIOWY!A$2:O$10710,4,0)="T",VLOOKUP(A171,ZADANIOWY!A$2:O$10710,14,0),"")) ->  | J171: =IF(OR(A171="",COUNTIF(A171,"* *")>0,LEFT(A171,1)="7",LEFT(A171,1)="8"),"",IF(VLOOKUP(A171,ZADANIOWY!A$2:O$10710,4,0)="T",VLOOKUP(A171,ZADANIOWY!A$2:O$10710,15,0),"")) ->  | K171: nie
E172: nie | G172: =IF(OR(A172="",COUNTIF(A172,"* *")>0,LEFT(A172,1)="7",LEFT(A172,1)="8"),"",IF(VLOOKUP(A172,ZADANIOWY!A$2:O$10710,4,0)="T",VLOOKUP(A172,ZADANIOWY!A$2:O$10710,12,0)-C172,"")) ->  | H172: =IF(OR(A172="",COUNTIF(A172,"* *")>0,LEFT(A172,1)="7",LEFT(A172,1)="8"),"",IF(VLOOKUP(A172,ZADANIOWY!A$2:O$10710,4,0)="T",VLOOKUP(A172,ZADANIOWY!A$2:O$10710,13,0)-D172,"")) ->  | I172: =IF(OR(A172="",COUNTIF(A172,"* *")>0,LEFT(A172,1)="7",LEFT(A172,1)="8"),"",IF(VLOOKUP(A172,ZADANIOWY!A$2:O$10710,4,0)="T",VLOOKUP(A172,ZADANIOWY!A$2:O$10710,14,0),"")) ->  | J172: =IF(OR(A172="",COUNTIF(A172,"* *")>0,LEFT(A172,1)="7",LEFT(A172,1)="8"),"",IF(VLOOKUP(A172,ZADANIOWY!A$2:O$10710,4,0)="T",VLOOKUP(A172,ZADANIOWY!A$2:O$10710,15,0),"")) ->  | K172: nie
B173: Klasyfikacja: rozdział: 70005 | E173: nie | G173: =IF(OR(A173="",COUNTIF(A173,"* *")>0,LEFT(A173,1)="7",LEFT(A173,1)="8"),"",IF(VLOOKUP(A173,ZADANIOWY!A$2:O$10710,4,0)="T",VLOOKUP(A173,ZADANIOWY!A$2:O$10710,12,0)-C173,"")) ->  | H173: =IF(OR(A173="",COUNTIF(A173,"* *")>0,LEFT(A173,1)="7",LEFT(A173,1)="8"),"",IF(VLOOKUP(A173,ZADANIOWY!A$2:O$10710,4,0)="T",VLOOKUP(A173,ZADANIOWY!A$2:O$10710,13,0)-D173,"")) ->  | I173: =IF(OR(A173="",COUNTIF(A173,"* *")>0,LEFT(A173,1)="7",LEFT(A173,1)="8"),"",IF(VLOOKUP(A173,ZADANIOWY!A$2:O$10710,4,0)="T",VLOOKUP(A173,ZADANIOWY!A$2:O$10710,14,0),"")) ->  | J173: =IF(OR(A173="",COUNTIF(A173,"* *")>0,LEFT(A173,1)="7",LEFT(A173,1)="8"),"",IF(VLOOKUP(A173,ZADANIOWY!A$2:O$10710,4,0)="T",VLOOKUP(A173,ZADANIOWY!A$2:O$10710,15,0),"")) ->  | K173: nie
E174: nie | G174: =IF(OR(A174="",COUNTIF(A174,"* *")>0,LEFT(A174,1)="7",LEFT(A174,1)="8"),"",IF(VLOOKUP(A174,ZADANIOWY!A$2:O$10710,4,0)="T",VLOOKUP(A174,ZADANIOWY!A$2:O$10710,12,0)-C174,"")) ->  | H174: =IF(OR(A174="",COUNTIF(A174,"* *")>0,LEFT(A174,1)="7",LEFT(A174,1)="8"),"",IF(VLOOKUP(A174,ZADANIOWY!A$2:O$10710,4,0)="T",VLOOKUP(A174,ZADANIOWY!A$2:O$10710,13,0)-D174,"")) ->  | I174: =IF(OR(A174="",COUNTIF(A174,"* *")>0,LEFT(A174,1)="7",LEFT(A174,1)="8"),"",IF(VLOOKUP(A174,ZADANIOWY!A$2:O$10710,4,0)="T",VLOOKUP(A174,ZADANIOWY!A$2:O$10710,14,0),"")) ->  | J174: =IF(OR(A174="",COUNTIF(A174,"* *")>0,LEFT(A174,1)="7",LEFT(A174,1)="8"),"",IF(VLOOKUP(A174,ZADANIOWY!A$2:O$10710,4,0)="T",VLOOKUP(A174,ZADANIOWY!A$2:O$10710,15,0),"")) ->  | K174: nie
B175: OPIS | E175: nie | G175: =IF(OR(A175="",COUNTIF(A175,"* *")>0,LEFT(A175,1)="7",LEFT(A175,1)="8"),"",IF(VLOOKUP(A175,ZADANIOWY!A$2:O$10710,4,0)="T",VLOOKUP(A175,ZADANIOWY!A$2:O$10710,12,0)-C175,"")) ->  | H175: =IF(OR(A175="",COUNTIF(A175,"* *")>0,LEFT(A175,1)="7",LEFT(A175,1)="8"),"",IF(VLOOKUP(A175,ZADANIOWY!A$2:O$10710,4,0)="T",VLOOKUP(A175,ZADANIOWY!A$2:O$10710,13,0)-D175,"")) ->  | I175: =IF(OR(A175="",COUNTIF(A175,"* *")>0,LEFT(A175,1)="7",LEFT(A175,1)="8"),"",IF(VLOOKUP(A175,ZADANIOWY!A$2:O$10710,4,0)="T",VLOOKUP(A175,ZADANIOWY!A$2:O$10710,14,0),"")) ->  | J175: =IF(OR(A175="",COUNTIF(A175,"* *")>0,LEFT(A175,1)="7",LEFT(A175,1)="8"),"",IF(VLOOKUP(A175,ZADANIOWY!A$2:O$10710,4,0)="T",VLOOKUP(A175,ZADANIOWY!A$2:O$10710,15,0),"")) ->  | K175: nie
E176: nie | G176: =IF(OR(A176="",COUNTIF(A176,"* *")>0,LEFT(A176,1)="7",LEFT(A176,1)="8"),"",IF(VLOOKUP(A176,ZADANIOWY!A$2:O$10710,4,0)="T",VLOOKUP(A176,ZADANIOWY!A$2:O$10710,12,0)-C176,"")) ->  | H176: =IF(OR(A176="",COUNTIF(A176,"* *")>0,LEFT(A176,1)="7",LEFT(A176,1)="8"),"",IF(VLOOKUP(A176,ZADANIOWY!A$2:O$10710,4,0)="T",VLOOKUP(A176,ZADANIOWY!A$2:O$10710,13,0)-D176,"")) ->  | I176: =IF(OR(A176="",COUNTIF(A176,"* *")>0,LEFT(A176,1)="7",LEFT(A176,1)="8"),"",IF(VLOOKUP(A176,ZADANIOWY!A$2:O$10710,4,0)="T",VLOOKUP(A176,ZADANIOWY!A$2:O$10710,14,0),"")) ->  | J176: =IF(OR(A176="",COUNTIF(A176,"* *")>0,LEFT(A176,1)="7",LEFT(A176,1)="8"),"",IF(VLOOKUP(A176,ZADANIOWY!A$2:O$10710,4,0)="T",VLOOKUP(A176,ZADANIOWY!A$2:O$10710,15,0),"")) ->  | K176: nie
B177: Dysponent 3: Wydział Inwestycji | E177: nie | G177: =IF(OR(A177="",COUNTIF(A177,"* *")>0,LEFT(A177,1)="7",LEFT(A177,1)="8"),"",IF(VLOOKUP(A177,ZADANIOWY!A$2:O$10710,4,0)="T",VLOOKUP(A177,ZADANIOWY!A$2:O$10710,12,0)-C177,"")) ->  | H177: =IF(OR(A177="",COUNTIF(A177,"* *")>0,LEFT(A177,1)="7",LEFT(A177,1)="8"),"",IF(VLOOKUP(A177,ZADANIOWY!A$2:O$10710,4,0)="T",VLOOKUP(A177,ZADANIOWY!A$2:O$10710,13,0)-D177,"")) ->  | I177: =IF(OR(A177="",COUNTIF(A177,"* *")>0,LEFT(A177,1)="7",LEFT(A177,1)="8"),"",IF(VLOOKUP(A177,ZADANIOWY!A$2:O$10710,4,0)="T",VLOOKUP(A177,ZADANIOWY!A$2:O$10710,14,0),"")) ->  | J177: =IF(OR(A177="",COUNTIF(A177,"* *")>0,LEFT(A177,1)="7",LEFT(A177,1)="8"),"",IF(VLOOKUP(A177,ZADANIOWY!A$2:O$10710,4,0)="T",VLOOKUP(A177,ZADANIOWY!A$2:O$10710,15,0),"")) ->  | K177: nie
E178: nie | G178: =IF(OR(A178="",COUNTIF(A178,"* *")>0,LEFT(A178,1)="7",LEFT(A178,1)="8"),"",IF(VLOOKUP(A178,ZADANIOWY!A$2:O$10710,4,0)="T",VLOOKUP(A178,ZADANIOWY!A$2:O$10710,12,0)-C178,"")) ->  | H178: =IF(OR(A178="",COUNTIF(A178,"* *")>0,LEFT(A178,1)="7",LEFT(A178,1)="8"),"",IF(VLOOKUP(A178,ZADANIOWY!A$2:O$10710,4,0)="T",VLOOKUP(A178,ZADANIOWY!A$2:O$10710,13,0)-D178,"")) ->  | I178: =IF(OR(A178="",COUNTIF(A178,"* *")>0,LEFT(A178,1)="7",LEFT(A178,1)="8"),"",IF(VLOOKUP(A178,ZADANIOWY!A$2:O$10710,4,0)="T",VLOOKUP(A178,ZADANIOWY!A$2:O$10710,14,0),"")) ->  | J178: =IF(OR(A178="",COUNTIF(A178,"* *")>0,LEFT(A178,1)="7",LEFT(A178,1)="8"),"",IF(VLOOKUP(A178,ZADANIOWY!A$2:O$10710,4,0)="T",VLOOKUP(A178,ZADANIOWY!A$2:O$10710,15,0),"")) ->  | K178: nie
B179: Klasyfikacja: rozdział: 70005 | E179: nie | G179: =IF(OR(A179="",COUNTIF(A179,"* *")>0,LEFT(A179,1)="7",LEFT(A179,1)="8"),"",IF(VLOOKUP(A179,ZADANIOWY!A$2:O$10710,4,0)="T",VLOOKUP(A179,ZADANIOWY!A$2:O$10710,12,0)-C179,"")) ->  | H179: =IF(OR(A179="",COUNTIF(A179,"* *")>0,LEFT(A179,1)="7",LEFT(A179,1)="8"),"",IF(VLOOKUP(A179,ZADANIOWY!A$2:O$10710,4,0)="T",VLOOKUP(A179,ZADANIOWY!A$2:O$10710,13,0)-D179,"")) ->  | I179: =IF(OR(A179="",COUNTIF(A179,"* *")>0,LEFT(A179,1)="7",LEFT(A179,1)="8"),"",IF(VLOOKUP(A179,ZADANIOWY!A$2:O$10710,4,0)="T",VLOOKUP(A179,ZADANIOWY!A$2:O$10710,14,0),"")) ->  | J179: =IF(OR(A179="",COUNTIF(A179,"* *")>0,LEFT(A179,1)="7",LEFT(A179,1)="8"),"",IF(VLOOKUP(A179,ZADANIOWY!A$2:O$10710,4,0)="T",VLOOKUP(A179,ZADANIOWY!A$2:O$10710,15,0),"")) ->  | K179: nie
E180: nie | G180: =IF(OR(A180="",COUNTIF(A180,"* *")>0,LEFT(A180,1)="7",LEFT(A180,1)="8"),"",IF(VLOOKUP(A180,ZADANIOWY!A$2:O$10710,4,0)="T",VLOOKUP(A180,ZADANIOWY!A$2:O$10710,12,0)-C180,"")) ->  | H180: =IF(OR(A180="",COUNTIF(A180,"* *")>0,LEFT(A180,1)="7",LEFT(A180,1)="8"),"",IF(VLOOKUP(A180,ZADANIOWY!A$2:O$10710,4,0)="T",VLOOKUP(A180,ZADANIOWY!A$2:O$10710,13,0)-D180,"")) ->  | I180: =IF(OR(A180="",COUNTIF(A180,"* *")>0,LEFT(A180,1)="7",LEFT(A180,1)="8"),"",IF(VLOOKUP(A180,ZADANIOWY!A$2:O$10710,4,0)="T",VLOOKUP(A180,ZADANIOWY!A$2:O$10710,14,0),"")) ->  | J180: =IF(OR(A180="",COUNTIF(A180,"* *")>0,LEFT(A180,1)="7",LEFT(A180,1)="8"),"",IF(VLOOKUP(A180,ZADANIOWY!A$2:O$10710,4,0)="T",VLOOKUP(A180,ZADANIOWY!A$2:O$10710,15,0),"")) ->  | K180: nie
B181: OPIS | E181: nie | G181: =IF(OR(A181="",COUNTIF(A181,"* *")>0,LEFT(A181,1)="7",LEFT(A181,1)="8"),"",IF(VLOOKUP(A181,ZADANIOWY!A$2:O$10710,4,0)="T",VLOOKUP(A181,ZADANIOWY!A$2:O$10710,12,0)-C181,"")) ->  | H181: =IF(OR(A181="",COUNTIF(A181,"* *")>0,LEFT(A181,1)="7",LEFT(A181,1)="8"),"",IF(VLOOKUP(A181,ZADANIOWY!A$2:O$10710,4,0)="T",VLOOKUP(A181,ZADANIOWY!A$2:O$10710,13,0)-D181,"")) ->  | I181: =IF(OR(A181="",COUNTIF(A181,"* *")>0,LEFT(A181,1)="7",LEFT(A181,1)="8"),"",IF(VLOOKUP(A181,ZADANIOWY!A$2:O$10710,4,0)="T",VLOOKUP(A181,ZADANIOWY!A$2:O$10710,14,0),"")) ->  | J181: =IF(OR(A181="",COUNTIF(A181,"* *")>0,LEFT(A181,1)="7",LEFT(A181,1)="8"),"",IF(VLOOKUP(A181,ZADANIOWY!A$2:O$10710,4,0)="T",VLOOKUP(A181,ZADANIOWY!A$2:O$10710,15,0),"")) ->  | K181: nie
E182: nie | G182: =IF(OR(A182="",COUNTIF(A182,"* *")>0,LEFT(A182,1)="7",LEFT(A182,1)="8"),"",IF(VLOOKUP(A182,ZADANIOWY!A$2:O$10710,4,0)="T",VLOOKUP(A182,ZADANIOWY!A$2:O$10710,12,0)-C182,"")) ->  | H182: =IF(OR(A182="",COUNTIF(A182,"* *")>0,LEFT(A182,1)="7",LEFT(A182,1)="8"),"",IF(VLOOKUP(A182,ZADANIOWY!A$2:O$10710,4,0)="T",VLOOKUP(A182,ZADANIOWY!A$2:O$10710,13,0)-D182,"")) ->  | I182: =IF(OR(A182="",COUNTIF(A182,"* *")>0,LEFT(A182,1)="7",LEFT(A182,1)="8"),"",IF(VLOOKUP(A182,ZADANIOWY!A$2:O$10710,4,0)="T",VLOOKUP(A182,ZADANIOWY!A$2:O$10710,14,0),"")) ->  | J182: =IF(OR(A182="",COUNTIF(A182,"* *")>0,LEFT(A182,1)="7",LEFT(A182,1)="8"),"",IF(VLOOKUP(A182,ZADANIOWY!A$2:O$10710,4,0)="T",VLOOKUP(A182,ZADANIOWY!A$2:O$10710,15,0),"")) ->  | K182: nie
A183: III | B183: GOSPODARKA KOMUNALNA I OCHRONA ŚRODOWISKA | C183: =C185+C279+C311+C345 -> 0 | D183: =D185+D279+D311+D345 -> 0 | E183: nie | G183: =IF(OR(A183="",COUNTIF(A183,"* *")>0,LEFT(A183,1)="7",LEFT(A183,1)="8"),"",IF(VLOOKUP(A183,ZADANIOWY!A$2:O$10710,4,0)="T",VLOOKUP(A183,ZADANIOWY!A$2:O$10710,12,0)-C183,"")) -> 0 | H183: =IF(OR(A183="",COUNTIF(A183,"* *")>0,LEFT(A183,1)="7",LEFT(A183,1)="8"),"",IF(VLOOKUP(A183,ZADANIOWY!A$2:O$10710,4,0)="T",VLOOKUP(A183,ZADANIOWY!A$2:O$10710,13,0)-D183,"")) -> 0 | I183: =IF(OR(A183="",COUNTIF(A183,"* *")>0,LEFT(A183,1)="7",LEFT(A183,1)="8"),"",IF(VLOOKUP(A183,ZADANIOWY!A$2:O$10710,4,0)="T",VLOOKUP(A183,ZADANIOWY!A$2:O$10710,14,0),"")) -> 0 | J183: =IF(OR(A183="",COUNTIF(A183,"* *")>0,LEFT(A183,1)="7",LEFT(A183,1)="8"),"",IF(VLOOKUP(A183,ZADANIOWY!A$2:O$10710,4,0)="T",VLOOKUP(A183,ZADANIOWY!A$2:O$10710,15,0),"")) -> 0 | K183: nie
E184: nie | G184: =IF(OR(A184="",COUNTIF(A184,"* *")>0,LEFT(A184,1)="7",LEFT(A184,1)="8"),"",IF(VLOOKUP(A184,ZADANIOWY!A$2:O$10710,4,0)="T",VLOOKUP(A184,ZADANIOWY!A$2:O$10710,12,0)-C184,"")) ->  | H184: =IF(OR(A184="",COUNTIF(A184,"* *")>0,LEFT(A184,1)="7",LEFT(A184,1)="8"),"",IF(VLOOKUP(A184,ZADANIOWY!A$2:O$10710,4,0)="T",VLOOKUP(A184,ZADANIOWY!A$2:O$10710,13,0)-D184,"")) ->  | I184: =IF(OR(A184="",COUNTIF(A184,"* *")>0,LEFT(A184,1)="7",LEFT(A184,1)="8"),"",IF(VLOOKUP(A184,ZADANIOWY!A$2:O$10710,4,0)="T",VLOOKUP(A184,ZADANIOWY!A$2:O$10710,14,0),"")) ->  | J184: =IF(OR(A184="",COUNTIF(A184,"* *")>0,LEFT(A184,1)="7",LEFT(A184,1)="8"),"",IF(VLOOKUP(A184,ZADANIOWY!A$2:O$10710,4,0)="T",VLOOKUP(A184,ZADANIOWY!A$2:O$10710,15,0),"")) ->  | K184: nie
A185: III/1 | B185: Utrzymanie porządku i czystości - program 1 | C185: =C187+C213+C221+C229+C237+C245+C255+C263+C271 -> 0 | D185: =D187+D213+D221+D229+D237+D245+D255+D263+D271 -> 0 | E185: nie | G185: =IF(OR(A185="",COUNTIF(A185,"* *")>0,LEFT(A185,1)="7",LEFT(A185,1)="8"),"",IF(VLOOKUP(A185,ZADANIOWY!A$2:O$10710,4,0)="T",VLOOKUP(A185,ZADANIOWY!A$2:O$10710,12,0)-C185,"")) -> 0 | H185: =IF(OR(A185="",COUNTIF(A185,"* *")>0,LEFT(A185,1)="7",LEFT(A185,1)="8"),"",IF(VLOOKUP(A185,ZADANIOWY!A$2:O$10710,4,0)="T",VLOOKUP(A185,ZADANIOWY!A$2:O$10710,13,0)-D185,"")) -> 0 | I185: =IF(OR(A185="",COUNTIF(A185,"* *")>0,LEFT(A185,1)="7",LEFT(A185,1)="8"),"",IF(VLOOKUP(A185,ZADANIOWY!A$2:O$10710,4,0)="T",VLOOKUP(A185,ZADANIOWY!A$2:O$10710,14,0),"")) -> 0 | J185: =IF(OR(A185="",COUNTIF(A185,"* *")>0,LEFT(A185,1)="7",LEFT(A185,1)="8"),"",IF(VLOOKUP(A185,ZADANIOWY!A$2:O$10710,4,0)="T",VLOOKUP(A185,ZADANIOWY!A$2:O$10710,15,0),"")) -> 0 | K185: nie
E186: nie | G186: =IF(OR(A186="",COUNTIF(A186,"* *")>0,LEFT(A186,1)="7",LEFT(A186,1)="8"),"",IF(VLOOKUP(A186,ZADANIOWY!A$2:O$10710,4,0)="T",VLOOKUP(A186,ZADANIOWY!A$2:O$10710,12,0)-C186,"")) ->  | H186: =IF(OR(A186="",COUNTIF(A186,"* *")>0,LEFT(A186,1)="7",LEFT(A186,1)="8"),"",IF(VLOOKUP(A186,ZADANIOWY!A$2:O$10710,4,0)="T",VLOOKUP(A186,ZADANIOWY!A$2:O$10710,13,0)-D186,"")) ->  | I186: =IF(OR(A186="",COUNTIF(A186,"* *")>0,LEFT(A186,1)="7",LEFT(A186,1)="8"),"",IF(VLOOKUP(A186,ZADANIOWY!A$2:O$10710,4,0)="T",VLOOKUP(A186,ZADANIOWY!A$2:O$10710,14,0),"")) ->  | J186: =IF(OR(A186="",COUNTIF(A186,"* *")>0,LEFT(A186,1)="7",LEFT(A186,1)="8"),"",IF(VLOOKUP(A186,ZADANIOWY!A$2:O$10710,4,0)="T",VLOOKUP(A186,ZADANIOWY!A$2:O$10710,15,0),"")) ->  | K186: nie
A187: B/III/1/1 | B187: Oczyszczanie miasta - zadanie 1 | C187: =C189+C197+C205 -> 0 | D187: =D189+D197+D205 -> 0 | E187: nie | G187: =IF(OR(A187="",COUNTIF(A187,"* *")>0,LEFT(A187,1)="7",LEFT(A187,1)="8"),"",IF(VLOOKUP(A187,ZADANIOWY!A$2:O$10710,4,0)="T",VLOOKUP(A187,ZADANIOWY!A$2:O$10710,12,0)-C187,"")) -> 0 | H187: =IF(OR(A187="",COUNTIF(A187,"* *")>0,LEFT(A187,1)="7",LEFT(A187,1)="8"),"",IF(VLOOKUP(A187,ZADANIOWY!A$2:O$10710,4,0)="T",VLOOKUP(A187,ZADANIOWY!A$2:O$10710,13,0)-D187,"")) -> 0 | I187: =IF(OR(A187="",COUNTIF(A187,"* *")>0,LEFT(A187,1)="7",LEFT(A187,1)="8"),"",IF(VLOOKUP(A187,ZADANIOWY!A$2:O$10710,4,0)="T",VLOOKUP(A187,ZADANIOWY!A$2:O$10710,14,0),"")) -> 0 | J187: =IF(OR(A187="",COUNTIF(A187,"* *")>0,LEFT(A187,1)="7",LEFT(A187,1)="8"),"",IF(VLOOKUP(A187,ZADANIOWY!A$2:O$10710,4,0)="T",VLOOKUP(A187,ZADANIOWY!A$2:O$10710,15,0),"")) -> 0 | K187: nie
E188: nie | G188: =IF(OR(A188="",COUNTIF(A188,"* *")>0,LEFT(A188,1)="7",LEFT(A188,1)="8"),"",IF(VLOOKUP(A188,ZADANIOWY!A$2:O$10710,4,0)="T",VLOOKUP(A188,ZADANIOWY!A$2:O$10710,12,0)-C188,"")) ->  | H188: =IF(OR(A188="",COUNTIF(A188,"* *")>0,LEFT(A188,1)="7",LEFT(A188,1)="8"),"",IF(VLOOKUP(A188,ZADANIOWY!A$2:O$10710,4,0)="T",VLOOKUP(A188,ZADANIOWY!A$2:O$10710,13,0)-D188,"")) ->  | I188: =IF(OR(A188="",COUNTIF(A188,"* *")>0,LEFT(A188,1)="7",LEFT(A188,1)="8"),"",IF(VLOOKUP(A188,ZADANIOWY!A$2:O$10710,4,0)="T",VLOOKUP(A188,ZADANIOWY!A$2:O$10710,14,0),"")) ->  | J188: =IF(OR(A188="",COUNTIF(A188,"* *")>0,LEFT(A188,1)="7",LEFT(A188,1)="8"),"",IF(VLOOKUP(A188,ZADANIOWY!A$2:O$10710,4,0)="T",VLOOKUP(A188,ZADANIOWY!A$2:O$10710,15,0),"")) ->  | K188: nie
A189: B/III/1/1/1 | B189: Zimowe oczyszczanie ulic | E189: nie | G189: =IF(OR(A189="",COUNTIF(A189,"* *")>0,LEFT(A189,1)="7",LEFT(A189,1)="8"),"",IF(VLOOKUP(A189,ZADANIOWY!A$2:O$10710,4,0)="T",VLOOKUP(A189,ZADANIOWY!A$2:O$10710,12,0)-C189,"")) -> 0 | H189: =IF(OR(A189="",COUNTIF(A189,"* *")>0,LEFT(A189,1)="7",LEFT(A189,1)="8"),"",IF(VLOOKUP(A189,ZADANIOWY!A$2:O$10710,4,0)="T",VLOOKUP(A189,ZADANIOWY!A$2:O$10710,13,0)-D189,"")) -> 0 | I189: =IF(OR(A189="",COUNTIF(A189,"* *")>0,LEFT(A189,1)="7",LEFT(A189,1)="8"),"",IF(VLOOKUP(A189,ZADANIOWY!A$2:O$10710,4,0)="T",VLOOKUP(A189,ZADANIOWY!A$2:O$10710,14,0),"")) -> 0 | J189: =IF(OR(A189="",COUNTIF(A189,"* *")>0,LEFT(A189,1)="7",LEFT(A189,1)="8"),"",IF(VLOOKUP(A189,ZADANIOWY!A$2:O$10710,4,0)="T",VLOOKUP(A189,ZADANIOWY!A$2:O$10710,15,0),"")) -> 0 | K189: nie
E190: nie | G190: =IF(OR(A190="",COUNTIF(A190,"* *")>0,LEFT(A190,1)="7",LEFT(A190,1)="8"),"",IF(VLOOKUP(A190,ZADANIOWY!A$2:O$10710,4,0)="T",VLOOKUP(A190,ZADANIOWY!A$2:O$10710,12,0)-C190,"")) ->  | H190: =IF(OR(A190="",COUNTIF(A190,"* *")>0,LEFT(A190,1)="7",LEFT(A190,1)="8"),"",IF(VLOOKUP(A190,ZADANIOWY!A$2:O$10710,4,0)="T",VLOOKUP(A190,ZADANIOWY!A$2:O$10710,13,0)-D190,"")) ->  | I190: =IF(OR(A190="",COUNTIF(A190,"* *")>0,LEFT(A190,1)="7",LEFT(A190,1)="8"),"",IF(VLOOKUP(A190,ZADANIOWY!A$2:O$10710,4,0)="T",VLOOKUP(A190,ZADANIOWY!A$2:O$10710,14,0),"")) ->  | J190: =IF(OR(A190="",COUNTIF(A190,"* *")>0,LEFT(A190,1)="7",LEFT(A190,1)="8"),"",IF(VLOOKUP(A190,ZADANIOWY!A$2:O$10710,4,0)="T",VLOOKUP(A190,ZADANIOWY!A$2:O$10710,15,0),"")) ->  | K190: nie
B191: Dysponent: Wydział Infrastruktury | E191: nie | G191: =IF(OR(A191="",COUNTIF(A191,"* *")>0,LEFT(A191,1)="7",LEFT(A191,1)="8"),"",IF(VLOOKUP(A191,ZADANIOWY!A$2:O$10710,4,0)="T",VLOOKUP(A191,ZADANIOWY!A$2:O$10710,12,0)-C191,"")) ->  | H191: =IF(OR(A191="",COUNTIF(A191,"* *")>0,LEFT(A191,1)="7",LEFT(A191,1)="8"),"",IF(VLOOKUP(A191,ZADANIOWY!A$2:O$10710,4,0)="T",VLOOKUP(A191,ZADANIOWY!A$2:O$10710,13,0)-D191,"")) ->  | I191: =IF(OR(A191="",COUNTIF(A191,"* *")>0,LEFT(A191,1)="7",LEFT(A191,1)="8"),"",IF(VLOOKUP(A191,ZADANIOWY!A$2:O$10710,4,0)="T",VLOOKUP(A191,ZADANIOWY!A$2:O$10710,14,0),"")) ->  | J191: =IF(OR(A191="",COUNTIF(A191,"* *")>0,LEFT(A191,1)="7",LEFT(A191,1)="8"),"",IF(VLOOKUP(A191,ZADANIOWY!A$2:O$10710,4,0)="T",VLOOKUP(A191,ZADANIOWY!A$2:O$10710,15,0),"")) ->  | K191: nie
E192: nie | G192: =IF(OR(A192="",COUNTIF(A192,"* *")>0,LEFT(A192,1)="7",LEFT(A192,1)="8"),"",IF(VLOOKUP(A192,ZADANIOWY!A$2:O$10710,4,0)="T",VLOOKUP(A192,ZADANIOWY!A$2:O$10710,12,0)-C192,"")) ->  | H192: =IF(OR(A192="",COUNTIF(A192,"* *")>0,LEFT(A192,1)="7",LEFT(A192,1)="8"),"",IF(VLOOKUP(A192,ZADANIOWY!A$2:O$10710,4,0)="T",VLOOKUP(A192,ZADANIOWY!A$2:O$10710,13,0)-D192,"")) ->  | I192: =IF(OR(A192="",COUNTIF(A192,"* *")>0,LEFT(A192,1)="7",LEFT(A192,1)="8"),"",IF(VLOOKUP(A192,ZADANIOWY!A$2:O$10710,4,0)="T",VLOOKUP(A192,ZADANIOWY!A$2:O$10710,14,0),"")) ->  | J192: =IF(OR(A192="",COUNTIF(A192,"* *")>0,LEFT(A192,1)="7",LEFT(A192,1)="8"),"",IF(VLOOKUP(A192,ZADANIOWY!A$2:O$10710,4,0)="T",VLOOKUP(A192,ZADANIOWY!A$2:O$10710,15,0),"")) ->  | K192: nie
B193: Klasyfikacja: rozdział: 60016, 60017 | E193: nie | G193: =IF(OR(A193="",COUNTIF(A193,"* *")>0,LEFT(A193,1)="7",LEFT(A193,1)="8"),"",IF(VLOOKUP(A193,ZADANIOWY!A$2:O$10710,4,0)="T",VLOOKUP(A193,ZADANIOWY!A$2:O$10710,12,0)-C193,"")) ->  | H193: =IF(OR(A193="",COUNTIF(A193,"* *")>0,LEFT(A193,1)="7",LEFT(A193,1)="8"),"",IF(VLOOKUP(A193,ZADANIOWY!A$2:O$10710,4,0)="T",VLOOKUP(A193,ZADANIOWY!A$2:O$10710,13,0)-D193,"")) ->  | I193: =IF(OR(A193="",COUNTIF(A193,"* *")>0,LEFT(A193,1)="7",LEFT(A193,1)="8"),"",IF(VLOOKUP(A193,ZADANIOWY!A$2:O$10710,4,0)="T",VLOOKUP(A193,ZADANIOWY!A$2:O$10710,14,0),"")) ->  | J193: =IF(OR(A193="",COUNTIF(A193,"* *")>0,LEFT(A193,1)="7",LEFT(A193,1)="8"),"",IF(VLOOKUP(A193,ZADANIOWY!A$2:O$10710,4,0)="T",VLOOKUP(A193,ZADANIOWY!A$2:O$10710,15,0),"")) ->  | K193: nie
E194: nie | G194: =IF(OR(A194="",COUNTIF(A194,"* *")>0,LEFT(A194,1)="7",LEFT(A194,1)="8"),"",IF(VLOOKUP(A194,ZADANIOWY!A$2:O$10710,4,0)="T",VLOOKUP(A194,ZADANIOWY!A$2:O$10710,12,0)-C194,"")) ->  | H194: =IF(OR(A194="",COUNTIF(A194,"* *")>0,LEFT(A194,1)="7",LEFT(A194,1)="8"),"",IF(VLOOKUP(A194,ZADANIOWY!A$2:O$10710,4,0)="T",VLOOKUP(A194,ZADANIOWY!A$2:O$10710,13,0)-D194,"")) ->  | I194: =IF(OR(A194="",COUNTIF(A194,"* *")>0,LEFT(A194,1)="7",LEFT(A194,1)="8"),"",IF(VLOOKUP(A194,ZADANIOWY!A$2:O$10710,4,0)="T",VLOOKUP(A194,ZADANIOWY!A$2:O$10710,14,0),"")) ->  | J194: =IF(OR(A194="",COUNTIF(A194,"* *")>0,LEFT(A194,1)="7",LEFT(A194,1)="8"),"",IF(VLOOKUP(A194,ZADANIOWY!A$2:O$10710,4,0)="T",VLOOKUP(A194,ZADANIOWY!A$2:O$10710,15,0),"")) ->  | K194: nie
B195: OPIS | E195: nie | G195: =IF(OR(A195="",COUNTIF(A195,"* *")>0,LEFT(A195,1)="7",LEFT(A195,1)="8"),"",IF(VLOOKUP(A195,ZADANIOWY!A$2:O$10710,4,0)="T",VLOOKUP(A195,ZADANIOWY!A$2:O$10710,12,0)-C195,"")) ->  | H195: =IF(OR(A195="",COUNTIF(A195,"* *")>0,LEFT(A195,1)="7",LEFT(A195,1)="8"),"",IF(VLOOKUP(A195,ZADANIOWY!A$2:O$10710,4,0)="T",VLOOKUP(A195,ZADANIOWY!A$2:O$10710,13,0)-D195,"")) ->  | I195: =IF(OR(A195="",COUNTIF(A195,"* *")>0,LEFT(A195,1)="7",LEFT(A195,1)="8"),"",IF(VLOOKUP(A195,ZADANIOWY!A$2:O$10710,4,0)="T",VLOOKUP(A195,ZADANIOWY!A$2:O$10710,14,0),"")) ->  | J195: =IF(OR(A195="",COUNTIF(A195,"* *")>0,LEFT(A195,1)="7",LEFT(A195,1)="8"),"",IF(VLOOKUP(A195,ZADANIOWY!A$2:O$10710,4,0)="T",VLOOKUP(A195,ZADANIOWY!A$2:O$10710,15,0),"")) ->  | K195: nie
E196: nie | G196: =IF(OR(A196="",COUNTIF(A196,"* *")>0,LEFT(A196,1)="7",LEFT(A196,1)="8"),"",IF(VLOOKUP(A196,ZADANIOWY!A$2:O$10710,4,0)="T",VLOOKUP(A196,ZADANIOWY!A$2:O$10710,12,0)-C196,"")) ->  | H196: =IF(OR(A196="",COUNTIF(A196,"* *")>0,LEFT(A196,1)="7",LEFT(A196,1)="8"),"",IF(VLOOKUP(A196,ZADANIOWY!A$2:O$10710,4,0)="T",VLOOKUP(A196,ZADANIOWY!A$2:O$10710,13,0)-D196,"")) ->  | I196: =IF(OR(A196="",COUNTIF(A196,"* *")>0,LEFT(A196,1)="7",LEFT(A196,1)="8"),"",IF(VLOOKUP(A196,ZADANIOWY!A$2:O$10710,4,0)="T",VLOOKUP(A196,ZADANIOWY!A$2:O$10710,14,0),"")) ->  | J196: =IF(OR(A196="",COUNTIF(A196,"* *")>0,LEFT(A196,1)="7",LEFT(A196,1)="8"),"",IF(VLOOKUP(A196,ZADANIOWY!A$2:O$10710,4,0)="T",VLOOKUP(A196,ZADANIOWY!A$2:O$10710,15,0),"")) ->  | K196: nie
A197: B/III/1/1/2 | B197: Letnie oczyszczanie ulic | E197: nie | G197: =IF(OR(A197="",COUNTIF(A197,"* *")>0,LEFT(A197,1)="7",LEFT(A197,1)="8"),"",IF(VLOOKUP(A197,ZADANIOWY!A$2:O$10710,4,0)="T",VLOOKUP(A197,ZADANIOWY!A$2:O$10710,12,0)-C197,"")) -> 0 | H197: =IF(OR(A197="",COUNTIF(A197,"* *")>0,LEFT(A197,1)="7",LEFT(A197,1)="8"),"",IF(VLOOKUP(A197,ZADANIOWY!A$2:O$10710,4,0)="T",VLOOKUP(A197,ZADANIOWY!A$2:O$10710,13,0)-D197,"")) -> 0 | I197: =IF(OR(A197="",COUNTIF(A197,"* *")>0,LEFT(A197,1)="7",LEFT(A197,1)="8"),"",IF(VLOOKUP(A197,ZADANIOWY!A$2:O$10710,4,0)="T",VLOOKUP(A197,ZADANIOWY!A$2:O$10710,14,0),"")) -> 0 | J197: =IF(OR(A197="",COUNTIF(A197,"* *")>0,LEFT(A197,1)="7",LEFT(A197,1)="8"),"",IF(VLOOKUP(A197,ZADANIOWY!A$2:O$10710,4,0)="T",VLOOKUP(A197,ZADANIOWY!A$2:O$10710,15,0),"")) -> 0 | K197: nie
E198: nie | G198: =IF(OR(A198="",COUNTIF(A198,"* *")>0,LEFT(A198,1)="7",LEFT(A198,1)="8"),"",IF(VLOOKUP(A198,ZADANIOWY!A$2:O$10710,4,0)="T",VLOOKUP(A198,ZADANIOWY!A$2:O$10710,12,0)-C198,"")) ->  | H198: =IF(OR(A198="",COUNTIF(A198,"* *")>0,LEFT(A198,1)="7",LEFT(A198,1)="8"),"",IF(VLOOKUP(A198,ZADANIOWY!A$2:O$10710,4,0)="T",VLOOKUP(A198,ZADANIOWY!A$2:O$10710,13,0)-D198,"")) ->  | I198: =IF(OR(A198="",COUNTIF(A198,"* *")>0,LEFT(A198,1)="7",LEFT(A198,1)="8"),"",IF(VLOOKUP(A198,ZADANIOWY!A$2:O$10710,4,0)="T",VLOOKUP(A198,ZADANIOWY!A$2:O$10710,14,0),"")) ->  | J198: =IF(OR(A198="",COUNTIF(A198,"* *")>0,LEFT(A198,1)="7",LEFT(A198,1)="8"),"",IF(VLOOKUP(A198,ZADANIOWY!A$2:O$10710,4,0)="T",VLOOKUP(A198,ZADANIOWY!A$2:O$10710,15,0),"")) ->  | K198: nie
B199: Dysponent: Wydział Infrastruktury | E199: nie | G199: =IF(OR(A199="",COUNTIF(A199,"* *")>0,LEFT(A199,1)="7",LEFT(A199,1)="8"),"",IF(VLOOKUP(A199,ZADANIOWY!A$2:O$10710,4,0)="T",VLOOKUP(A199,ZADANIOWY!A$2:O$10710,12,0)-C199,"")) ->  | H199: =IF(OR(A199="",COUNTIF(A199,"* *")>0,LEFT(A199,1)="7",LEFT(A199,1)="8"),"",IF(VLOOKUP(A199,ZADANIOWY!A$2:O$10710,4,0)="T",VLOOKUP(A199,ZADANIOWY!A$2:O$10710,13,0)-D199,"")) ->  | I199: =IF(OR(A199="",COUNTIF(A199,"* *")>0,LEFT(A199,1)="7",LEFT(A199,1)="8"),"",IF(VLOOKUP(A199,ZADANIOWY!A$2:O$10710,4,0)="T",VLOOKUP(A199,ZADANIOWY!A$2:O$10710,14,0),"")) ->  | J199: =IF(OR(A199="",COUNTIF(A199,"* *")>0,LEFT(A199,1)="7",LEFT(A199,1)="8"),"",IF(VLOOKUP(A199,ZADANIOWY!A$2:O$10710,4,0)="T",VLOOKUP(A199,ZADANIOWY!A$2:O$10710,15,0),"")) ->  | K199: nie
E200: nie | G200: =IF(OR(A200="",COUNTIF(A200,"* *")>0,LEFT(A200,1)="7",LEFT(A200,1)="8"),"",IF(VLOOKUP(A200,ZADANIOWY!A$2:O$10710,4,0)="T",VLOOKUP(A200,ZADANIOWY!A$2:O$10710,12,0)-C200,"")) ->  | H200: =IF(OR(A200="",COUNTIF(A200,"* *")>0,LEFT(A200,1)="7",LEFT(A200,1)="8"),"",IF(VLOOKUP(A200,ZADANIOWY!A$2:O$10710,4,0)="T",VLOOKUP(A200,ZADANIOWY!A$2:O$10710,13,0)-D200,"")) ->  | I200: =IF(OR(A200="",COUNTIF(A200,"* *")>0,LEFT(A200,1)="7",LEFT(A200,1)="8"),"",IF(VLOOKUP(A200,ZADANIOWY!A$2:O$10710,4,0)="T",VLOOKUP(A200,ZADANIOWY!A$2:O$10710,14,0),"")) ->  | J200: =IF(OR(A200="",COUNTIF(A200,"* *")>0,LEFT(A200,1)="7",LEFT(A200,1)="8"),"",IF(VLOOKUP(A200,ZADANIOWY!A$2:O$10710,4,0)="T",VLOOKUP(A200,ZADANIOWY!A$2:O$10710,15,0),"")) ->  | K200: nie
... 1114 more rows
